Workbook

Sheet Info (hidden)
A1: (Select Authority) | C1: Authority Name (Alphabetical)
A2: Atlantic City Municipal Utilities Authority | C2: Atlantic City Municipal Utilities Authority | E2: =IF(A2=C2,"TRUE","FALSE") -> TRUE
A3: Atlantic County Improvement Authority | C3: Atlantic County Improvement Authority | E3: =IF(A3=C3,"TRUE","FALSE") -> TRUE
A4: Atlantic County Utilities Authority | C4: Atlantic County Utilities Authority | E4: TRUE
A5: Bayonne Municipal Utilities Authority | C5: Bayonne Municipal Utilities Authority | E5: TRUE
A6: Bayshore Regional Sewerage Authority | C6: Bayshore Regional Sewerage Authority | E6: TRUE
A7: Beach Haven Sewerage Authority | C7: Beach Haven Sewerage Authority | E7: TRUE
A8: Beachwood Sewerage Authority | C8: Beachwood Sewerage Authority | E8: TRUE
A9: Bellmawr Redevelopment Agency | C9: Bellmawr Redevelopment Agency | E9: TRUE
A10: Bergen County Improvement Authority | C10: Bergen County Improvement Authority | E10: =IF(A10=C10,"TRUE","FALSE") -> TRUE
A11: Bergen County Utilities Authority | C11: Bergen County Utilities Authority | E11: TRUE
A12: Berkeley Municipal Utilities Authority | C12: Berkeley Municipal Utilities Authority | E12: TRUE
A13: Berkeley Township Sewerage Authority | C13: Berkeley Township Sewerage Authority | E13: TRUE
A14: Bernards Sewerage Authority | C14: Bernards Sewerage Authority | E14: TRUE
A15: Beverly Sewerage Authority | C15: Beverly Sewerage Authority | E15: TRUE
A16: Bordentown Sewerage Authority | C16: Bordentown Sewerage Authority | E16: TRUE
A17: Brick Municipal Utilities Authority | C17: Brick Municipal Utilities Authority | E17: TRUE
A18: Bridgeton Municipal Port Authority | C18: Bridgeton Municipal Port Authority | E18: TRUE
A19: Buena Municipal Utilities Authority | C19: Buena Municipal Utilities Authority | E19: TRUE
A20: Burlington County Bridge Commission | C20: Burlington County Bridge Commission | E20: TRUE
A21: Camden County Improvement Authority | C21: Camden County Improvement Authority | E21: TRUE
A22: Camden County Pollution Control Financing Authority | C22: Camden County Pollution Control Financing Authority | E22: TRUE
A23: Camden County Utilities Authority | C23: Camden County Utilities Authority | E23: TRUE
A24: Camden Municipal Port Authority | C24: Camden Municipal Port Authority | E24: TRUE
A25: Camden Parking Authority | C25: Camden Parking Authority | E25: TRUE
A26: Camden Redevelopment Agency | C26: Camden Redevelopment Agency | E26: TRUE
A27: Cape May County Bridge Commission | C27: Cape May County Bridge Commission | E27: TRUE
A28: Cape May County Pollution Control Financing Authority | C28: Cape May County Pollution Control Financing Authority | E28: TRUE
A29: Cape May County Utilities Authority | C29: Cape May County Utilities Authority | E29: TRUE
A30: Carlstadt Sewerage Authority | C30: Carlstadt Sewerage Authority | E30: TRUE
A31: Carney's Point Sewerage Authority | C31: Carney's Point Sewerage Authority | E31: TRUE
A32: Carteret Port Authority | C32: Carteret Port Authority | E32: TRUE
A33: Carteret Redevelopment Agency | C33: Carteret Redevelopment Agency | E33: TRUE
A34: Cinnaminson Sewerage Authority | C34: Cinnaminson Sewerage Authority | E34: TRUE
A35: Clinton Sewerage Authority | C35: Clinton Sewerage Authority | E35: TRUE
A36: Cumberland County Improvement Authority | C36: Cumberland County Improvement Authority | E36: TRUE
A37: Cumberland County Utilities Authority | C37: Cumberland County Utilities Authority | E37: TRUE
A38: Delanco Sewerage Authority | C38: Delanco Sewerage Authority | E38: TRUE
A39: Delaware Municipal Utilities Authority | C39: Delaware Municipal Utilities Authority | E39: TRUE
A40: Deptford Municipal Utilities Authority | C40: Deptford Municipal Utilities Authority | E40: TRUE
A41: Dunellen Parking Authority | C41: Dunellen Parking Authority | E41: =IF(A41=C41,"TRUE","FALSE") -> TRUE
A42: East Brunswick Redevelopment Agency | C42: East Brunswick Redevelopment Agency | E42: =IF(A42=C42,"TRUE","FALSE") -> TRUE
A43: East Orange Parking Authority | C43: East Orange Parking Authority | E43: TRUE
A44: East Windsor Municipal Utilities Authority | C44: East Windsor Municipal Utilities Authority | E44: TRUE
A45: Eatontown Sewerage Authority | C45: Eatontown Sewerage Authority | E45: TRUE
A46: Edgewater Park Sewerage Authority | C46: Edgewater Park Sewerage Authority | E46: TRUE
A47: Egg Harbor Township Municipal Utilities Authority | C47: Egg Harbor Township Municipal Utilities Authority | E47: TRUE
A48: Elizabeth Parking Authority | C48: Elizabeth Parking Authority | E48: TRUE
A49: Essex County Improvement Authority | C49: Essex County Improvement Authority | E49: TRUE
A50: Essex County Utilities Authority | C50: Essex County Utilities Authority | E50: TRUE
A51: Evesham Municipal Utilities Authority | C51: Evesham Municipal Utilities Authority | E51: TRUE
A52: Ewing Township Redevelopment Agency | C52: Ewing Township Redevelopment Agency | E52: TRUE
A53: Ewing-Lawrence Sewerage Authority | C53: Ewing-Lawrence Sewerage Authority | E53: TRUE
A54: Fort Lee Parking Authority | C54: Fort Lee Parking Authority | E54: TRUE
A55: Franklin (Somerset) Sewerage Authority | C55: Franklin (Somerset) Sewerage Authority | E55: TRUE
A56: Franklin Redevelopment Agency | C56: Franklin Redevelopment Agency | E56: TRUE
A57: Garfield Redevelopment Agency | C57: Garfield Redevelopment Agency | E57: TRUE
A58: Gloucester County Improvement Authority | C58: Gloucester County Improvement Authority | E58: TRUE
A59: Gloucester County Pollution Control Financing Authority | C59: Gloucester County Pollution Control Financing Authority | E59: TRUE
A60: Gloucester County Utilities Authority | C60: Gloucester County Utilities Authority | E60: TRUE
A61: Gloucester Township Municipal Utilities Authority | C61: Gloucester Township Municipal Utilities Authority | E61: TRUE
A62: Greater Wildwoods Tourism Improvement and Development Authority | C62: Greater Wildwoods Tourism Improvement and Development Authority | E62: TRUE
A63: Hackettstown Municipal Utilities Authority | C63: Hackettstown Municipal Utilities Authority | E63: TRUE
A64: Hackettstown Parking Authority | C64: Hackettstown Parking Authority | E64: TRUE
A65: Hamilton Municipal Utilities Authority (Atlantic) | C65: Hamilton Municipal Utilities Authority (Atlantic) | E65: TRUE
A66: Hanover Sewerage Authority | C66: Hanover Sewerage Authority | E66: TRUE
A67: Hardyston Municipal Utilities Authority | C67: Hardyston Municipal Utilities Authority | E67: TRUE
A68: Harrison Redevelopment Agency | C68: Harrison Redevelopment Agency | E68: TRUE
A69: Hillsborough Municipal Utilities Authority | C69: Hillsborough Municipal Utilities Authority | E69: TRUE
A70: Hoboken Hospital Authority | C70: Hoboken Hospital Authority | E70: TRUE
A71: Hudson County Improvement Authority | C71: Hudson County Improvement Authority | E71: TRUE
A72: Jackson Municipal Utilities Authority | C72: Jackson Municipal Utilities Authority | E72: TRUE
A73: Jersey City Municipal Utilities Authority | C73: Jersey City Municipal Utilities Authority | E73: TRUE
A74: Jersey City Redevelopment Agency | C74: Jersey City Redevelopment Agency | E74: TRUE
A75: Kearny Municipal Utilities Authority | C75: Kearny Municipal Utilities Authority | E75: TRUE
A76: Lacey Municipal Utilities Authority | C76: Lacey Municipal Utilities Authority | E76: TRUE
A77: Lakewood Municipal Utilities Authority | C77: Lakewood Municipal Utilities Authority | E77: TRUE
A78: Lambertville Sewerage Authority | C78: Lambertville Sewerage Authority | E78: TRUE
A79: Landis Sewerage Authority | C79: Landis Sewerage Authority | E79: TRUE
A80: Lebanon Borough Sewerage Authority | C80: Lebanon Borough Sewerage Authority | E80: TRUE
A81: Linden-Roselle Sewerage Authority | C81: Linden-Roselle Sewerage Authority | E81: TRUE
A82: Little Egg Harbor Municipal Utilities Authority | C82: Little Egg Harbor Municipal Utilities Authority | E82: TRUE
A83: Logan Municipal Utilities Authority | C83: Logan Municipal Utilities Authority | E83: TRUE
A84: Long Branch Sewerage Authority | C84: Long Branch Sewerage Authority | E84: TRUE
A85: Lower Municipal Utilities Authority | C85: Lower Municipal Utilities Authority | E85: TRUE
A86: Manasquan River Regional Sewerage Authority | C86: Manasquan River Regional Sewerage Authority | E86: TRUE
A87: Manchester Municipal Utilities Authority | C87: Manchester Municipal Utilities Authority | E87: TRUE
A88: Mantua Municipal Utilities Authority | C88: Mantua Municipal Utilities Authority | E88: TRUE
A89: Mercer County Improvement Authority | C89: Mercer County Improvement Authority | E89: TRUE
A90: Merchantville-Pennsauken Water Commission | C90: Merchantville-Pennsauken Water Commission | E90: TRUE
A91: Metuchen Parking Authority | C91: Metuchen Parking Authority | E91: TRUE
A92: Middlesex County Improvement Authority | C92: Middlesex County Improvement Authority | E92: TRUE
A93: Middlesex County Utilities Authority | C93: Middlesex County Utilities Authority | E93: TRUE
A94: Middletown Sewerage Authority | C94: Middletown Sewerage Authority | E94: TRUE
A95: Milltown-Ford Avenue Redevelopment Agency | C95: Milltown-Ford Avenue Redevelopment Agency | E95: TRUE
A96: Monmouth County Bayshore Outfall Authority | C96: Monmouth County Bayshore Outfall Authority | E96: TRUE
A97: Monmouth County Improvement Authority | C97: Monmouth County Improvement Authority | E97: TRUE
A98: Monroe (Gloucester) Municipal Utilities Authority | C98: Monroe (Gloucester) Municipal Utilities Authority | E98: TRUE
A99: Morris County Improvement Authority | C99: Morris County Improvement Authority | E99: TRUE
A100: Morris County Utilities Authority | C100: Morris County Utilities Authority | E100: TRUE
A101: Morristown Parking Authority | C101: Morristown Parking Authority | E101: TRUE
A102: Mount Holly Municipal Utilities Authority | C102: Mount Holly Municipal Utilities Authority | E102: TRUE
A103: Mount Laurel Municipal Utilities Authority | C103: Mount Laurel Municipal Utilities Authority | E103: TRUE
A104: Musconetcong Sewerage Authority | C104: Musconetcong Sewerage Authority | E104: TRUE
A105: Neptune Township Sewerage Authority | C105: Neptune Township Sewerage Authority | E105: =IF(A105=C105,"TRUE","FALSE") -> TRUE
A106: New Brunswick Parking Authority | C106: New Brunswick Parking Authority | E106: TRUE
A107: New Jersey Public Power Authority | C107: New Jersey Public Power Authority | E107: TRUE
A108: Newark Parking Authority | C108: Newark Parking Authority | E108: TRUE
A109: Newton Parking Authority | C109: Newton Parking Authority | E109: TRUE
A110: North Bergen Municipal Utilities Authority | C110: North Bergen Municipal Utilities Authority | E110: TRUE
A111: North Bergen Parking Authority | C111: North Bergen Parking Authority | E111: TRUE
A112: North Hudson Regional Sewerage Authority | C112: North Hudson Regional Sewerage Authority | E112: TRUE
A113: Northwest Bergen County Utilities Authority | C113: Northwest Bergen County Utilities Authority | E113: TRUE
A114: Ocean County Utilities Authority | C114: Ocean County Utilities Authority | E114: TRUE
A115: Ocean Grove Sewerage Authority | C115: Ocean Grove Sewerage Authority | E115: TRUE
A116: Ocean Township Sewerage Authority | C116: Ocean Township Sewerage Authority | E116: TRUE
A117: Old Bridge Municipal Utilities Authority | C117: Old Bridge Municipal Utilities Authority | E117: TRUE
A118: Old Bridge Redevelopment Agency | C118: Old Bridge Redevelopment Agency | E118: TRUE
A119: Passaic County Improvement Authority | C119: Passaic County Improvement Authority | E119: TRUE
A120: Passaic County Utilities Authority | C120: Passaic County Utilities Authority | E120: TRUE
A121: Passaic Parking Authority | C121: Passaic Parking Authority | E121: TRUE
A122: Passaic Redevelopment Agency | C122: Passaic Redevelopment Agency | E122: TRUE
A123: Passaic Valley Water Commission | C123: Passaic Valley Water Commission | E123: TRUE
A124: Paterson Parking Authority | C124: Paterson Parking Authority | E124: TRUE
A125: Penns Grove Redevelopment Agency | C125: Penns Grove Redevelopment Agency | E125: TRUE
A126: Penns Grove Sewerage Authority | C126: Penns Grove Sewerage Authority | E126: TRUE
A127: Pennsauken Sewerage Authority | C127: Pennsauken Sewerage Authority | E127: TRUE
A128: Pennsville Sewerage Authority | C128: Pennsville Sewerage Authority | E128: TRUE
A129: Pequannock River Basin Regional Sewerage Authority | C129: Pequannock River Basin Regional Sewerage Authority | E129: TRUE
A130: Pequannock-Lincoln Park-Fairfield Sewerage Authority | C130: Pequannock-Lincoln Park-Fairfield Sewerage Authority | E130: TRUE
A131: Perth Amboy Redevelopment Agency | C131: Perth Amboy Redevelopment Agency | E131: TRUE
A132: Pine Hill Municipal Utilities Authority | C132: Pine Hill Municipal Utilities Authority | E132: TRUE
A133: Plainfield Regional Sewerage Authority | C133: Plainfield Regional Sewerage Authority | E133: TRUE
A134: Plumsted Municipal Utilities Authority | C134: Plumsted Municipal Utilities Authority | E134: TRUE
A135: Point Pleasant Beach Parking Authority | C135: Point Pleasant Beach Parking Authority | E135: TRUE
A136: Pompton Lakes Municipal Utilities Authority | C136: Pompton Lakes Municipal Utilities Authority | E136: TRUE
A137: Rahway Redevelopment Agency | C137: Rahway Redevelopment Agency | E137: TRUE
A138: Rahway Valley Sewerage Authority | C138: Rahway Valley Sewerage Authority | E138: TRUE
A139: Raritan Township Municipal Utilities Authority | C139: Raritan Township Municipal Utilities Authority | E139: TRUE
A140: Readington-Lebanon Sewerage Authority | C140: Readington-Lebanon Sewerage Authority | E140: TRUE
A141: Riverside Sewerage Authority | C141: Riverside Sewerage Authority | E141: TRUE
A142: Rockaway Valley Regional Sewerage Authority | C142: Rockaway Valley Regional Sewerage Authority | E142: TRUE
A143: Rockleigh Sewerage Authority | C143: Rockleigh Sewerage Authority | E143: TRUE
A144: Salem County Improvement Authority | C144: Salem County Improvement Authority | E144: TRUE
A145: Salem County Pollution Control Financing Authority | C145: Salem County Pollution Control Financing Authority | E145: TRUE
A146: Salem Municipal Port Authority | C146: Salem Municipal Port Authority | E146: TRUE
A147: Sayreville Redevelopment Agency | C147: Sayreville Redevelopment Agency | E147: TRUE
A148: Secaucus Municipal Utilities Authority | C148: Secaucus Municipal Utilities Authority | E148: TRUE
A149: Somerset County Improvement Authority | C149: Somerset County Improvement Authority | E149: TRUE
A150: Somerset-Raritan Valley Regional Sewerage Authority | C150: Somerset-Raritan Valley Regional Sewerage Authority | E150: TRUE
A151: South Amboy Redevelopment Agency | C151: South Amboy Redevelopment Agency | E151: TRUE
A152: South Monmouth Regional Sewerage Authority | C152: South Monmouth Regional Sewerage Authority | E152: TRUE
A153: South Orange Parking Authority | C153: South Orange Parking Authority | E153: TRUE
A154: South Toms River Sewerage Authority | C154: South Toms River Sewerage Authority | E154: TRUE
A155: Southeast Monmouth Municipal Utilities Authority | C155: Southeast Monmouth Municipal Utilities Authority | E155: TRUE
A156: Southeast Morris County Utilities Authority | C156: Southeast Morris County Utilities Authority | E156: TRUE
A157: Stony Brook Regional Sewerage Authority | C157: Stony Brook Regional Sewerage Authority | E157: TRUE
A158: Sussex County Municipal Utilities Authority | C158: Sussex County Municipal Utilities Authority | E158: TRUE
A159: Toms River Municipal Utilities Authority | C159: Toms River Municipal Utilities Authority | E159: TRUE
A160: Toms River Parking Authority | C160: Toms River Parking Authority | E160: TRUE
A161: Trenton Parking Authority | C161: Trenton Parking Authority | E161: TRUE
A162: Two Rivers Water Reclamation Authority | C162: Two Rivers Water Reclamation Authority | E162: TRUE
A163: Union City Parking Authority | C163: Union City Parking Authority | E163: TRUE
A164: Union City Redevelopment Authority | C164: Union City Redevelopment Authority | E164: TRUE
A165: Union County Improvement Authority | C165: Union County Improvement Authority | E165: TRUE
A166: Union County Utilities Authority | C166: Union County Utilities Authority | E166: TRUE
A167: Vernon Township Municipal Utilities Authority | C167: Vernon Township Municipal Utilities Authority | E167: =IF(A167=C167,"TRUE","FALSE") -> TRUE
A168: Wanaque Valley Regional Sewerage Authority | C168: Wanaque Valley Regional Sewerage Authority | E168: TRUE
A169: Warren County - Pequest River Utilities Authority | C169: Warren County - Pequest River Utilities Authority | E169: TRUE
A170: Warren County Pollution Control Financing Authority | C170: Warren County Pollution Control Financing Authority | E170: TRUE
A171: Washington Township Municipal Utilities Authority (Gloucester) | C171: Washington Township Municipal Utilities Authority (Gloucester) | E171: TRUE
A172: Washington Township Municipal Utilities Authority (Morris) | C172: Washington Township Municipal Utilities Authority (Morris) | E172: TRUE
A173: Weehawken Parking Authority | C173: Weehawken Parking Authority | E173: TRUE
A174: West New York Parking Authority | C174: West New York Parking Authority | E174: TRUE
A175: West Windsor Parking Authority | C175: West Windsor Parking Authority | E175: TRUE
A176: Western Monmouth Utilities Authority | C176: Western Monmouth Utilities Authority | E176: TRUE
A177: Westwood Parking Authority | C177: Westwood Parking Authority | E177: TRUE
A178: Weymouth Municipal Utilities Authority | C178: Weymouth Municipal Utilities Authority | E178: TRUE
A179: Willingboro Municipal Utilities Authority | C179: Willingboro Municipal Utilities Authority | E179: TRUE
A180: Woodbine Municipal Port Authority | C180: Woodbine Municipal Port Authority | E180: TRUE
A181: Woodbine Municipal Utilities Authority | C181: Woodbine Municipal Utilities Authority | E181: TRUE
A182: Woodbridge Redevelopment Agency | C182: Woodbridge Redevelopment Agency | E182: TRUE
A183: Woodstown Sewerage Authority | C183: Woodstown Sewerage Authority | E183: TRUE
A184: Wrightstown Municipal Utilities Authority | C184: Wrightstown Municipal Utilities Authority | E184: TRUE

Sheet KEY METRICS (hidden)
A1: AUTHORITY BUDGET KEY METRICS
C3: Current Year (Proposed) | D3: Prior Year
B4: Health Benefits
B5: Active Employees
B6: # of Covered Members | C6: ='Health Benefits (N-5)'!B13 -> 0 | D6: ='Health Benefits (N-5)'!E13 -> 0
B7: Total Cost | C7: ='Health Benefits (N-5)'!D13 -> 0 | D7: ='Health Benefits (N-5)'!G13 -> 0
B8: Commissioners
B9: # of Covered Members | C9: ='Health Benefits (N-5)'!B21 -> 0 | D9: ='Health Benefits (N-5)'!E21 -> 0
B10: Total Cost | C10: ='Health Benefits (N-5)'!D21 -> 0 | D10: ='Health Benefits (N-5)'!G21 -> 0
B11: Retirees
B12: # of Covered Members | C12: ='Health Benefits (N-5)'!B29 -> 0 | D12: ='Health Benefits (N-5)'!E29 -> 0
B13: Total Cost | C13: ='Health Benefits (N-5)'!D29 -> 0 | D13: ='Health Benefits (N-5)'!G29 -> 0
B14: GRAND TOTAL (Total Cost) | C14: =C7+C10+C13 -> 0 | D14: =D7+D10+D13 -> 0
B16: SHBP Coverage (Medical) | C16: ='Health Benefits (N-5)'!D33 -> 0.00
B17: SHBP Coverage (Prescription) | C17: ='Health Benefits (N-5)'!D34 -> 0.00
B19: Accumulated Absences
B20: Gross Days of Accumulated Compensated Absences | C20: =SUM(#REF!,#REF!,#REF!,#REF!,#REF!,#REF!,#REF!,#REF!,#REF!) -> 
B21: Dollar Value of Accrued Compensated Absence Liability | C21: =#REF! -> 
B23: Shared Services
B24: Total Amount to be Received by/Paid from Authority | C24: =SUM('Shared Services (N-7)'!G7:G26) -> 0
B26: Revenues
B27: Operation #1
B28: Service Charges | C28: ='F-2 Revenues (Proposed)'!D13 -> 122,425 | D28: ='F-3 Revenues (PY Adopted)'!D13 -> 80,200
B29: Connection Fees | C29: ='F-2 Revenues (Proposed)'!D20 -> 0 | D29: ='F-3 Revenues (PY Adopted)'!D20 -> 0
B30: Parking Fees | C30: ='F-2 Revenues (Proposed)'!D26 -> 0 | D30: ='F-3 Revenues (PY Adopted)'!D26 -> 0
B31: Other Revenue | C31: ='F-2 Revenues (Proposed)'!D39 -> 0 | D31: ='F-3 Revenues (PY Adopted)'!D39 -> 0
B32: Total Operating Revenue | C32: ='F-2 Revenues (Proposed)'!D40 -> 122,425 | D32: ='F-3 Revenues (PY Adopted)'!D40 -> 80,200
B34: Other Revenues (Non-Operating) | C34: ='F-2 Revenues (Proposed)'!D49 -> 0 | D34: ='F-3 Revenues (PY Adopted)'!D49 -> 0
B35: Interest on Investments and Deposits | C35: ='F-2 Revenues (Proposed)'!D54 -> 0 | D35: ='F-3 Revenues (PY Adopted)'!D54 -> 0
B36: Total Non-Operating Revenue | C36: ='F-2 Revenues (Proposed)'!D55 -> 0 | D36: ='F-3 Revenues (PY Adopted)'!D55 -> 0
B38: Total Anticipated Revenues - Operation 1 | C38: ='F-2 Revenues (Proposed)'!D56 -> 122,425 | D38: ='F-3 Revenues (PY Adopted)'!D56 -> 80,200
B40: Operation #2
B41: Service Charges | C41: ='F-2 Revenues (Proposed)'!E13 -> 234,309 | D41: ='F-3 Revenues (PY Adopted)'!E13 -> 161,880
B42: Connection Fees | C42: ='F-2 Revenues (Proposed)'!E20 -> 0 | D42: ='F-3 Revenues (PY Adopted)'!E20 -> 0
B43: Parking Fees | C43: ='F-2 Revenues (Proposed)'!E26 -> 0 | D43: ='F-3 Revenues (PY Adopted)'!E26 -> 0
B44: Other Revenue | C44: ='F-2 Revenues (Proposed)'!E39 -> 0 | D44: ='F-3 Revenues (PY Adopted)'!E39 -> 0
B45: Total Operating Revenue | C45: ='F-2 Revenues (Proposed)'!E40 -> 234,309 | D45: ='F-3 Revenues (PY Adopted)'!E40 -> 161,880
B47: Other Revenues (Non-Operating) | C47: ='F-2 Revenues (Proposed)'!E49 -> 0 | D47: ='F-3 Revenues (PY Adopted)'!E49 -> 0
B48: Interest on Investments and Deposits | C48: ='F-2 Revenues (Proposed)'!E54 -> 0 | D48: ='F-3 Revenues (PY Adopted)'!E54 -> 0
B49: Total Non-Operating Revenue | C49: ='F-2 Revenues (Proposed)'!E55 -> 0 | D49: ='F-3 Revenues (PY Adopted)'!E55 -> 0
B51: Total Anticipated Revenues - Operation 2 | C51: ='F-2 Revenues (Proposed)'!E56 -> 234,309 | D51: ='F-3 Revenues (PY Adopted)'!E56 -> 161,880
B53: Operation #3
B54: Service Charges | C54: ='F-2 Revenues (Proposed)'!F13 -> 0 | D54: ='F-3 Revenues (PY Adopted)'!F13 -> 0
B55: Connection Fees | C55: ='F-2 Revenues (Proposed)'!F20 -> 0 | D55: ='F-3 Revenues (PY Adopted)'!F20 -> 0
B56: Parking Fees | C56: ='F-2 Revenues (Proposed)'!F26 -> 0 | D56: ='F-3 Revenues (PY Adopted)'!F26 -> 0
B57: Other Revenue | C57: ='F-2 Revenues (Proposed)'!F39 -> 0 | D57: ='F-3 Revenues (PY Adopted)'!F39 -> 0
B58: Total Operating Revenue | C58: ='F-2 Revenues (Proposed)'!F40 -> 0 | D58: ='F-3 Revenues (PY Adopted)'!F40 -> 0
B60: Other Revenues (Non-Operating) | C60: ='F-2 Revenues (Proposed)'!F49 -> 0 | D60: ='F-3 Revenues (PY Adopted)'!F49 -> 0
B61: Interest on Investments and Deposits | C61: ='F-2 Revenues (Proposed)'!F54 -> 0 | D61: ='F-3 Revenues (PY Adopted)'!F54 -> 0
B62: Total Non-Operating Revenue | C62: ='F-2 Revenues (Proposed)'!F55 -> 0 | D62: ='F-3 Revenues (PY Adopted)'!F55 -> 0
B64: Total Anticipated Revenues - Operation 3 | C64: ='F-2 Revenues (Proposed)'!F56 -> 0 | D64: ='F-3 Revenues (PY Adopted)'!F56 -> 0
B66: Operation #4
B67: Service Charges | C67: ='F-2 Revenues (Proposed)'!G13 -> 0 | D67: ='F-3 Revenues (PY Adopted)'!G13 -> 0
B68: Connection Fees | C68: ='F-2 Revenues (Proposed)'!G20 -> 0 | D68: ='F-3 Revenues (PY Adopted)'!G20 -> 0
B69: Parking Fees | C69: ='F-2 Revenues (Proposed)'!G26 -> 0 | D69: ='F-3 Revenues (PY Adopted)'!G26 -> 0
B70: Other Revenue | C70: ='F-2 Revenues (Proposed)'!G39 -> 0 | D70: ='F-3 Revenues (PY Adopted)'!G39 -> 0
B71: Total Operating Revenue | C71: ='F-2 Revenues (Proposed)'!G40 -> 0 | D71: ='F-3 Revenues (PY Adopted)'!G40 -> 0
B73: Other Revenues (Non-Operating) | C73: ='F-2 Revenues (Proposed)'!G49 -> 0 | D73: ='F-3 Revenues (PY Adopted)'!G49 -> 0
B74: Interest on Investments and Deposits | C74: ='F-2 Revenues (Proposed)'!G54 -> 0 | D74: ='F-3 Revenues (PY Adopted)'!G54 -> 0
B75: Total Non-Operating Revenue | C75: ='F-2 Revenues (Proposed)'!G55 -> 0 | D75: ='F-3 Revenues (PY Adopted)'!G55 -> 0
B77: Total Anticipated Revenues - Operation 4 | C77: ='F-2 Revenues (Proposed)'!G56 -> 0 | D77: ='F-3 Revenues (PY Adopted)'!G56 -> 0
B79: Operation #5
B80: Service Charges | C80: ='F-2 Revenues (Proposed)'!H13 -> 0 | D80: ='F-3 Revenues (PY Adopted)'!H13 -> 0
B81: Connection Fees | C81: ='F-2 Revenues (Proposed)'!H20 -> 0 | D81: ='F-3 Revenues (PY Adopted)'!H20 -> 0
B82: Parking Fees | C82: ='F-2 Revenues (Proposed)'!H26 -> 0 | D82: ='F-3 Revenues (PY Adopted)'!H26 -> 0
B83: Other Revenue | C83: ='F-2 Revenues (Proposed)'!H39 -> 0 | D83: ='F-3 Revenues (PY Adopted)'!H39 -> 0
B84: Total Operating Revenue | C84: ='F-2 Revenues (Proposed)'!H40 -> 0 | D84: ='F-3 Revenues (PY Adopted)'!H40 -> 0
B86: Other Revenues (Non-Operating) | C86: ='F-2 Revenues (Proposed)'!H49 -> 0 | D86: ='F-3 Revenues (PY Adopted)'!H49 -> 0
B87: Interest on Investments and Deposits | C87: ='F-2 Revenues (Proposed)'!H54 -> 0 | D87: ='F-3 Revenues (PY Adopted)'!H54 -> 0
B88: Total Non-Operating Revenue | C88: ='F-2 Revenues (Proposed)'!H55 -> 0 | D88: ='F-3 Revenues (PY Adopted)'!H55 -> 0
B90: Total Anticipated Revenues - Operation 5 | C90: ='F-2 Revenues (Proposed)'!H56 -> 0 | D90: ='F-3 Revenues (PY Adopted)'!H56 -> 0
B92: Operation #6
B93: Service Charges | C93: ='F-2 Revenues (Proposed)'!I13 -> 0 | D93: ='F-3 Revenues (PY Adopted)'!I13 -> 0
B94: Connection Fees | C94: ='F-2 Revenues (Proposed)'!I20 -> 0 | D94: ='F-3 Revenues (PY Adopted)'!I20 -> 0
B95: Parking Fees | C95: ='F-2 Revenues (Proposed)'!I26 -> 0 | D95: ='F-3 Revenues (PY Adopted)'!I26 -> 0
B96: Other Revenue | C96: ='F-2 Revenues (Proposed)'!I39 -> 0 | D96: ='F-3 Revenues (PY Adopted)'!I39 -> 0
B97: Total Operating Revenue | C97: ='F-2 Revenues (Proposed)'!I40 -> 0 | D97: ='F-3 Revenues (PY Adopted)'!I40 -> 0
B99: Other Revenues (Non-Operating) | C99: ='F-2 Revenues (Proposed)'!H49 -> 0 | D99: ='F-3 Revenues (PY Adopted)'!I49 -> 0
B100: Interest on Investments and Deposits | C100: ='F-2 Revenues (Proposed)'!I54 -> 0 | D100: ='F-3 Revenues (PY Adopted)'!I54 -> 0
B101: Total Non-Operating Revenue | C101: ='F-2 Revenues (Proposed)'!I55 -> 0 | D101: ='F-3 Revenues (PY Adopted)'!I55 -> 0
B103: Total Anticipated Revenues - Operation 6 | C103: ='F-2 Revenues (Proposed)'!I56 -> 0 | D103: ='F-3 Revenues (PY Adopted)'!I56 -> 0
B105: TOTALS
B106: Total Service Charges - All Operations | C106: ='F-2 Revenues (Proposed)'!J13 -> 356,734 | D106: ='F-3 Revenues (PY Adopted)'!J13 -> 242,080
B107: Total Connection Fees - All Operations | C107: ='F-2 Revenues (Proposed)'!J20 -> 0 | D107: ='F-3 Revenues (PY Adopted)'!J20 -> 0
B108: Total Parking Fees - All Operations | C108: ='F-2 Revenues (Proposed)'!J26 -> 0 | D108: ='F-3 Revenues (PY Adopted)'!J26 -> 0
B109: Total Other Revenue - All Operations | C109: ='F-2 Revenues (Proposed)'!J39 -> 0 | D109: ='F-3 Revenues (PY Adopted)'!J39 -> 0
B110: Total Operating Revenue - All Operations | C110: ='F-2 Revenues (Proposed)'!J40 -> 356,734 | D110: ='F-3 Revenues (PY Adopted)'!J40 -> 242,080
B112: Total Other Revenues (Non-Operating) - All Operations | C112: ='F-2 Revenues (Proposed)'!J49 -> 0 | D112: ='F-3 Revenues (PY Adopted)'!J49 -> 0
B113: Total Interest on Investments and Deposits - All Operations | C113: ='F-2 Revenues (Proposed)'!J54 -> 0 | D113: ='F-3 Revenues (PY Adopted)'!J54 -> 0
B114: Total Non-Operating Revenue - All Operations | C114: ='F-2 Revenues (Proposed)'!J55 -> 0 | D114: ='F-3 Revenues (PY Adopted)'!J55 -> 0
B116: GRAND TOTAL - Total Anticipated Revenues - All Operations | C116: ='F-2 Revenues (Proposed)'!J56 -> 356,734 | D116: ='F-3 Revenues (PY Adopted)'!I56 -> 0
B118: Appropriations
B119: Operation #1
B120: Administration - Personnel | C120: ='F-4 Appropriations (Proposed)'!D10 -> 22,500 | D120: ='F-5 Appropriations (PY Adopted)'!D10 -> 25,500
B121: Administration - Other | C121: ='F-4 Appropriations (Proposed)'!D17 -> 39,550 | D121: ='F-5 Appropriations (PY Adopted)'!D17 -> 16,700
B122: Total Administration | C122: ='F-4 Appropriations (Proposed)'!D18 -> 62,050 | D122: ='F-5 Appropriations (PY Adopted)'!D118 -> 0
B123: Cost of Providing Services - Personnel | C123: ='F-4 Appropriations (Proposed)'!D22 -> 0 | D123: ='F-5 Appropriations (PY Adopted)'!D22 -> 0
B124: Cost of Providing Services - Other | C124: ='F-4 Appropriations (Proposed)'!D29 -> 60,375 | D124: ='F-5 Appropriations (PY Adopted)'!D29 -> 38,000
B125: Total Cost of Providing Services | C125: ='F-4 Appropriations (Proposed)'!D30 -> 60,375 | D125: ='F-5 Appropriations (PY Adopted)'!D30 -> 38,000
B126: Total Principal Payments on Debt Service in Lieu of Depreciation | C126: ='F-4 Appropriations (Proposed)'!D31 -> 0 | D126: ='F-5 Appropriations (PY Adopted)'!D31 -> 0
B127: Total Operating Appropriations | C127: ='F-4 Appropriations (Proposed)'!D32 -> 122,425 | D127: ='F-5 Appropriations (PY Adopted)'!D32 -> 80,200
B129: Total Interest Payments on Debt | C129: ='F-4 Appropriations (Proposed)'!D34 -> 0 | D129: ='F-5 Appropriations (PY Adopted)'!D34 -> 0
B130: Operations & Maintenance Reserve | C130: ='F-4 Appropriations (Proposed)'!D35 -> 0 | D130: ='F-5 Appropriations (PY Adopted)'!D35 -> 0
B131: Renewal & Replacement Reserve | C131: ='F-4 Appropriations (Proposed)'!D36 -> 0 | D131: ='F-5 Appropriations (PY Adopted)'!D36 -> 0
B132: Municipality/County Appropriation | C132: ='F-4 Appropriations (Proposed)'!D37 -> 0 | D132: ='F-5 Appropriations (PY Adopted)'!D37 -> 0
B133: Other Reserves | C133: ='F-4 Appropriations (Proposed)'!D38 -> 0 | D133: ='F-5 Appropriations (PY Adopted)'!D38 -> 0
B134: Total Non-Operating Appropriations | C134: ='F-4 Appropriations (Proposed)'!D39 -> 0 | D134: ='F-5 Appropriations (PY Adopted)'!D39 -> 0
B136: Total Appropriations - Operation #1 | C136: ='F-4 Appropriations (Proposed)'!D40 -> 122,425 | D136: ='F-5 Appropriations (PY Adopted)'!D40 -> 80,200
B138: Accumulated Deficit - Operation #1 | C138: ='F-4 Appropriations (Proposed)'!D41 -> 0 | D138: ='F-5 Appropriations (PY Adopted)'!D41 -> 0
B140: Total Unrestricted Net Position Utilized - Operation #1 | C140: ='F-4 Appropriations (Proposed)'!D46 -> 0 | D140: ='F-5 Appropriations (PY Adopted)'!D46 -> 0
B142: TOTAL NET APPROPRIATIONS - Operation #1 | C142: ='F-4 Appropriations (Proposed)'!D47 -> 122,425 | D142: ='F-5 Appropriations (PY Adopted)'!D47 -> 80,200
B144: Operation #2
B145: Administration - Personnel | C145: ='F-4 Appropriations (Proposed)'!E10 -> 22,500 | D145: ='F-5 Appropriations (PY Adopted)'!E10 -> 25,500
B146: Administration - Other | C146: ='F-4 Appropriations (Proposed)'!E17 -> 39,550 | D146: ='F-5 Appropriations (PY Adopted)'!E17 -> 16,823
B147: Total Administration | C147: ='F-4 Appropriations (Proposed)'!E18 -> 62,050 | D147: ='F-5 Appropriations (PY Adopted)'!E18 -> 42,323
B148: Cost of Providing Services - Personnel | C148: ='F-4 Appropriations (Proposed)'!E22 -> 0 | D148: ='F-5 Appropriations (PY Adopted)'!E22 -> 0
B149: Cost of Providing Services - Other | C149: ='F-4 Appropriations (Proposed)'!E29 -> 161,375 | D149: ='F-5 Appropriations (PY Adopted)'!E29 -> 125,000
B150: Total Cost of Providing Services | C150: ='F-4 Appropriations (Proposed)'!E30 -> 161,375 | D150: ='F-5 Appropriations (PY Adopted)'!E30 -> 125,000
B151: Total Principal Payments on Debt Service in Lieu of Depreciation | C151: ='F-4 Appropriations (Proposed)'!E31 -> 5,033 | D151: ='F-5 Appropriations (PY Adopted)'!E31 -> 4,898
B152: Total Operating Appropriations | C152: ='F-4 Appropriations (Proposed)'!E32 -> 228,458 | D152: ='F-5 Appropriations (PY Adopted)'!E32 -> 172,221
B154: Total Interest Payments on Debt | C154: ='F-4 Appropriations (Proposed)'!E34 -> 5,851 | D154: ='F-5 Appropriations (PY Adopted)'!E34 -> 5,986
B155: Operations & Maintenance Reserve | C155: ='F-4 Appropriations (Proposed)'!E35 -> 0 | D155: ='F-5 Appropriations (PY Adopted)'!E35 -> 0
B156: Renewal & Replacement Reserve | C156: ='F-4 Appropriations (Proposed)'!E36 -> 0 | D156: ='F-5 Appropriations (PY Adopted)'!E36 -> 0
B157: Municipality/County Appropriation | C157: ='F-4 Appropriations (Proposed)'!E37 -> 0 | D157: ='F-5 Appropriations (PY Adopted)'!E37 -> 0
B158: Other Reserves | C158: ='F-4 Appropriations (Proposed)'!E38 -> 0 | D158: ='F-5 Appropriations (PY Adopted)'!E38 -> 0
B159: Total Non-Operating Appropriations | C159: ='F-4 Appropriations (Proposed)'!E39 -> 5,851 | D159: ='F-5 Appropriations (PY Adopted)'!E39 -> 5,986
B161: Total Appropriations - Operation #2 | C161: ='F-4 Appropriations (Proposed)'!E40 -> 234,309 | D161: ='F-5 Appropriations (PY Adopted)'!E40 -> 178,207
B163: Accumulated Deficit - Operation #2 | C163: ='F-4 Appropriations (Proposed)'!E41 -> 0 | D163: ='F-5 Appropriations (PY Adopted)'!E41 -> 0
B165: Total Unrestricted Net Position Utilized - Operation #2 | C165: ='F-4 Appropriations (Proposed)'!E46 -> 0 | D165: ='F-5 Appropriations (PY Adopted)'!E46 -> 16,327
B167: TOTAL NET APPROPRIATIONS - Operation #2 | C167: ='F-4 Appropriations (Proposed)'!E47 -> $234,309 | D167: ='F-5 Appropriations (PY Adopted)'!E47 -> 161,880
B169: Operation #3
B170: Administration - Personnel | C170: ='F-4 Appropriations (Proposed)'!F10 -> 0 | D170: ='F-5 Appropriations (PY Adopted)'!F10 -> 0
B171: Administration - Other | C171: ='F-4 Appropriations (Proposed)'!F17 -> 0 | D171: ='F-5 Appropriations (PY Adopted)'!F17 -> 0
B172: Total Administration | C172: ='F-4 Appropriations (Proposed)'!F18 -> 0 | D172: ='F-5 Appropriations (PY Adopted)'!F18 -> 0
B173: Cost of Providing Services - Personnel | C173: ='F-4 Appropriations (Proposed)'!F22 -> 0 | D173: ='F-5 Appropriations (PY Adopted)'!F22 -> 0
B174: Cost of Providing Services - Other | C174: ='F-4 Appropriations (Proposed)'!F29 -> 0 | D174: ='F-5 Appropriations (PY Adopted)'!F29 -> 0
B175: Total Cost of Providing Services | C175: ='F-4 Appropriations (Proposed)'!F30 -> 0 | D175: ='F-5 Appropriations (PY Adopted)'!F30 -> 0
B176: Total Principal Payments on Debt Service in Lieu of Depreciation | C176: ='F-4 Appropriations (Proposed)'!F31 -> 0 | D176: ='F-5 Appropriations (PY Adopted)'!F31 -> 0
B177: Total Operating Appropriations | C177: ='F-4 Appropriations (Proposed)'!F32 -> 0 | D177: ='F-5 Appropriations (PY Adopted)'!F32 -> 0
B179: Total Interest Payments on Debt | C179: ='F-4 Appropriations (Proposed)'!F34 -> 0 | D179: ='F-5 Appropriations (PY Adopted)'!F34 -> 0
B180: Operations & Maintenance Reserve | C180: ='F-4 Appropriations (Proposed)'!F35 -> 0 | D180: ='F-5 Appropriations (PY Adopted)'!F35 -> 0
B181: Renewal & Replacement Reserve | C181: ='F-4 Appropriations (Proposed)'!F36 -> 0 | D181: ='F-5 Appropriations (PY Adopted)'!F36 -> 0
B182: Municipality/County Appropriation | C182: ='F-4 Appropriations (Proposed)'!F37 -> 0 | D182: ='F-5 Appropriations (PY Adopted)'!F37 -> 0
B183: Other Reserves | C183: ='F-4 Appropriations (Proposed)'!F38 -> 0 | D183: ='F-5 Appropriations (PY Adopted)'!F38 -> 0
B184: Total Non-Operating Appropriations | C184: ='F-4 Appropriations (Proposed)'!F39 -> 0 | D184: ='F-5 Appropriations (PY Adopted)'!F39 -> 0
B186: Total Appropriations - Operation #3 | C186: ='F-4 Appropriations (Proposed)'!F40 -> 0 | D186: ='F-5 Appropriations (PY Adopted)'!F40 -> 0
B188: Accumulated Deficit - Operation #3 | C188: ='F-4 Appropriations (Proposed)'!F41 -> 0 | D188: ='F-5 Appropriations (PY Adopted)'!F41 -> 0
B190: Total Unrestricted Net Position Utilized - Operation #3 | C190: ='F-4 Appropriations (Proposed)'!F46 -> 0 | D190: ='F-5 Appropriations (PY Adopted)'!F46 -> 0
B192: TOTAL NET APPROPRIATIONS - Operation #3 | C192: ='F-4 Appropriations (Proposed)'!F47 -> 0 | D192: ='F-5 Appropriations (PY Adopted)'!F47 -> 0
B194: Operation #4
B195: Administration - Personnel | C195: ='F-4 Appropriations (Proposed)'!G10 -> 0 | D195: ='F-5 Appropriations (PY Adopted)'!G10 -> 0
B196: Administration - Other | C196: ='F-4 Appropriations (Proposed)'!G17 -> 0 | D196: ='F-5 Appropriations (PY Adopted)'!G17 -> 0
B197: Total Administration | C197: ='F-4 Appropriations (Proposed)'!G18 -> 0 | D197: ='F-5 Appropriations (PY Adopted)'!G18 -> 0
B198: Cost of Providing Services - Personnel | C198: ='F-4 Appropriations (Proposed)'!G22 -> 0 | D198: ='F-5 Appropriations (PY Adopted)'!G22 -> 0
B199: Cost of Providing Services - Other | C199: ='F-4 Appropriations (Proposed)'!G29 -> 0 | D199: ='F-5 Appropriations (PY Adopted)'!G29 -> 0
B200: Total Cost of Providing Services | C200: ='F-4 Appropriations (Proposed)'!G30 -> 0 | D200: ='F-5 Appropriations (PY Adopted)'!G30 -> 0
B201: Total Principal Payments on Debt Service in Lieu of Depreciation | C201: ='F-4 Appropriations (Proposed)'!G31 -> 0 | D201: ='F-5 Appropriations (PY Adopted)'!G31 -> 0
B202: Total Operating Appropriations | C202: ='F-4 Appropriations (Proposed)'!G32 -> 0 | D202: ='F-5 Appropriations (PY Adopted)'!G32 -> 0
B204: Total Interest Payments on Debt | C204: ='F-4 Appropriations (Proposed)'!G34 -> 0 | D204: ='F-5 Appropriations (PY Adopted)'!G34 -> 0
B205: Operations & Maintenance Reserve | C205: ='F-4 Appropriations (Proposed)'!G35 -> 0 | D205: ='F-5 Appropriations (PY Adopted)'!G35 -> 0
B206: Renewal & Replacement Reserve | C206: ='F-4 Appropriations (Proposed)'!G36 -> 0 | D206: ='F-5 Appropriations (PY Adopted)'!G36 -> 0
B207: Municipality/County Appropriation | C207: ='F-4 Appropriations (Proposed)'!G37 -> 0 | D207: ='F-5 Appropriations (PY Adopted)'!G37 -> 0
B208: Other Reserves | C208: ='F-4 Appropriations (Proposed)'!G38 -> 0 | D208: ='F-5 Appropriations (PY Adopted)'!G38 -> 0
B209: Total Non-Operating Appropriations | C209: ='F-4 Appropriations (Proposed)'!G39 -> 0 | D209: ='F-5 Appropriations (PY Adopted)'!G39 -> 0
B211: Total Appropriations - Operation #4 | C211: ='F-4 Appropriations (Proposed)'!G40 -> 0 | D211: ='F-5 Appropriations (PY Adopted)'!G40 -> 0
B213: Accumulated Deficit - Operation #4 | C213: ='F-4 Appropriations (Proposed)'!G41 -> 0 | D213: ='F-5 Appropriations (PY Adopted)'!G41 -> 0
B215: Total Unrestricted Net Position Utilized - Operation #4 | C215: ='F-4 Appropriations (Proposed)'!G46 -> 0 | D215: ='F-5 Appropriations (PY Adopted)'!G46 -> 0
B217: TOTAL NET APPROPRIATIONS - Operation #4 | C217: ='F-4 Appropriations (Proposed)'!G47 -> 0 | D217: ='F-5 Appropriations (PY Adopted)'!G47 -> 0
B219: Operation #5
B220: Administration - Personnel | C220: ='F-4 Appropriations (Proposed)'!H10 -> 0 | D220: ='F-5 Appropriations (PY Adopted)'!H10 -> 0
B221: Administration - Other | C221: ='F-4 Appropriations (Proposed)'!H17 -> 0 | D221: ='F-5 Appropriations (PY Adopted)'!H17 -> 0
B222: Total Administration | C222: ='F-4 Appropriations (Proposed)'!H18 -> 0 | D222: ='F-5 Appropriations (PY Adopted)'!H18 -> 0
B223: Cost of Providing Services - Personnel | C223: ='F-4 Appropriations (Proposed)'!H22 -> 0 | D223: ='F-5 Appropriations (PY Adopted)'!H22 -> 0
B224: Cost of Providing Services - Other | C224: ='F-4 Appropriations (Proposed)'!H29 -> 0 | D224: ='F-5 Appropriations (PY Adopted)'!H29 -> 0
B225: Total Cost of Providing Services | C225: ='F-4 Appropriations (Proposed)'!H30 -> 0 | D225: ='F-5 Appropriations (PY Adopted)'!H30 -> 0
B226: Total Principal Payments on Debt Service in Lieu of Depreciation | C226: ='F-4 Appropriations (Proposed)'!H31 -> 0 | D226: ='F-5 Appropriations (PY Adopted)'!H31 -> 0
B227: Total Operating Appropriations | C227: ='F-4 Appropriations (Proposed)'!H32 -> 0 | D227: ='F-5 Appropriations (PY Adopted)'!H32 -> 0
B229: Total Interest Payments on Debt | C229: ='F-4 Appropriations (Proposed)'!H34 -> 0 | D229: ='F-5 Appropriations (PY Adopted)'!H34 -> 0
B230: Operations & Maintenance Reserve | C230: ='F-4 Appropriations (Proposed)'!H35 -> 0 | D230: ='F-5 Appropriations (PY Adopted)'!H35 -> 0
B231: Renewal & Replacement Reserve | C231: ='F-4 Appropriations (Proposed)'!H36 -> 0 | D231: ='F-5 Appropriations (PY Adopted)'!H36 -> 0
B232: Municipality/County Appropriation | C232: ='F-4 Appropriations (Proposed)'!H37 -> 0 | D232: ='F-5 Appropriations (PY Adopted)'!H37 -> 0
B233: Other Reserves | C233: ='F-4 Appropriations (Proposed)'!H38 -> 0 | D233: ='F-5 Appropriations (PY Adopted)'!H38 -> 0
B234: Total Non-Operating Appropriations | C234: ='F-4 Appropriations (Proposed)'!H39 -> 0 | D234: ='F-5 Appropriations (PY Adopted)'!H39 -> 0
B236: Total Appropriations - Operation #5 | C236: ='F-4 Appropriations (Proposed)'!H40 -> 0 | D236: ='F-5 Appropriations (PY Adopted)'!H40 -> 0
B238: Accumulated Deficit - Operation #5 | C238: ='F-4 Appropriations (Proposed)'!H41 -> 0 | D238: ='F-5 Appropriations (PY Adopted)'!H41 -> 0
B240: Total Unrestricted Net Position Utilized - Operation #5 | C240: ='F-4 Appropriations (Proposed)'!H46 -> 0 | D240: ='F-5 Appropriations (PY Adopted)'!H46 -> 0
B242: TOTAL NET APPROPRIATIONS - Operation #5 | C242: ='F-4 Appropriations (Proposed)'!H47 -> 0 | D242: ='F-5 Appropriations (PY Adopted)'!H47 -> 0
B244: Operation #6
B245: Administration - Personnel | C245: ='F-4 Appropriations (Proposed)'!I10 -> 0 | D245: ='F-5 Appropriations (PY Adopted)'!I10 -> 0
B246: Administration - Other | C246: ='F-4 Appropriations (Proposed)'!I17 -> 0 | D246: ='F-5 Appropriations (PY Adopted)'!I17 -> 0
B247: Total Administration | C247: ='F-4 Appropriations (Proposed)'!I18 -> 0 | D247: ='F-5 Appropriations (PY Adopted)'!I18 -> 0
B248: Cost of Providing Services - Personnel | C248: ='F-4 Appropriations (Proposed)'!I22 -> 0 | D248: ='F-5 Appropriations (PY Adopted)'!I22 -> 0
B249: Cost of Providing Services - Other | C249: ='F-4 Appropriations (Proposed)'!I29 -> 0 | D249: ='F-5 Appropriations (PY Adopted)'!I29 -> 0
B250: Total Cost of Providing Services | C250: ='F-4 Appropriations (Proposed)'!I30 -> 0 | D250: ='F-5 Appropriations (PY Adopted)'!I30 -> 0
B251: Total Principal Payments on Debt Service in Lieu of Depreciation | C251: ='F-4 Appropriations (Proposed)'!I31 -> 0 | D251: ='F-5 Appropriations (PY Adopted)'!I31 -> 0
B252: Total Operating Appropriations | C252: ='F-4 Appropriations (Proposed)'!I32 -> 0 | D252: ='F-5 Appropriations (PY Adopted)'!I32 -> 0
B254: Total Interest Payments on Debt | C254: ='F-4 Appropriations (Proposed)'!I34 -> 0 | D254: ='F-5 Appropriations (PY Adopted)'!I34 -> 0
B255: Operations & Maintenance Reserve | C255: ='F-4 Appropriations (Proposed)'!I35 -> 0 | D255: ='F-5 Appropriations (PY Adopted)'!I35 -> 0
B256: Renewal & Replacement Reserve | C256: ='F-4 Appropriations (Proposed)'!I36 -> 0 | D256: ='F-5 Appropriations (PY Adopted)'!I36 -> 0
B257: Municipality/County Appropriation | C257: ='F-4 Appropriations (Proposed)'!I37 -> 0 | D257: ='F-5 Appropriations (PY Adopted)'!I37 -> 0
... 184 more rows

Sheet Mandatory Entry Checklist (hidden)
A2: BUDGET STATUS
A3: =IF(AND(A7="Complete",A17="Complete",A21="Complete",A26="Complete",A30="Complete",A41="Complete",A45="Complete",A56="Complete",A61="Complete",A69="Complete",A75="Complete",A79="Complete",A85="Complete",A89="Complete",A93="Complete",A98="Complete"),"COMPLETE","INCOMPLETE, DO NOT SUBMIT UNTIL ALL MANDATORY FIELDS COMPLETE") -> 
C5: Formula Notes
A6: KEY INPUTS
A7: =IF(AND(B8="Complete",B9="Complete",B10="Complete",B11="Complete",B12="Complete",B13="Complete",B14="Complete"),"Complete","Incomplete") -> Complete
A8: Authority Name | B8: =IF('KEY INPUTS'!B5="(Select Authority)","Incomplete","Complete") -> Complete
A9: Preparer Certification | B9: =IF(OR(ISBLANK('KEY INPUTS'!B10)=TRUE,ISBLANK('KEY INPUTS'!B11)=TRUE,ISBLANK('KEY INPUTS'!B12)=TRUE,ISBLANK('KEY INPUTS'!B14)=TRUE,ISBLANK('KEY INPUTS'!B16)=TRUE),"Incomplete","Complete") -> Complete | C9: All fields except fax must be completed
A10: Approval Certification | B10: =IF(OR(ISBLANK('KEY INPUTS'!B19)=TRUE,ISBLANK('KEY INPUTS'!B20)=TRUE,ISBLANK('KEY INPUTS'!B21)=TRUE,ISBLANK('KEY INPUTS'!B23)=TRUE,ISBLANK('KEY INPUTS'!B25)=TRUE),"Incomplete","Complete") -> Complete | C10: All fields except fax must be completed
A11: Internet Certification | B11: =IF(OR(ISBLANK('KEY INPUTS'!B28)=TRUE,ISBLANK('KEY INPUTS'!B29)=TRUE),"Incomplete","Complete") -> Complete | C11: All fields must be completed
A12: Adoption Certification | B12: =IF(OR(ISBLANK('KEY INPUTS'!B32)=TRUE,ISBLANK('KEY INPUTS'!B33)=TRUE,ISBLANK('KEY INPUTS'!B34)=TRUE,ISBLANK('KEY INPUTS'!B36)=TRUE,ISBLANK('KEY INPUTS'!B38)=TRUE),"Incomplete","Complete") -> Complete | C12: All fields except fax must be completed
A13: Capital Budget/Program Certification | B13: =IF(OR(ISBLANK('KEY INPUTS'!B41)=TRUE,ISBLANK('KEY INPUTS'!B42)=TRUE,ISBLANK('KEY INPUTS'!B43)=TRUE,ISBLANK('KEY INPUTS'!B45)=TRUE,ISBLANK('KEY INPUTS'!B47)=TRUE),"Incomplete","Complete") -> Complete | C13: All fields except fax must be completed
A14: Governing Body Members | B14: =IF(OR(ISBLANK('KEY INPUTS'!D2)=TRUE),"Incomplete","Complete") -> Complete | C14: Must enter at least one governing body member's information
A16: PREPARER CERT
A17: =IF(B18="Complete","Complete","Incomplete") -> Complete
A18: Preparer's Signature | B18: =IF(OR(ISBLANK('Preparer Cert. (C-2)'!D18)=TRUE),"Incomplete","Complete") -> Complete
A20: INTERNET CERT | C20: Required new formulas on tab for checkboxes in column AD
A21: =IF(AND(B22="Complete",B23="Complete"),"Complete","Incomplete") -> Incomplete
A22: Certifications | B22: =IF(OR('Internet Cert. (C-3)'!AD11<>TRUE,'Internet Cert. (C-3)'!AD13<>TRUE,'Internet Cert. (C-3)'!AD15<>TRUE,'Internet Cert. (C-3)'!AD19<>TRUE,'Internet Cert. (C-3)'!AD22<>TRUE,'Internet Cert. (C-3)'!AD25<>TRUE,'Internet Cert. (C-3)'!AD28<>TRUE,'Internet Cert. (C-3)'!AD31<>TRUE,'Internet Cert. (C-3)'!AD34<>TRUE),"Incomplete","Complete") -> Incomplete
A23: Signature | B23: =IF(OR(ISBLANK('Internet Cert. (C-3)'!C44)=TRUE),"Incomplete","Complete") -> Complete
A25: APPROVAL CERT
A26: =IF(B27="Complete","Complete","Incomplete") -> Complete
A27: Officer Signature | B27: =IF(OR(ISBLANK('Approval Cert. (C-4)'!D17)=TRUE),"Incomplete","Complete") -> Complete
A29: APPROVAL RESOLUTION
A30: =IF(AND(B31="Complete",B32="Complete",B33="Complete",B34="Complete",B35="Complete",B36="Complete",B37="Complete",B38="Complete"),"Complete","Incomplete") -> Incomplete
A31: Secretary's Signature | B31: =IF(OR(ISBLANK('Approval Resolution (C-5)'!A37)=TRUE),"Incomplete","Complete") -> Complete
A32: Date | B32: =IF(OR(ISBLANK('Approval Resolution (C-5)'!E37)=TRUE),"Incomplete","Complete") -> Complete
A33: Governing Body Recorded Vote | B33: =IF(AND(ISBLANK('Approval Resolution (C-5)'!C42)=TRUE,ISBLANK('Approval Resolution (C-5)'!D42)=TRUE,ISBLANK('Approval Resolution (C-5)'!E42)=TRUE,ISBLANK('Approval Resolution (C-5)'!G42)=TRUE),"Incomplete",IF(ISBLANK('Approval Resolution (C-5)'!A42:B42)=FALSE,"Incomplete","Complete")) -> Complete | C33: At least one vote type for one member must be selected
A34: Open Public Meeting Date (month day, year) | B34: =IF(OR(ISBLANK('Approval Resolution (C-5)'!I7)=TRUE),"Incomplete","Complete") -> Complete
A35: Total Budget Revenues | B35: =IF(OR(ISBLANK('Approval Resolution (C-5)'!K10)=TRUE),"Incomplete","Complete") -> Complete
A36: Total Budget Appropriations | B36: =IF(OR(ISBLANK('Approval Resolution (C-5)'!K11)=TRUE),"Incomplete","Complete") -> Complete
A37: Unrestricted Net Position Used | B37: =IF(OR(ISBLANK('Approval Resolution (C-5)'!K12)=TRUE),"Incomplete","Complete") -> Incomplete
A38: Considered for Adoption Date (month day, year) | B38: =IF(OR(ISBLANK('Approval Resolution (C-5)'!I29)=TRUE),"Incomplete","Complete") -> Incomplete
A40: ADOPTION CERT
A41: =IF(B42="Complete","Complete","Incomplete") -> Complete
A42: Officer Signature | B42: =IF(OR(ISBLANK('Adoption Cert. (C-6)'!D14)=TRUE),"Incomplete","Complete") -> Complete
A44: ADOPTED RESOLUTION
A45: =IF(AND(B46="Complete",B47="Complete",B48="Complete",B49="Complete",B50="Complete",B51="Complete",B52="Complete",B53="Complete"),"Complete","Incomplete") -> Incomplete
A46: Secretary's Signature | B46: =IF(OR(ISBLANK('Adopted Resolution (C-7)'!A31)=TRUE),"Incomplete","Complete") -> Complete
A47: Date | B47: =IF(OR(ISBLANK('Adopted Resolution (C-7)'!E31)=TRUE),"Incomplete","Complete") -> Complete
A48: Governing Body Recorded Vote | B48: =IF(AND(ISBLANK('Adopted Resolution (C-7)'!C36)=TRUE,ISBLANK('Adopted Resolution (C-7)'!D36)=TRUE,ISBLANK('Adopted Resolution (C-7)'!E36)=TRUE,ISBLANK('Adopted Resolution (C-7)'!G36)=TRUE),"Incomplete",IF(ISBLANK('Adopted Resolution (C-7)'!A36:B36)=FALSE,"Incomplete","Complete")) -> Complete | C48: At least one vote type for one member must be selected
A49: Open Public Meeting Date | B49: =IF(OR(ISBLANK('Adopted Resolution (C-7)'!I9)=TRUE),"Incomplete","Complete") -> Complete
A50: Total Budget Revenues | B50: =IF(OR(ISBLANK('Adopted Resolution (C-7)'!K14)=TRUE),"Incomplete","Complete") -> Complete
A51: Total Budget Appropriations | B51: =IF(OR(ISBLANK('Adopted Resolution (C-7)'!K15)=TRUE),"Incomplete","Complete") -> Complete
A52: Total Capital Appropriations | B52: =IF(OR(ISBLANK('Adopted Resolution (C-7)'!K18)=TRUE),"Incomplete","Complete") -> Incomplete
A53: Total Capital Net Position Used | B53: =IF(OR(ISBLANK('Adopted Resolution (C-7)'!K19)=TRUE),"Incomplete","Complete") -> Incomplete
A55: MESSAGE & ANALYSIS
A56: =IF(AND(B57="Complete",B58="Complete"),"Complete","Incomplete") -> Complete
A57: Question #1 | B57: =IF(OR(ISBLANK('Message & Analysis (N-1)'!A14)=TRUE),"Incomplete","Complete") -> Complete
A58: Question #2 | B58: =IF(OR(ISBLANK('Message & Analysis (N-1)'!A32)=TRUE),"Incomplete","Complete") -> Complete
A60: CONTACT INFORMATION
A61: =IF(AND(B62="Complete",B63="Complete",B64="Complete",B65="Complete",B66="Complete"),"Complete","Incomplete") -> Complete
A62: Name of Authority | B62: =IF(OR(ISBLANK('Contact Information (N-2)'!B7)=TRUE,ISBLANK('Contact Information (N-2)'!B8)=TRUE,ISBLANK('Contact Information (N-2)'!B10)=TRUE,ISBLANK('Contact Information (N-2)'!B11)=TRUE,ISBLANK('Contact Information (N-2)'!F10)=TRUE,ISBLANK('Contact Information (N-2)'!G10)=TRUE),"Incomplete","Complete") -> Complete | C62: All fields except fax must be completed
A63: Preparer’s Name | B63: =IF(OR(ISBLANK('Contact Information (N-2)'!B13)=TRUE,ISBLANK('Contact Information (N-2)'!B14)=TRUE,ISBLANK('Contact Information (N-2)'!B15)=TRUE,ISBLANK('Contact Information (N-2)'!B16)=TRUE,ISBLANK('Contact Information (N-2)'!F15)=TRUE,ISBLANK('Contact Information (N-2)'!G15)=TRUE,ISBLANK('Contact Information (N-2)'!B17)=TRUE),"Incomplete","Complete") -> Complete | C63: All fields except fax must be completed
A64: Chief Executive Officer | B64: =IF(OR(ISBLANK('Contact Information (N-2)'!B19)=TRUE,ISBLANK('Contact Information (N-2)'!B21)=TRUE,ISBLANK('Contact Information (N-2)'!B22)=TRUE),"Incomplete","Complete") -> Complete | C64: All fields except fax must be completed
A65: Chief Financial Officer | B65: =IF(OR(ISBLANK('Contact Information (N-2)'!B24)=TRUE,ISBLANK('Contact Information (N-2)'!B26)=TRUE,ISBLANK('Contact Information (N-2)'!B27)=TRUE),"Incomplete","Complete") -> Complete | C65: All fields except fax must be completed
A66: Name of Auditor | B66: =IF(OR(ISBLANK('Contact Information (N-2)'!B29)=TRUE,ISBLANK('Contact Information (N-2)'!B30)=TRUE,ISBLANK('Contact Information (N-2)'!B31)=TRUE,ISBLANK('Contact Information (N-2)'!B32)=TRUE,ISBLANK('Contact Information (N-2)'!B33)=TRUE,ISBLANK('Contact Information (N-2)'!F32)=TRUE,ISBLANK('Contact Information (N-2)'!G32)=TRUE,ISBLANK('Contact Information (N-2)'!B33)=TRUE,ISBLANK('Contact Information (N-2)'!B34)=TRUE),"Incomplete","Complete") -> Complete | C66: All fields except fax must be completed
A68: QUESTIONNAIRE
A69: =IF(AND(B70="Complete",B71="Complete",B72="Complete"),"Complete","Incomplete") -> Incomplete
A70: Questionnaire | B70: =IF(OR(ISBLANK('Questionnaire (N-3)'!C8)=TRUE,ISBLANK('Questionnaire (N-3)'!C11)=TRUE,ISBLANK('Questionnaire (N-3)'!C13)=TRUE,ISBLANK('Questionnaire (N-3)'!C15)=TRUE,ISBLANK('Questionnaire (N-3)'!C18)=TRUE,ISBLANK('Questionnaire (N-3)'!C24)=TRUE,ISBLANK('Questionnaire (N-3)'!H29)=TRUE,ISBLANK('Questionnaire (N-3)'!H30)=TRUE,ISBLANK('Questionnaire (N-3)'!H31)=TRUE,ISBLANK('Questionnaire (N-3)'!C37)=TRUE),"Incomplete","Complete") -> Incomplete
A71: Questionnaire (2) | B71: =IF(OR(ISBLANK('Questionnaire (N-3)(2)'!D8)=TRUE,ISBLANK('Questionnaire (N-3)(2)'!D12)=TRUE,ISBLANK('Questionnaire (N-3)(2)'!C16)=TRUE,ISBLANK('Questionnaire (N-3)(2)'!C17)=TRUE,ISBLANK('Questionnaire (N-3)(2)'!C18)=TRUE,ISBLANK('Questionnaire (N-3)(2)'!C19)=TRUE,ISBLANK('Questionnaire (N-3)(2)'!C20)=TRUE,ISBLANK('Questionnaire (N-3)(2)'!C21)=TRUE,ISBLANK('Questionnaire (N-3)(2)'!C22)=TRUE,ISBLANK('Questionnaire (N-3)(2)'!C23)=TRUE,ISBLANK('Questionnaire (N-3)(2)'!C24)=TRUE,ISBLANK('Questionnaire (N-3)(2)'!C30)=TRUE,ISBLANK('Questionnaire (N-3)(2)'!C35)=TRUE,ISBLANK('Questionnaire (N-3)(2)'!C38)=TRUE,ISBLANK('Questionnaire (N-3)(2)'!D43)=TRUE),"Incomplete","Complete") -> Complete
A72: Questionnaire (3) | B72: =IF(OR(ISBLANK('Questionnaire (N-3)(3)'!D9)=TRUE,ISBLANK('Questionnaire (N-3)(3)'!D13)=TRUE,ISBLANK('Questionnaire (N-3)(3)'!D16)=TRUE),"Incomplete","Complete") -> Incomplete
A74: PAGE N-4 (2 of 2)
A75: =IF(B76="Complete","Complete","Incomplete") -> Complete
A76: Authority Schedule of Commissioners, Officers, Key Employees, Highest Compensated Employees and Independent Contractors (Continued) | B76: =IF(OR(ISBLANK('Page N-4 (2 of 2)'!B7)=TRUE,ISBLANK('Page N-4 (2 of 2)'!C7)=TRUE,ISBLANK('Page N-4 (2 of 2)'!D7)=TRUE,'Page N-4 (2 of 2)'!N7=0,AND('Page N-4 (2 of 2)'!E7="",'Page N-4 (2 of 2)'!F7="",'Page N-4 (2 of 2)'!G7="",'Page N-4 (2 of 2)'!H7="",'Page N-4 (2 of 2)'!I7="")),"Incomplete","Complete") -> Complete | C76: Complete information for at least one employee must be entered including at least one compensation entry
A78: HEALTH BENEFITS
A79: =IF(AND(B80="Complete",B81="Complete",B82="Complete"),"Complete","Incomplete") -> Incomplete
A80: Active Employees Health Benefits | B80: =IF(OR(ISBLANK('Health Benefits (N-5)'!B8)=TRUE,ISBLANK('Health Benefits (N-5)'!B9)=TRUE,ISBLANK('Health Benefits (N-5)'!B10)=TRUE,ISBLANK('Health Benefits (N-5)'!B11)=TRUE,ISBLANK('Health Benefits (N-5)'!C8)=TRUE,ISBLANK('Health Benefits (N-5)'!C9)=TRUE,ISBLANK('Health Benefits (N-5)'!C10)=TRUE,ISBLANK('Health Benefits (N-5)'!C11)=TRUE,ISBLANK('Health Benefits (N-5)'!E8)=TRUE,ISBLANK('Health Benefits (N-5)'!E9)=TRUE,ISBLANK('Health Benefits (N-5)'!E10)=TRUE,ISBLANK('Health Benefits (N-5)'!E11)=TRUE,ISBLANK('Health Benefits (N-5)'!F8)=TRUE,ISBLANK('Health Benefits (N-5)'!F9)=TRUE,ISBLANK('Health Benefits (N-5)'!F10)=TRUE,ISBLANK('Health Benefits (N-5)'!F11)=TRUE,ISBLANK('Health Benefits (N-5)'!D12)=TRUE,ISBLANK('Health Benefits (N-5)'!G12)=TRUE),"Incomplete","Complete") -> Incomplete | C80: Information must be entered in each of the gray-highlighted cells
A81: Is medical coverage provided by the SHBP (Yes or No)? | B81: =IF(OR(ISBLANK('Health Benefits (N-5)'!D33)=TRUE),"Incomplete","Complete") -> Incomplete
A82: Is prescription drug coverage provided by the SHBP (Yes or No)? | B82: =IF(OR(ISBLANK('Health Benefits (N-5)'!D34)=TRUE),"Incomplete","Complete") -> Incomplete
A84: ACCUMULATED ABSENCES
A85: =IF(B86="Complete","Complete","Incomplete") -> 
A86: Accumulated Absences | B86: =IF(OR(ISBLANK(#REF!)=TRUE,ISBLANK(#REF!)=TRUE,ISBLANK(#REF!)=TRUE,AND(#REF!="",#REF!="",#REF!="")),"Incomplete","Complete") ->  | C86: Complete information for at least one employee must be entered including at least one compensation entry
A88: SHARED SERVICES | C88: Required new formulas on tab for checkboxes in column AD
A89: =IF(B90="Complete","Complete","Incomplete") -> Complete
A90: Shared Service Agreements | B90: =IF('Shared Services (N-7)'!AD4=TRUE,"Complete",IF(OR(ISBLANK('Shared Services (N-7)'!A7)=TRUE,ISBLANK('Shared Services (N-7)'!B7)=TRUE,ISBLANK('Shared Services (N-7)'!C7)=TRUE,ISBLANK('Shared Services (N-7)'!E7)=TRUE,ISBLANK('Shared Services (N-7)'!F7)=TRUE,ISBLANK('Shared Services (N-7)'!G7)=TRUE),"Incomplete","Complete")) -> Complete | C90: The "No shared services" box must be checked or there must be complete information for at least one shared service except the comments section
A92: CAPITAL BUDGET CERTIFICATION | C92: Required new formulas on tab for checkboxes in column AD
A93: =IF(AND(B95="Complete",B94="Complete"),"Complete","Incomplete") -> Complete
A94: Certification | B94: =IF(OR('CB-1 Capital Budget Cert.'!AD11=TRUE,'CB-1 Capital Budget Cert.'!AD15=TRUE),"Complete","Incomplete") -> Complete
A95: Officer Signature | B95: =IF(OR(ISBLANK('CB-1 Capital Budget Cert.'!D22)=TRUE),"Incomplete","Complete") -> Complete
A97: CAPITAL BUDGET MESSAGE
A98: =IF(AND(B99="Complete",B100="Complete",B101="Complete",B102="Complete"),"Complete","Incomplete") -> Incomplete
A99: Question #1 | B99: =IF(OR(ISBLANK('CB-2 Capital Budget Message'!I11)=TRUE),"Incomplete","Complete") -> Incomplete
A100: Question #2 | B100: =IF(OR(ISBLANK('CB-2 Capital Budget Message'!I14)=TRUE),"Incomplete","Complete") -> Incomplete
A101: Question #3 | B101: =IF(OR(ISBLANK('CB-2 Capital Budget Message'!I19)=TRUE),"Incomplete","Complete") -> Incomplete
A102: Question #5 | B102: =IF(OR(ISBLANK('CB-2 Capital Budget Message'!I28)=TRUE),"Incomplete","Complete") -> Incomplete

Sheet Instructions
A1: General Instructions to Complete the Authority Budget Workbook | C1: Authority Budget Template Version 2024, 2024-2025, & 2025
A2: **This version of the authority budget template is required to be used for all authority budget cycles with a start date of July 1, 2024 and later, including budgets starting and/or ending in 2025.
A3: a) | B3: This workbook shall be used for completing the Authority Introduced and Adopted Budgets. | L3: Version 1.3
A4: b) | B4: It is designed to automatically calculate amounts linked from various data entry points.
A5: c) | B5: The individual tabs containing formulas are locked to protect the formulas.
A6: d) | B6: Fill in only the gray and yellow highlighted sections of the worksheet.
A7: e) | B7: Begin by navigating to the "KEY INPUTS" tab.
A8: f) | B8: Select the Authority by clicking on cell B5 and selecting from the dropdown menu. This will populate the entity name and county. Continue to complete each of the fields in order to populate standard information throughout the workbook.
A9: g) | B9: When copying information from another document, users must select "Paste Values" when pasting the information into this workbook.
A10: h) | B10: In all "signature" cells, enter the email address of the cerifying official.

Sheet KEY INPUTS
A1: Fiscal Year Begin: | B1: 2025 | C1: Governing Body Members | E1: Commissioner names will appear on the approval and adoption resolutions in the order they are listed on this page.
A2: Fiscal Year End: | B2: 2025 | C2: Commissioner #1 | D2: Fred Adams | G2: =B1 -> 2025
A3: Begin Date: | B3: 2025-01-01 | C3: Commissioner #2 | D3: Robert Knight | G3: =B1+1 -> 2026
A4: End Date: | B4: =EDATE(B3,12)-1 -> 2025-12-31 | C4: Commissioner #3 | D4: Lynn Harris
A5: Authority Name: | B5: Weymouth Municipal Utilities Authority | C5: Commissioner #4 | D5: Cindy Lagaie
A6: Web Address | B6: http://www.weymouthnj.org/wt-mua.html | C6: Commissioner #5 | D6: Kathleen Duda
C7: Commissioner #6 | D7: Candace Gamblain
A8: Certification Sections | C8: Commissioner #7 | D8: Dave Caracciolo
A9: Preparer Certification | C9: Commissioner #8 | E9: Regional Authorities.
A10: Preparer Name | B10: Fred Adams | C10: Commissioner #9 | E10: Regional Authorities.
A11: Title | B11: Chairperson | C11: Commissioner #10 | E11: Regional Authorities.
A12: Address | B12: 112 Steelman Landing Road | C12: Commissioner #11 | E12: Regional Authorities.
A13: Address 2 | B13: Mays Landing, NJ 08330 | C13: Commissioner #12 | E13: Regional Authorities.
A14: Phone | B14: 609-909-0487 | C14: Commissioner #13 | E14: Regional Authorities.
A15: Fax | B15: 609-909-0487 | C15: Commissioner #14 | E15: Regional Authorities.
A16: Email | B16: Fadams6031@gmail.com
A18: Approval Certification
A19: Officer's Name | B19: Alisa Owens
A20: Title | B20: Secretary | C20: Authority Operations and Functions:
A21: Address | B21: 112 Steelman Landing Road | C21: Operation #1 | D21: Water
A22: Address 2 | B22: Mays Landing, NJ 08330 | C22: Operation #2 | D22: Sewer
A23: Phone | B23: 609-909-0487 | C23: Operation #3 | D23: Operation #3
A24: Fax | B24: 609-909-0487 | C24: Operation #4 | D24: Operation #4
A25: Email | B25: owenalisa@aol.com | C25: Operation #5 | D25: Operation #5
C26: Operation #6 | D26: Operation #6
A27: Internet Certification
A28: Officer's Name | B28: Fred Adams
A29: Title | B29: Chairperson
A31: Adoption Certification
A32: Officer's Name | B32: Alisa Owens
A33: Title | B33: Secretary
A34: Address | B34: 112 Steelman Landing Road
A35: Address 2 | B35: Mays Landing, NJ 08330
A36: Phone | B36: 609-909-0487
A37: Fax | B37: 609-909-0487
A38: Email | B38: owenalisa@aol.com
A40: Capital Budget/Program Certification
A41: Officer's Name | B41: Alisa Owens
A42: Title | B42: Secretary
A43: Address | B43: 112 Steelman Landing Road
A44: Address 2 | B44: Mays Landing, NJ 08330
A45: Phone | B45: 609-909-0487
A46: Fax | B46: 609-909-0487
A47: Email | B47: owenalisa@aol.com

Sheet Budget Front Cover (hidden)
F4: Can end in 2021
D5: Start Year | F5: End Year
B6: Fiscal Year | D6: =+#REF! ->  | E6: _ | F6: =+#REF! -> 
B8: Authority Budget of:
B9: =+#REF! -> 
B11: State Filing Year | D11: 2020
B12: For the Period:
D13: =+#REF! ->  | E13: to | F13: =+#REF! -> 
B17: =+#REF! -> 
B18: Authority Web Address
I19: `
B41: Division of Local Government Services

Sheet Cover Sheet
D5: Start Year | F5: End Year
B6: Fiscal Year | D6: ='KEY INPUTS'!B1 -> 2025 | E6: _ | F6: =YEAR('KEY INPUTS'!B4) -> 2025
B8: Authority Budget of:
B9: ='KEY INPUTS'!B5 -> Weymouth Municipal Utilities Authority
B11: State Filing Year | D11: ='KEY INPUTS'!B2 -> 2025
B13: For the Period: | D13: ='KEY INPUTS'!B3 -> 2025-01-01 | E13: to | F13: ='KEY INPUTS'!B4 -> 2025-12-31
B17: ='KEY INPUTS'!B6 -> http://www.weymouthnj.org/wt-mua.html
B18: Authority Web Address
B37: Division of Local Government Services

Sheet Certification Section
A13: =""&'KEY INPUTS'!B2&" AUTHORITY BUDGET" -> 2025 AUTHORITY BUDGET
A14: CERTIFICATION SECTION

Sheet Division Cert. (C-1)
A1: ="FISCAL YEAR "&'KEY INPUTS'!B2&"" -> FISCAL YEAR 2025
A3: ='KEY INPUTS'!B5 -> Weymouth Municipal Utilities Authority
A5: AUTHORITY BUDGET
A7: ="FISCAL YEAR: "&TEXT('KEY INPUTS'!B3, "mmmm dd, yyyy")&" to "&TEXT('KEY INPUTS'!B4,"mmmm dd, yyyy")&"" -> FISCAL YEAR: January 01, 2025 to December 31, 2025
A9: For Division Use Only
A11: CERTIFICATION OF APPROVED BUDGET
A13: It is hereby certified that the approved Budget made a part hereof complies with the requirements of
A14: law and the rules and regulations of the Local Finance Board, and approval is given pursuant to
A15: N.J.S.A. 40A:5A-11.
A16: State of New Jersey
A17: Department of Community Affairs
A18: Director of the Division of Local Government Services
A20: By: Date:
A22: CERTIFICATION OF ADOPTED BUDGET
A24: It is hereby certified that the adopted Budget made a part hereof has been compared with the approved
A25: Budget previously certified by the Division, and any amendments made thereto. This adopted Budget is
A26: certified with respect to such amendments and comparisons only.
A28: State of New Jersey
A29: Department of Community Affairs
A30: Director of the Division of Local Government Services
A32: By: Date:
A39: Page C-1

Sheet Preparer Cert. (C-2)
A1: =""&'KEY INPUTS'!B2&" PREPARER'S CERTIFICATION" -> 2025 PREPARER'S CERTIFICATION
A3: ='KEY INPUTS'!B5 -> Weymouth Municipal Utilities Authority
A5: AUTHORITY BUDGET
A7: ="FISCAL YEAR: "&TEXT('KEY INPUTS'!B3, "mmmm dd, yyyy")&" to "&TEXT('KEY INPUTS'!B4,"mmmm dd, yyyy")&"" -> FISCAL YEAR: January 01, 2025 to December 31, 2025
A9: It is hereby certified that the Authority Budget, including the Annual Budget and the Capital Budget/Program
A10: annexed hereto, represents the members of the governing body's resolve with respect to statute in that; all estimates of
A11: revenue are reasonable, accurate and correctly stated; all items of appropriation are properly set forth; and in itemization,
A12: form, and content, the budget will permit the exercise of the comptroller function within the Authority.
A14: It is further certified that all proposed budgeted amounts and totals are correct. Also, I hereby provide reasonable
A15: assurance that all assertations contained herein are accurate and all required schedules are completed and attached.
B18: Preparer's Signature: | D18: Fadams6031@gmail.com
B19: Name: | D19: ='KEY INPUTS'!B10 -> Fred Adams
B20: Title: | D20: ='KEY INPUTS'!B11 -> Chairperson
B21: Address: | D21: ='KEY INPUTS'!B12 -> 112 Steelman Landing Road
D22: ='KEY INPUTS'!B13 -> Mays Landing, NJ 08330
B23: Phone Number: | D23: ='KEY INPUTS'!B14 -> 609-909-0487
B24: Fax Number: | D24: ='KEY INPUTS'!B15 -> 609-909-0487
B25: E-mail Address: | D25: ='KEY INPUTS'!B16 -> Fadams6031@gmail.com
A40: Page C-2

Sheet Internet Cert. (C-3)
B1: AUTHORITY INTERNET WEBSITE CERTIFICATION
B3: Authority’s Web Address: | C3: ='KEY INPUTS'!B6 -> http://www.weymouthnj.org/wt-mua.html
B5: All authorities shall maintain either an Internet website or a webpage on the municipality's or county's Internet website.
B6: The purpose of the website or webpage shall be to provide increased public access to the authority's operations and
B7: activities. N.J.S.A. 40A:5A-17.1 requires the following items to be included on the Authority's website at a
B8: minimum for public disclosure. Check the boxes below to certify the Authority's compliance with N.J.S.A.
B9: 40A:5A-17.1.
B11: A description of the Authority's mission and responsibilities. | AD11: FALSE
B13: The budgets for the current fiscal year and immediately preceding two prior years. | AD13: FALSE
B15: The most recent Annual Comprehensive Financial Report (Unaudited) or similar financial information | AD15: TRUE
B16: (Similar information includes items such as Revenue and Expenditure pie charts, or other types of charts, along with
B17: other information that would be useful to the public in understanding the finances/budget of the Authority).
B19: The complete (all pages) annual audits (not the Audit Synopsis) for the most recent fiscal year and immediately preceding | AD19: TRUE
B20: two prior years.
B22: The Authority’s rules, regulations and official policy statements deemed relevant by the governing body of the Authority | AD22: FALSE
B23: to the interests of the residents within the Authority's service area or jurisdiction.
B25: Notice posted pursuant to the "Open Public Meetings Act" for each meeting of the Authority, setting forth the time | AD25: FALSE
B26: date, location and agenda of each meeting.
B28: The approved minutes of each meeting of the Authority including all resolutions of the board and their committees; for at | AD28: FALSE
B29: least three consecutive fiscal years.
B31: The name, mailing address, electronic mail address and phone number of every person who exercises day-to-day | AD31: FALSE
B32: supervision or management over some or all of the operations of the Authority.
B34: A list of attorneys, advisors, consultants and any other person, firm, business, partnership, corporation or | AD34: FALSE
B35: other organization which received any renumeration of $17,500 or more during the preceding fiscal year
B36: for any service whatsoever rendered to the Authority.
B38: It is hereby certified by the below authorized representative of the Authority that the Authority's website or
B39: webpage as identified above complies with the minimum statutory requirements of N.J.S.A. 40A:5A-17.1 as listed
B40: above. A check in each of the above boxes signifies compliance.
B42: Name of Officer Certifying Compliance: | C42: ='KEY INPUTS'!B28 -> Fred Adams
B43: Title of Officer Certifying Compliance: | C43: ='KEY INPUTS'!B29 -> Chairperson
B44: Signature: | C44: Fadams6031@gmail.com
B46: Page C-3

Sheet Approval Cert. (C-4)
A1: =""&'KEY INPUTS'!B2&" APPROVAL CERTIFICATION" -> 2025 APPROVAL CERTIFICATION
A3: ='KEY INPUTS'!B5 -> Weymouth Municipal Utilities Authority
A5: AUTHORITY BUDGET
A7: ="FISCAL YEAR: "&TEXT('KEY INPUTS'!B3, "mmmm dd, yyyy")&" to "&TEXT('KEY INPUTS'!B4,"mmmm dd, yyyy")&"" -> FISCAL YEAR: January 01, 2025 to December 31, 2025
A9: It is hereby certified that the Authority Budget, including all schedules appended hereto, are a true
A10: copy of the Annual Budget and Capital Budget/Program approved by resolution by the governing body of the
A11: =""&'KEY INPUTS'!B5&", at an open public meeting held" -> Weymouth Municipal Utilities Authority, at an open public meeting held
A12: ="pursuant to N.J.A.C. 5:31-2.3, on "&IF('Approval Resolution (C-5)'!I7="","",TEXT('Approval Resolution (C-5)'!I7,"mmmm d, yyyy"))&"." -> pursuant to N.J.A.C. 5:31-2.3, on November 19, 2024.
A14: It is further certified that the recorded vote appearing in the resolution represents not less than a majority
A15: of the full membership of the governing body thereof.
B17: Officer's Signature: | D17: owenalisa@aol.com
B18: Name: | D18: ='KEY INPUTS'!B19 -> Alisa Owens
B19: Title: | D19: ='KEY INPUTS'!B20 -> Secretary
B20: Address: | D20: ='KEY INPUTS'!B21 -> 112 Steelman Landing Road
D21: ='KEY INPUTS'!B22 -> Mays Landing, NJ 08330
B22: Phone Number: | D22: ='KEY INPUTS'!B23 -> 609-909-0487
B23: Fax Number: | D23: ='KEY INPUTS'!B24 -> 609-909-0487
B24: E-mail Address: | D24: ='KEY INPUTS'!B25 -> owenalisa@aol.com
A39: Page C-4

Sheet Approval Resolution (C-5)
A1: =""&'KEY INPUTS'!B2&" AUTHORITY BUDGET RESOLUTION" -> 2025 AUTHORITY BUDGET RESOLUTION
A2: ='KEY INPUTS'!B5 -> Weymouth Municipal Utilities Authority
A3: ="FISCAL YEAR: "&TEXT('KEY INPUTS'!B3, "mmmm dd, yyyy")&" to "&TEXT('KEY INPUTS'!B4,"mmmm dd, yyyy")&"" -> FISCAL YEAR: January 01, 2025 to December 31, 2025
A5: ="WHEREAS, the Annual Budget for "&A2&" for the fiscal year beginning" -> WHEREAS, the Annual Budget for Weymouth Municipal Utilities Authority for the fiscal year beginning | I5: Use these fields to enter information into the resolution:
A6: =""&TEXT('KEY INPUTS'!B3, "mmmm dd, yyyy")&" and ending "&TEXT('KEY INPUTS'!B4, "mmmm dd, yyyy")&" has been presented before the governing body of the" -> January 01, 2025 and ending December 31, 2025 has been presented before the governing body of the | I6: Open Public Meeting Date (month day, year): | L6: Enter date in cell I9 using mm/dd/yyyy format.
A7: =""&'KEY INPUTS'!B5&" at its open public meeting of "&IF(I7="","",(TEXT(I7,"mmmm d, yyyy")))&"; and" -> Weymouth Municipal Utilities Authority at its open public meeting of November 19, 2024; and | I7: 2024-11-19
A9: ="WHEREAS, the Annual Budget as introduced reflects Total Revenues of "&TEXT(K10, "$#,##0.00")&", Total Appropriations including any" -> WHEREAS, the Annual Budget as introduced reflects Total Revenues of $356,734.00, Total Appropriations including any
A10: ="Accumulated Deficit, if any, of "&TEXT(K11, "$#,##0.00")&", and Total Unrestriced Net Position planned to be utilized" -> Accumulated Deficit, if any, of $356,734.00, and Total Unrestriced Net Position planned to be utilized | I10: Total Budget Revenues: | K10: $356,734.00
A11: ="as funding thereof, of "&TEXT(K12, "$#,##0.00")&"; and" -> as funding thereof, of $0.00; and | I11: Total Budget Appropriations: | K11: $356,734.00
I12: Unrestricted Net Position Used:
A13: ="WHEREAS, the Capital Budget as introduced reflects Total Capital Appropriations of "&TEXT(K14,"$#,##0.00")&" and Total Unrestricted" -> WHEREAS, the Capital Budget as introduced reflects Total Capital Appropriations of $0.00 and Total Unrestricted
A14: ="Net Position planned to be utilized as funding thereof, of "&TEXT(K15, "$#,##0.00")&"; and" -> Net Position planned to be utilized as funding thereof, of $0.00; and | I14: Total Capital Appropriations:
I15: Total Capital Net Position Used:
A16: WHEREAS, the schedule of rents, fees and other charges in effect will produce sufficient revenues, together with all other anticipated
A17: revenues to satisfy all obligations to the holders of bonds of the Authority, to meet operating expenses, capital outlays, debt service
A18: requirements, and to provide for such reserves, all as may be required by law, regulation or terms of contracts and agreements; and
A20: WHEREAS, the Capital Budget/Program, pursuant to N.J.A.C. 5:31-2, does not confer any authorization to raise or expend funds; rather
A21: it is a document to be used as part of the said Authority's planning and management objectives. Specific authorization to expend funds
A22: for the purposes described in this section of the budget must be granted elsewhere; by bond resolution, by a project financing
A23: agreement, by resolution appropriating funds from the Renewal and Replacement Reserve or other means provided by law.
A25: ="NOW, THEREFORE BE IT RESOLVED, by the governing body of the "&'KEY INPUTS'!B5&", at" -> NOW, THEREFORE BE IT RESOLVED, by the governing body of the Weymouth Municipal Utilities Authority, at
A26: ="an open public meeting held on "&((TEXT(I7,"mmmm d, yyyy"))&" that the Annual Budget, including all related schedules, and the Capital Budget/Program") -> an open public meeting held on November 19, 2024 that the Annual Budget, including all related schedules, and the Capital Budget/Program
A27: ="of the) "&'KEY INPUTS'!B5&" for the fiscal year beginning "&TEXT('KEY INPUTS'!B3, "mmmm dd, yyyy")&" and" -> of the) Weymouth Municipal Utilities Authority for the fiscal year beginning January 01, 2025 and
A28: ="ending "&TEXT('KEY INPUTS'!B4,"mmmm dd, yyyy")&", is hereby approved; and" -> ending December 31, 2025, is hereby approved; and | I28: Considered for Adoption Date (month day, year):
A30: BE IT FURTHER RESOLVED, that the anticipated revenues as reflected in the Annual Budget are of sufficient amount to
A31: meet all proposed expenditures/expenses and all covenants, terms and provisions as stipulated in the said Authority's
A32: outstanding debt obligations, capital lease arrangements, service contracts, and other pledged agreements; and
A34: ="BE IT FURTHER RESOLVED, that the governing body of the "&'KEY INPUTS'!B5&" will" -> BE IT FURTHER RESOLVED, that the governing body of the Weymouth Municipal Utilities Authority will
A35: ="consider the Annual Budget and Capital Budget/Program for Adoption on "&TEXT(I29, "mmmm dd, yyyy")&"." -> consider the Annual Budget and Capital Budget/Program for Adoption on January 00, 1900.
A37: owenalisa@aol.com | E37: 2024-11-19
A38: (Secretary’s Signature) | E38: (Date)
A40: Governing Body Recorded Vote
A41: Member | C41: Aye | D41: Nay | E41: Abstain | G41: Absent
A42: ='KEY INPUTS'!D2 -> Fred Adams | C42: X
A43: ='KEY INPUTS'!D3 -> Robert Knight | C43: X
A44: ='KEY INPUTS'!D4 -> Lynn Harris | C44: X
A45: ='KEY INPUTS'!D5 -> Cindy Lagaie | C45: X
A46: ='KEY INPUTS'!D6 -> Kathleen Duda | C46: X
A47: ='KEY INPUTS'!D7 -> Candace Gamblain | C47: X
A48: ='KEY INPUTS'!D8 -> Dave Caracciolo | C48: X
A49: ='KEY INPUTS'!D9 -> 0
A50: ='KEY INPUTS'!D10 -> 0
A51: ='KEY INPUTS'!D11 -> 0
A52: ='KEY INPUTS'!D12 -> 0
A53: ='KEY INPUTS'!D13 -> 0
A54: ='KEY INPUTS'!D14 -> 0
A55: ='KEY INPUTS'!D15 -> 0

Sheet Adoption Cert. (C-6)
A1: =""&'KEY INPUTS'!B2&" ADOPTION CERTIFICATION" -> 2025 ADOPTION CERTIFICATION
A3: ='KEY INPUTS'!B5 -> Weymouth Municipal Utilities Authority
A5: AUTHORITY BUDGET
A7: ="FISCAL YEAR: "&TEXT('KEY INPUTS'!B3, "mmmm dd, yyyy")&" to "&TEXT('KEY INPUTS'!B4,"mmmm dd, yyyy")&"" -> FISCAL YEAR: January 01, 2025 to December 31, 2025
A9: It is hereby certified that the Authority Budget and Capital Budget/Program annexed hereto is a true copy of
A10: ="the Budget adopted by the governing body of the "&'KEY INPUTS'!B5&"," -> the Budget adopted by the governing body of the Weymouth Municipal Utilities Authority,
A11: ="pursuant to N.J.A.C 5:31-2.3, on "&TEXT('Adopted Resolution (C-7)'!I9, "mmmm dd, yyyy")&"." -> pursuant to N.J.A.C 5:31-2.3, on December 17, 2024.
B14: Officer’s Signature: | D14: owenalisa@aol.com
B15: Name: | D15: ='KEY INPUTS'!B32 -> Alisa Owens
B16: Title: | D16: ='KEY INPUTS'!B33 -> Secretary
B17: Address: | D17: ='KEY INPUTS'!B34 -> 112 Steelman Landing Road
D18: ='KEY INPUTS'!B35 -> Mays Landing, NJ 08330
B19: Phone Number: | D19: ='KEY INPUTS'!B36 -> 609-909-0487 | E19: Fax: | G19: ='KEY INPUTS'!B37 -> 609-909-0487
B20: E-mail address: | D20: ='KEY INPUTS'!B38 -> owenalisa@aol.com
A41: Page C-6

Sheet Adopted Resolution (C-7)
A1: =""&'KEY INPUTS'!B2&" ADOPTED BUDGET RESOLUTION" -> 2025 ADOPTED BUDGET RESOLUTION
A3: ='KEY INPUTS'!B5 -> Weymouth Municipal Utilities Authority
A5: ="FISCAL YEAR: "&TEXT('KEY INPUTS'!B3, "mmmm dd, yyyy")&" to "&TEXT('KEY INPUTS'!B4,"mmmm dd, yyyy")&"" -> FISCAL YEAR: January 01, 2025 to December 31, 2025 | I5: Use these fields to enter information into the resolution:
A7: ="WHEREAS, the Annual Budget and Capital Budget/Program for the "&A3&" for the fiscal year" -> WHEREAS, the Annual Budget and Capital Budget/Program for the Weymouth Municipal Utilities Authority for the fiscal year
A8: ="beginning "&TEXT('KEY INPUTS'!B3, "mmmm dd, yyyy")&" and ending "&TEXT('KEY INPUTS'!B4, "mmmm dd, yyyy")&" has been presented for adoption before the governing body of the" -> beginning January 01, 2025 and ending December 31, 2025 has been presented for adoption before the governing body of the | I8: Open Public Meeting Date (month day, year): | M8: Enter date in cell I9 using mm/dd/yyyy
A9: =""&'KEY INPUTS'!B5&" at its open public meeting of "&TEXT(I9, "mmmm d, yyyy")&"; and" -> Weymouth Municipal Utilities Authority at its open public meeting of December 17, 2024; and | I9: 2024-12-17 | M9: format.
A11: WHEREAS, the Annual Budget and Capital Budget as presented for adoption reflects each item of revenue and appropriation in the
A12: same amount and title as set forth in the introduced and approved budget, including all amendments thereto, if any, which have been
A13: approved by the Director of the Division of Local Government Services; and
I14: Total Budget Revenues: | K14: $356,734.00
A15: ="WHEREAS, the Annual Budget presented for adoption reflects Total Revenues of "&TEXT(K14, "$#,##0.00")&", Total Appropriations, including any" -> WHEREAS, the Annual Budget presented for adoption reflects Total Revenues of $356,734.00, Total Appropriations, including any | I15: Total Budget Appropriations: | K15: $356,734.00
A16: ="Accumulated Deficit, if any, of "&TEXT(K15, "$#,##0.00")&", and Total Unrestricted Net Position utilized of "&TEXT(K16, "$#,##0.00")&"; and" -> Accumulated Deficit, if any, of $356,734.00, and Total Unrestricted Net Position utilized of $0.00; and | I16: Unrestricted Net Position Used:
A18: ="WHEREAS, the Capital Budget as presented for adoption reflect Total Capital Appropriations of "&TEXT(K18,"$#,##0.00")&" and Total" -> WHEREAS, the Capital Budget as presented for adoption reflect Total Capital Appropriations of $0.00 and Total | I18: Total Capital Appropriations:
A19: ="Unrestriced Net Position Utilized of "&TEXT(K19, "$#,##0.00")&"; and" -> Unrestriced Net Position Utilized of $0.00; and | I19: Total Capital Net Position Used:
A21: ="NOW, THEREFORE BE IT RESOLVED, by the governing body of the "&'KEY INPUTS'!B5&"" -> NOW, THEREFORE BE IT RESOLVED, by the governing body of the Weymouth Municipal Utilities Authority
A22: ="at an open public meeting held on "&IF(I9="","",TEXT(I9,"mmmm d, yyyy"))&" that the Annual Budget and Capital Budget/Program of the" -> at an open public meeting held on December 17, 2024 that the Annual Budget and Capital Budget/Program of the
A23: =""&'KEY INPUTS'!B5&" for the fiscal year beginning "&TEXT('KEY INPUTS'!B3, "mmmm dd, yyyy")&" and ending" -> Weymouth Municipal Utilities Authority for the fiscal year beginning January 01, 2025 and ending
A24: =""&TEXT('KEY INPUTS'!B4,"mmmm dd, yyyy")&" is hereby adopted and shall constitute appropriations for the purposes stated; and" -> December 31, 2025 is hereby adopted and shall constitute appropriations for the purposes stated; and
A26: BE IT FURTHER RESOLVED, that the Annual Budget and Capital Budget/Program as presented for adoption reflects each item of
A27: revenue and appropriation in the same amount and title as set forth in the introduced and approved budget, including all amendments
A28: thereto, if any, which have been approved by the Director of the Division of Local Government Services.
A31: Alisa Owen | E31: 2024-12-27
A32: (Secretary’s Signature) | E32: (Date)
A34: Governing Body Recorded Vote
A35: Member | C35: Aye | D35: Nay | E35: Abstain | G35: Absent
A36: ='KEY INPUTS'!D2 -> Fred Adams | C36: x
A37: ='KEY INPUTS'!D3 -> Robert Knight | C37: x
A38: ='KEY INPUTS'!D4 -> Lynn Harris | C38: x
A39: ='KEY INPUTS'!D5 -> Cindy Lagaie | C39: x
A40: ='KEY INPUTS'!D6 -> Kathleen Duda | C40: x
A41: ='KEY INPUTS'!D7 -> Candace Gamblain | C41: x
A42: ='KEY INPUTS'!D8 -> Dave Caracciolo | C42: x
A43: ='KEY INPUTS'!D9 -> 0
A44: ='KEY INPUTS'!D10 -> 0
A45: ='KEY INPUTS'!D11 -> 0
A46: ='KEY INPUTS'!D12 -> 0
A47: ='KEY INPUTS'!D13 -> 0
A48: ='KEY INPUTS'!D14 -> 0
A49: ='KEY INPUTS'!D15 -> 0
A50: Page C-7

Sheet Narrative and Information
A13: =""&'KEY INPUTS'!B2&" AUTHORITY BUDGET" -> 2025 AUTHORITY BUDGET
A14: NARRATIVE AND INFORMATION SECTION

Sheet Message & Analysis (N-1)
A1: =""&'KEY INPUTS'!B2&" AUTHORITY BUDGET MESSAGE & ANALYSIS" -> 2025 AUTHORITY BUDGET MESSAGE & ANALYSIS
A3: ='KEY INPUTS'!B5 -> Weymouth Municipal Utilities Authority
A5: ="FISCAL YEAR: "&TEXT('KEY INPUTS'!B3, "mmmm dd, yyyy")&" to "&TEXT('KEY INPUTS'!B4,"mmmm dd, yyyy")&"" -> FISCAL YEAR: January 01, 2025 to December 31, 2025
A7: Answer all questions below using the space provided. Do not attach answers as a separate document.
A9: ="1. Complete a brief statement on the Fiscal Year "&'KEY INPUTS'!B2&" proposed Annual Budget and make comparison to the Fiscal Year "&'KEY INPUTS'!B2-1&" adopted" -> 1. Complete a brief statement on the Fiscal Year 2025 proposed Annual Budget and make comparison to the Fiscal Year 2024 adopted
A10: budget for each Revenues and Appropriations. Explain any variances over +/-10% (as shown on budget pages F-2 and F-4) for each
A11: individual revenue and appropriation line item. Explanations of variances should include a description of the reason for the increase
A12: or decrease in the budgeted line item, not just an indication of the amount and percent of change. Upload any supporting documentation
A13: that will help explain the reason for the increase or decrease in the budgeted line item.
A14: In 2025 the Authority continued to adjust and adapt operation and maintenance costs that were previously performed by the HTMUA.
A16: The 2025 budget had several significant changes from the 2024 adopted budget due in large to the increase in providing services. The
A17: increase can be attributed to excess consumption resulting from old outdated leaking infrastructure which is currently being reviewed
A18: for future capital repairs and replacement.
A20: Administration other expenses increased due to additional office supplies and materials needed with the change in operations as
A22: Professional fees have increased for the cost of applying for grants and loans to replace old leaking infrastructure.
A25: Cost of Providing Services other expenses increased due to new maintenance and testing requirements that were previously performed by
A26: the HTMUA as part of the shared service agreements.
A28: User rates have been adjusted to reflect these new additional costs.
A30: 2. Describe the state of the local/regional economy and how it may impact the proposed Annual Budget, including the planned
A31: Capital Program.
A32: The local economy is stable and no significant changes in the number of users has been anticipated.
A39: 3. Describe the reasons for utilizing Unrestricted Net Position in the proposed Annual Budget (i.e. rate stabilization, debt service
A40: reduction, to balance the budget, etc.) If the Authority's budget anticipated a use of Unrestricted Net Position, this question must be
A41: answered.
A42: N/A
A50: Page N-1

Sheet Message & Analysis (N-1)(2)
A1: =""&'KEY INPUTS'!B2&" AUTHORITY BUDGET MESSAGE & ANALYSIS" -> 2025 AUTHORITY BUDGET MESSAGE & ANALYSIS
A3: ='KEY INPUTS'!B5 -> Weymouth Municipal Utilities Authority
A5: ="FISCAL YEAR: "&TEXT('KEY INPUTS'!B3, "mmmm dd, yyyy")&" to "&TEXT('KEY INPUTS'!B4,"mmmm dd, yyyy")&"" -> FISCAL YEAR: January 01, 2025 to December 31, 2025
A7: Answer all questions below using the space provided. Do not attach answers as a separate document.
A9: 4. Identify any sources of funds transferred to the County/Municipality as a budget subsidy or shared service payments, pilot
A10: payments, or other types of contracts or agreements. (Example - To provide police services to the Authority, etc. and explain the
A11: reason for the transfer (i.e. to balance the County/Municipal Budget, etc.)
A12: None
A24: ="5. The proposed budget must not reflect an anticipated deficit from "&'KEY INPUTS'!B2-1&" operations. If there exists an accumulated deficit from" -> 5. The proposed budget must not reflect an anticipated deficit from 2024 operations. If there exists an accumulated deficit from
A25: prior year's budgets (and funding is included in the proposed budget as a result of a prior year deficit) explain the funding plan to
A26: eliminate said deficit (N.J.S.A. 40A:5A-12). If the Authority has a net deficit reported in its most recent audit, it must provide a deficit
A27: reduction plan in response to this question.
A28: The Authority has not budgeted a deficit and no deficit currently exists.
A44: (Prepare a response to deficits in most recent audit report pertaining to Deficits to Unrestricted Net Position caused by recording
A45: Pension and Post-Employment Benefits liabilities as required by GASB 68 and GASB 75) and similar types of deficits in the audit
A46: report. How would these deficits be funded?
A48: Page N-1 (2)

Sheet Message & Analysis (N-1)(3)
A1: =""&'KEY INPUTS'!B2&" AUTHORITY BUDGET MESSAGE & ANALYSIS" -> 2025 AUTHORITY BUDGET MESSAGE & ANALYSIS
A3: ='KEY INPUTS'!B5 -> Weymouth Municipal Utilities Authority
A5: ="FISCAL YEAR: "&TEXT('KEY INPUTS'!B3, "mmmm dd, yyyy")&" to "&TEXT('KEY INPUTS'!B4,"mmmm dd, yyyy")&"" -> FISCAL YEAR: January 01, 2025 to December 31, 2025
A7: Answer the question below using the space provided.
A10: 6. Attach in FAST a schedule of the Authority's existing rate structure (connection fees, parking fees, service charges, etc.) if it
A11: has been changed since the prior year budget submission and a schedule of the proposed rate structure for the upcoming fiscal year.
A12: Explain any proposed changes in the rate structure and attach the resolution approving the change in rate structure, if applicable. (If no
A13: changes to fees or rates, indicate answer as "Rates Are Staying The Same".
A14: Water rate increase .17 cents 2.34 to 2.51
A15: Sewer rate increase .66 cents 3.41 to 4.07
A48: Page N-1 (3)

Sheet Contact Information (N-2)
A1: AUTHORITY CONTACT INFORMATION
A2: ="FISCAL YEAR "&'KEY INPUTS'!B2&"" -> FISCAL YEAR 2025
A4: Please complete the following information regarding this Authority. All information requested below must be completed.
A6: Name of Authority: | B6: ='KEY INPUTS'!B5 -> Weymouth Municipal Utilities Authority
A7: Federal ID Number: | B7: 22-1893403
A8: Address: | B8: 112 Steelman Landing Road
A10: City, State, Zip: | B10: Mays Landing | F10: NJ | G10: 08330
A11: Phone: (ext.) | B11: 609-909-0487 | D11: Fax: | F11: 609-909-0487
A13: Preparer’s Name: | B13: Fred Adams
A14: Preparer's Address: | B14: 112 Steelman Landing Road
A15: City, State, Zip: | B15: Mays Landing | F15: NJ | G15: 08330
A16: Phone: (ext.) | B16: 609-909-0487 | D16: Fax: | F16: 609-909-0487
A17: E-mail: | B17: fadams@gmail.com
A19: Chief Executive Officer* | B19: Alisa Owens
A20: *Or person who performs these functions under another title.
A21: Phone: (ext.) | B21: 609-909-0487 | D21: Fax: | F21: 609-909-0487
A22: E-mail: | B22: owenalisa@aol.com
A24: Chief Financial Officer* | B24: Alisa Owens
A25: *Or person who performs these functions under another title.
A26: Phone: (ext.) | B26: 609-909-0487 | D26: Fax: | F26: 609-909-0487
A27: E-mail: | B27: owenalisa@aol.com
A29: Name of Auditor: | B29: Harvey C. Cocozza, Jr., CPA
A30: Name of Firm: | B30: Ford, Scott & Associates, LLC
A31: Address: | B31: 1535 Haven Avenue
A32: City, State, Zip: | B32: Ocean City | F32: NJ | G32: 08226
A33: Phone: (ext.) | B33: 609-399-6333 ext 235 | D33: Fax: | F33: 609-399-3710
A34: E-mail: | B34: hcocozza@ford-scott.com
A45: Page N-2

Sheet Questionnaire (N-3)
A1: AUTHORITY INFORMATIONAL QUESTIONNAIRE
A3: ='KEY INPUTS'!B5 -> Weymouth Municipal Utilities Authority
A5: ="FISCAL YEAR: "&TEXT('KEY INPUTS'!B3, "mmmm dd, yyyy")&" to "&TEXT('KEY INPUTS'!B4,"mmmm dd, yyyy")&"" -> FISCAL YEAR: January 01, 2025 to December 31, 2025
A7: 1. Provide the number of individuals employed as reported on the Authority's most
A8: recent Form W-3, Transmittal of Wage, and Tax Statement: | C8: 1
A10: 2. Provide the amount of total salaries and wages reported on the Authority's most
A11: recent Form W-3, Transmittal of Wage, and Tax Statements: | C11: $37,057.00
A13: 3. Provide the number of regular voting members of the governing body: | C13: 5 | F13: (5 or 7 per State statute, possibly
F14: more for regional authorities)
A15: 4. Provide the number of alternate voting members of the governing body: | C15: 2 | F15: (Maximum is 2)
A17: 5. Regional Authorities Only - Did all individuals that were required to file a Financial Disclosure Statement for the current fiscal year
A18: because of their relationship with the Authority file the form as required? | C18: N/A
A19: Check to see if individuals filed their FDS on the FDS webpage: https://www.nj.gov/dca/divisions/dlgs/resources/fds.html.
A20: If "no", provide a list of those individuals who failed to file a Financial Disclosure Statement and an explanation as to the reason for
A21: their failure to file.
A23: 6. Does the Authority have any amounts receivable from current or former commissioners, officers, key employees, or the highest
A24: compensated employee? | C24: No
A25: If "yes", provide a list of those individuals, their position, the amount receivable, and a description of the amount due to the Authority.
A27: 7. Was the Authority a party to a business transaction with one of the following parties:
A28: a. A current or former commissioner, officer, key employee, or highest compensated employee? | H28: No
A29: b. A family member of a current or former commissioner, officer, key employee, or highest compensated employee? | H29: No
A30: c. An entity of which a current or former commissioner, officer, key employee, or highest compensated employee
A31: (or family member thereof) was an officer or direct or indirect owner? | H31: No
A32: If the answer to any of the above is "yes", provide a description of the transaction including the name of the commissioner, officer,
A33: key employee, or highest compensated employee (or family member thereof) of the Authority; the name of the entity and relationship
A34: to the individual or family member; the amount paid; and whether the transaction was subject to a competitive bid process.
A36: 8. Did the Authority during the most recent fiscal year pay premiums, directly
A37: or indirectly, on a personal benefit contract*? | C37: No
A38: *A personal benefit contract is generally any life insurance, annuity, or endowment contract that benefits, directly or indirectly,
A39: the transferor, a member of the transferor's family, or any other person designated by the transferor.
A40: If "yes", provide a description of the arrangement, the premiums paid, and indicate the beneficiary of the contract.
A42: 9. Explain the Authority's process for determining compensation for all persons listed on Page N-4. Include whether the Authority's
A43: process includes any of the following: 1) review and approval by the commissioners or a committee thereof; 2) study or survey of
A44: compensation data for comparable positions in similarly sized entities; 3) annual or periodic performance evaluation; 4) independent
A45: compensation consultant; and/or 5) written employment contract. Attach a narrative of your Authority's procedures for all
A46: individuals listed on Page N-4 (2 of 2).
A48: Page N-3

Sheet Questionnaire (N-3)(2)
A1: AUTHORITY INFORMATIONAL QUESTIONNAIRE
A2: (CONTINUED)
A4: ='KEY INPUTS'!B5 -> Weymouth Municipal Utilities Authority
A6: ="FISCAL YEAR: "&TEXT('KEY INPUTS'!B3, "mmmm dd, yyyy")&" to "&TEXT('KEY INPUTS'!B4,"mmmm dd, yyyy")&"" -> FISCAL YEAR: January 01, 2025 to December 31, 2025
A8: 10. Did the Authority pay for meals or catering during the current fiscal year? | D8: No
A9: If "yes", provide a detailed list of all meals and/or catering invoices for the current fiscal year
A10: and provide an explanation for each expenditure listed.
A12: 11. Did the Authority pay for travel expenses for any employee of individual listed on Page N-4? | D12: No
A13: If "yes", provide a detailed list of all travel expenses for the current fiscal year and provide an explanation for each expenditure listed.
A15: 12. Did the Authority provide any of the following to or for a person listed on Page N-4 or any other employee of the Authority?
A16: a. First class or charter travel | C16: No
A17: b. Travel for companions | C17: No
A18: c. Tax indemnification and gross-up payments | C18: No
A19: d. Discretionary spending account | C19: No
A20: e. Housing allowance or residence for personal use | C20: No
A21: f. Payments for business use of personal residence | C21: No
A22: g. Vehicle/auto allowance or vehicle for personal use | C22: No
A23: h. Health or social club dues or initiation fees | C23: No
A24: i. Personal services (i.e. maid, chauffeur, chef) | C24: No
A25: If the answer to any of the above is "yes", provide a description of the transaction including the name and position of the individual
A26: and the amount expended.
A28: 13. Did the Authority follow a written policy regarding payment or reimbursement for expenses incurred by employees
A29: and/or commissioners during the course of Authority business and does that policy require substantiation
A30: of expenses through receipts or invoices prior to reimbursement? | C30: Yes
A31: If "no", attach an explanation of the Authority's process for reimbursing employees and commissioners for expenses.
A32: (If your authority does not allow for reimbursements, indicate that in answer).
A34: 14. Did the Authority make any payments to current or former commissioners or employees for severance or termination?
A35: If "yes", provide explanation, including amount paid. | C35: No
A37: 15. Did the Authority make payments to current or former commissioners or employees that were contingent upon
A38: the performance of the Authority or that were considered discretionary bonuses? | C38: No
A39: If "yes", provide explanation including amount paid.
A41: 16. Did the Authority receive any notices from the Department of Environmental Protection or any other
A42: entity regarding maintenance or repairs required to the Authority's systems to bring them into compliance
A43: with current regulations and standards that it has not yet taken action to remediate? | D43: No
A44: If "yes", provide explanation as to why the Authority has not yet undertaken the required maintenance or repairs and describe
A45: the Authority's plan to address the conditions identified.
A47: Page N-3 (2)

Sheet Questionnaire (N-3)(3)
A1: AUTHORITY INFORMATIONAL QUESTIONNAIRE
A2: (CONTINUED)
A4: ='KEY INPUTS'!B5 -> Weymouth Municipal Utilities Authority
A6: ="FISCAL YEAR: "&TEXT('KEY INPUTS'!B3, "mmmm dd, yyyy")&" to "&TEXT('KEY INPUTS'!B4,"mmmm dd, yyyy")&"" -> FISCAL YEAR: January 01, 2025 to December 31, 2025
A8: 17. Did the Authority receive any notices of fines or assessments from the Department of Environmental Protection or any other entity
A9: due to noncompliance with current regulations (i.e. sewer overflow, etc.)? | D9: No
A10: If "yes", provide description of the event or condition that resulted in the fine/assessment and indicate the amount of the fine/assessment.
A49: Page N-3 (3)

Sheet Questionnaire (N-3)(4)
A1: AUTHORITY INFORMATIONAL QUESTIONNAIRE
A2: (CONTINUED)
A4: ='KEY INPUTS'!B5 -> Weymouth Municipal Utilities Authority
A6: ="FISCAL YEAR: "&TEXT('KEY INPUTS'!B3, "mmmm dd, yyyy")&" to "&TEXT('KEY INPUTS'!B4,"mmmm dd, yyyy")&"" -> FISCAL YEAR: January 01, 2025 to December 31, 2025
A7: Use the space below to provide clarification for any Questionnaire responses.
A9: Question #9 - Annually the Board reviews the salary of the 1 full time employee and the Board members.
A49: Page N-3 (4)

Sheet Commissioner Schedule (N-4)
A1: AUTHORITY SCHEDULE OF COMMISSIONERS, OFFICERS, KEY EMPLOYEES
A2: HIGHEST COMPENSATED EMPLOYEES AND INDEPENDENT CONTRACTORS
A4: ='KEY INPUTS'!B5 -> Weymouth Municipal Utilities Authority
A6: ="FISCAL YEAR: "&TEXT('KEY INPUTS'!B3, "mmmm dd, yyyy")&" to "&TEXT('KEY INPUTS'!B4,"mmmm dd, yyyy")&"" -> FISCAL YEAR: January 01, 2025 to December 31, 2025
A8: Complete the attached table for all persons required to be listed per #1-4 below.
A9: 1) List all of the Authority's current commissioners and officers and amount of compensation from the Authority
A10: as defined below. Enter zero if no compensation was paid.
A11: 2) List all of the Authority's key employees and highest compensated employees other than a commissioner of officer
A12: as defined below and amount of compensation from the Authority.
A13: 3) List all of the Authority's former officers, key employees, and highest compensated employees who received more than
A14: $100,000 in reportable compensation from the Authority during the most recent fiscal year completed.
A15: 4) List all of the Authority's former commissioners who received more than $10,000 in reportable compensation from the Authority
A16: during the most recent fiscal year completed.
A18: Commissioner: A member of the governing body of the authority with voting rights. Include alternates for the purposes
A19: of this schedule.
A21: Officer: A person elected or appointed to manage the authority's daily operations at any time during the year, such as the
A22: chairperson, vice-chairperson, secretary, or treasurer. For the purposes of this schedule, treat the authority's top
A23: management official and top financial officer as officers, if applicable. A member of the governing body may be
A24: both a commissioner and an officer for the purposes of this schedule.
A26: Key Employee: An employee or independent contractor of the authority (other than a commissioner or officer) who meets
A27: a) The individual received reportable compensation from the authority and other public entities in excess of
A28: $150,000 for the most recent fiscal year completed; and
A29: b) The individual has responsibilities or influence over the authority as a whole or has power to control or
A30: determine 10% or more of the authority's capital expenditures or operating budget.
A32: Highest Compensated Employee: One of the five highest compensated employees or independent contractors of the authority
A33: other than current commissioners, officers, or key employees whose aggregate reportable compensation from the
A34: authority and other public entities is greater than $100,000 for the most recent fiscal year completed.
A36: Compensation: All forms of cash and non-cash payments or benefits provided in exchance for services, including salaries and
A37: wages, bonuses, severance payments, deferred payments, retirement benefits, fringe benefits, and other financial
A38: arrangements or transactions such as perosnal vehicles, meals, housing, personal, and family education benefits, below-
A39: market loans, payment of personal or family travel, entertainment, and personal use of the Authority's prperty.
A40: Compensation includes payments and other benefits provided to both employees and independent contractors
A41: in exchange for services.
A43: Reportable Compensation (Use the most recent W-2 available): The aggregate compensation that is reported (or required to be
A44: reported) on Form W-2, box 1 or 5, whichever amount is greater, and/or Form 1099-MISC, box 7, for the most recent
A45: calendar year ended 60 days before the start of the proposed budget year.
A48: Page N-4

Sheet Page N-4 (2 of 2)
A1: Authority Schedule of Commissioners, Officers, Key Employees, Highest Compensated Employees and Independent Contractors (Continued)
A2: ='KEY INPUTS'!B5 -> Weymouth Municipal Utilities Authority
A3: ="For the Period "&TEXT('KEY INPUTS'!B3, "mmmm dd, yyyy")&" to "&TEXT('KEY INPUTS'!B4,"mmmm dd, yyyy")&"" -> For the Period January 01, 2025 to December 31, 2025
E5: Position | J5: Reportable Compensation from Authority (W-2/ 1099)
B6: Name | C6: Title | D6: Average Hours per Week Dedicated to Position | E6: Commissioner | F6: Officer | G6: Key Employee | H6: Highest Compensated | I6: Former | J6: Base Salary/ Stipend | K6: Bonus | L6: Other (auto allowance, expense account, payment in lieu of health benefits, etc.) | M6: Estimated amount of other compensation from the Authority (health benefits, pension, etc.) | N6: Total Compensation from Authority
A7: 1 | B7: Fred Adams | C7: Chairperson | D7: 1 | E7: X | J7: $1,200.00 | N7: =SUM(J7:M7) -> $1,200.00
A8: =A7+1 -> 2 | B8: Candace Gamblain | C8: Vice Chairperson | D8: 1 | E8: X | J8: $900.00 | N8: =SUM(J8:M8) -> $900.00
A9: =A8+1 -> 3 | B9: Dave Caracciolo | C9: Treasurer | D9: 1 | E9: X | J9: $1,080.00 | N9: $1,080.00
A10: 4 | B10: Cindy Lagaie | C10: Member | D10: 1 | E10: X | J10: $900.00 | N10: $900.00
A11: 5 | B11: Robert Knight | C11: Member | D11: 1 | E11: X | J11: $900.00 | N11: $900.00
A12: 6 | B12: Lynn Harris | C12: Alternate Member | D12: 1 | E12: X | J12: $660.00 | N12: $660.00
A13: 7 | B13: Kathleen Duda | C13: Alternate Member | D13: 1 | E13: X | J13: $660.00 | N13: $660.00
A14: 8 | B14: Alisa Owens | C14: Secretary | D14: 5 | F14: X | J14: $37,000.00 | M14: $800.00 | N14: $37,800.00
A15: 9 | N15: 0
A16: 10 | N16: 0
A17: 11 | N17: 0
A18: 12 | N18: 0
A19: 13 | N19: 0
A20: 14 | N20: 0
A21: 15 | N21: 0
A22: 16 | N22: 0
A23: 17 | N23: 0
A24: 18 | N24: 0
A25: 19 | N25: 0
A26: 20 | N26: 0
A27: 21 | N27: 0
A28: 22 | N28: 0
A29: 23 | N29: 0
A30: 24 | N30: 0
A31: 25 | N31: 0
A32: 26 | N32: 0
A33: 27 | N33: 0
A34: 28 | N34: 0
A35: 29 | N35: 0
A36: 30 | N36: 0
A37: 31 | N37: 0
A38: 32 | N38: 0
A39: 33 | N39: 0
A40: 34 | N40: 0
A41: 35 | N41: 0
B42: Total: | J42: =SUM(J7:J41) -> $43,300.00 | K42: =SUM(K7:K41) -> 0 | L42: =SUM(L7:L41) -> 0 | M42: =SUM(M7:M41) -> $800.00 | N42: =SUM(N7:N41) -> $44,100.00
A45: Page N-4 (2)

Sheet Health Benefits (N-5)
A1: Schedule of Health Benefits - Detailed Cost Analysis
A2: ='KEY INPUTS'!B5 -> Weymouth Municipal Utilities Authority
A3: ="For the Period: "&TEXT('KEY INPUTS'!B3, "mmmm dd, yyyy")&" to "&TEXT('KEY INPUTS'!B4,"mmmm dd, yyyy")&"" -> For the Period: January 01, 2025 to December 31, 2025
A4: If no health benefits, check this box:
B5: # of Covered Members (Medical & Rx) Proposed Budget | C5: Annual Cost Estimate per Employee Proposed Budget | D5: Total Cost Estimate Proposed Budget | E5: # of Covered Members (Medical & Rx) Current Year | F5: Annual Cost per Employee Current Year | G5: Total Current Year Cost | H5: $ Increase (Decrease) | I5: % Increase (Decrease)
A7: Active Employees - Health Benefits - Annual Cost
A8: Single Coverage | D8: =B8*C8 -> 0 | G8: =E8*F8 -> 0 | H8: =D8-G8 -> 0 | I8: =IFERROR(H8/G8,0) -> 0.0%
A9: Parent & Child | D9: =B9*C9 -> 0 | G9: =E9*F9 -> 0 | H9: =D9-G9 -> 0 | I9: =IFERROR(H9/G9,0) -> 0.0%
A10: Employee & Spouse (or Partner) | D10: =B10*C10 -> 0 | G10: =E10*F10 -> 0 | H10: =D10-G10 -> 0 | I10: 0.0%
A11: Family | D11: =B11*C11 -> 0 | G11: =E11*F11 -> 0 | H11: =D11-G11 -> 0 | I11: 0.0%
A12: Employee Cost Sharing Contribution (enter as negative - ) | H12: =D12-G12 -> 0 | I12: 0.0%
A13: Subtotal | B13: =SUM(B8:B12) -> 0 | D13: =SUM(D8:D12) -> 0 | E13: =SUM(E8:E12) -> 0 | G13: 0 | H13: 0 | I13: 0.0%
A15: Commissioners - Health Benefits - Annual Cost
A16: Single Coverage | D16: =B16*C16 -> 0 | G16: =E16*F16 -> 0 | H16: =D16-G16 -> 0 | I16: =IFERROR(H16/G16,0) -> 0.0%
A17: Parent & Child | D17: =B17*C17 -> 0 | G17: =E17*F17 -> 0 | H17: =D17-G17 -> 0 | I17: 0.0%
A18: Employee & Spouse (or Partner) | D18: =B18*C18 -> 0 | G18: =E18*F18 -> 0 | H18: =D18-G18 -> 0 | I18: 0.0%
A19: Family | D19: =B19*C19 -> 0 | G19: =E19*F19 -> 0 | H19: =D19-G19 -> 0 | I19: 0.0%
A20: Employee Cost Sharing Contribution (enter as negative - ) | H20: =D20-G20 -> 0 | I20: 0.0%
A21: Subtotal | B21: =SUM(B16:B20) -> 0 | D21: =SUM(D16:D20) -> 0 | E21: 0 | G21: =SUM(G16:G20) -> 0 | H21: 0 | I21: 0.0%
A23: Retirees - Health Benefits - Annual Cost
A24: Single Coverage | D24: =B24*C24 -> 0 | G24: =E24*F24 -> 0 | H24: =D24-G24 -> 0 | I24: =IFERROR(H24/G24,0) -> 0.0%
A25: Parent & Child | D25: =B25*C25 -> 0 | G25: =E25*F25 -> 0 | H25: =D25-G25 -> 0 | I25: 0.0%
A26: Employee & Spouse (or Partner) | D26: =B26*C26 -> 0 | G26: =E26*F26 -> 0 | H26: =D26-G26 -> 0 | I26: 0.0%
A27: Family | D27: =B27*C27 -> 0 | G27: =E27*F27 -> 0 | H27: =D27-G27 -> 0 | I27: 0.0%
A28: Employee Cost Sharing Contribution (enter as negative - ) | H28: =D28-G28 -> 0 | I28: 0.0%
A29: Subtotal | B29: =SUM(B24:B28) -> 0 | D29: =SUM(D24:D28) -> 0 | E29: 0 | G29: =SUM(G24:G28) -> 0 | H29: 0 | I29: 0.0%
A31: GRAND TOTAL | B31: =+B29+B21+B13 -> 0 | D31: =+D29+D21+D13 -> 0 | E31: =+E29+E21+E13 -> 0 | G31: =+G29+G21+G13 -> 0 | H31: =+H29+H21+H13 -> 0 | I31: =IFERROR(H31/G31,0) -> 0.0%
A33: Is medical coverage provided by the SHBP (Yes or No)?
A34: Is prescription drug coverage provided by the SHBP (Yes or No)?
A36: Page N-5

Sheet Accumulated Absences (N-6)
A1: =MID(CELL("filename",A2),FIND("]",CELL("filename",A2))+1,256) -> Accumulated Absences (N-6) | B1: =ROW() -> 1 | C1: 0001 | D1: 2024 | E1: ufb | F1: aal | H1: 00:00:00 | J1: ='KEY INPUTS'!B5 -> Weymouth Municipal Utilities Authority
A2: =MID(CELL("filename",A2),FIND("]",CELL("filename",A2))+1,256) -> Accumulated Absences (N-6) | B2: =ROW() -> 2 | C2: 0001 | D2: 2024 | E2: ufb | F2: aal | H2: 00:00:00 | J2: ACCUMULATED ABSENCE LIABILITY
A3: =MID(CELL("filename",A3),FIND("]",CELL("filename",A3))+1,256) -> Accumulated Absences (N-6) | B3: =ROW() -> 3 | C3: 0001 | D3: 2024 | E3: ufb | F3: aal | H3: 00:00:00 | K3: If no accumulated absences, check this box: | V3: Legal basis for benefit
A4: Accumulated Absences (N-6) | B4: =ROW() -> 4 | C4: 0001 | D4: 2024 | E4: ufb | F4: aal | H4: 00:00:00 | L4: Sick Time | N4: Vacation Time | P4: Compensatory Time | R4: Personal Time | T4: Other | V4: ("X" applicable items)
A5: Accumulated Absences (N-6) | B5: =ROW() -> 5 | C5: 0001 | D5: 2024 | E5: ufb | F5: aal | H5: 00:00:00 | K5: Bargaining Unit or Non-Union Position Eligible for Benefit (List Non-Union Employees by Individual Position Rather Than Each Named Individual) | L5: Gross Days of Accumulated Absence | M5: Dollar Value of Compensated Absences | N5: Gross Days of Accumulated Absence | O5: Dollar Value of Compensated Absences | P5: Gross Days of Accumulated Absence | Q5: Dollar Value of Compensated Absences | R5: Gross Days of Accumulated Absence | S5: Dollar Value of Compensated Absences | T5: Gross Days of Accumulated Absence | U5: Dollar Value of Compensated Absences | V5: Approved Labor Agreement | W5: Resolution | X5: Individual Employment Agreement
A6: Accumulated Absences (N-6) | B6: =ROW() -> 6 | C6: 0001 | D6: 2024 | E6: ufb | F6: aal | G6: ciaal | H6: 00:00:00
A7: Accumulated Absences (N-6) | B7: =ROW() -> 7 | C7: 0001 | D7: 2024 | E7: ufb | F7: aal | G7: ciaal | H7: 00:00:00
A8: =MID(CELL("filename",A8),FIND("]",CELL("filename",A8))+1,256) -> Accumulated Absences (N-6) | B8: =ROW() -> 8 | C8: 0001 | D8: 2024 | E8: ufb | F8: aal | G8: ciaal | H8: 00:00:00
A9: =MID(CELL("filename",A9),FIND("]",CELL("filename",A9))+1,256) -> Accumulated Absences (N-6) | B9: =ROW() -> 9 | C9: 0001 | D9: 2024 | E9: ufb | F9: aal | G9: ciaal | H9: 00:00:00
A10: =MID(CELL("filename",A10),FIND("]",CELL("filename",A10))+1,256) -> Accumulated Absences (N-6) | B10: =ROW() -> 10 | C10: 0001 | D10: 2024 | E10: ufb | F10: aal | G10: ciaal | H10: 00:00:00
A11: =MID(CELL("filename",A11),FIND("]",CELL("filename",A11))+1,256) -> Accumulated Absences (N-6) | B11: =ROW() -> 11 | C11: 0001 | D11: 2024 | E11: ufb | F11: aal | G11: ciaal | H11: 00:00:00
A12: Accumulated Absences (N-6) | B12: =ROW() -> 12 | C12: 0001 | D12: 2024 | E12: ufb | F12: aal | G12: ciaal | H12: 00:00:00
A13: Accumulated Absences (N-6) | B13: =ROW() -> 13 | C13: 0001 | D13: 2024 | E13: ufb | F13: aal | G13: ciaal | H13: 00:00:00
A14: Accumulated Absences (N-6) | B14: =ROW() -> 14 | C14: 0001 | D14: 2024 | E14: ufb | F14: aal | G14: ciaal | H14: 00:00:00
A15: Accumulated Absences (N-6) | B15: =ROW() -> 15 | C15: 0001 | D15: 2024 | E15: ufb | F15: aal | G15: ciaal | H15: 00:00:00
A16: Accumulated Absences (N-6) | B16: =ROW() -> 16 | C16: 0001 | D16: 2024 | E16: ufb | F16: aal | G16: ciaal | H16: 00:00:00
A17: Accumulated Absences (N-6) | B17: =ROW() -> 17 | C17: 0001 | D17: 2024 | E17: ufb | F17: aal | G17: ciaal | H17: 00:00:00
A18: Accumulated Absences (N-6) | B18: =ROW() -> 18 | C18: 0001 | D18: 2024 | E18: ufb | F18: aal | G18: ciaal | H18: 00:00:00
A19: Accumulated Absences (N-6) | B19: =ROW() -> 19 | C19: 0001 | D19: 2024 | E19: ufb | F19: aal | G19: ciaal | H19: 00:00:00
A32: Accumulated Absences (N-6) | B32: =ROW() -> 32 | C32: 0001 | D32: 2024 | E32: ufb | F32: aal | G32: ciaal | H32: 00:00:00
A33: Accumulated Absences (N-6) | B33: =ROW() -> 33 | C33: 0001 | D33: 2024 | E33: ufb | F33: aal | G33: ciaal | H33: 00:00:00
A34: Accumulated Absences (N-6) | B34: =ROW() -> 34 | C34: 0001 | D34: 2024 | E34: ufb | F34: aal | G34: ciaal | H34: 00:00:00
A35: Accumulated Absences (N-6) | B35: =ROW() -> 35 | C35: 0001 | D35: 2024 | E35: ufb | F35: aal | G35: ciaal | H35: 00:00:00
A36: Accumulated Absences (N-6) | B36: =ROW() -> 36 | C36: 0001 | D36: 2024 | E36: ufb | F36: aal | G36: ciaal | H36: 00:00:00
A37: Accumulated Absences (N-6) | B37: =ROW() -> 37 | C37: 0001 | D37: 2024 | E37: ufb | F37: aal | G37: ciaal | H37: 00:00:00
A38: Accumulated Absences (N-6) | B38: =ROW() -> 38 | C38: 0001 | D38: 2024 | E38: ufb | F38: aal | G38: totaal | H38: 00:00:00 | K38: TOTALS (THIS PAGE ONLY) | L38: =SUM(L6:L37) -> 0 | M38: $0.00 | N38: 0 | O38: $0.00 | P38: 0 | Q38: $0.00 | R38: 0 | S38: $0.00 | T38: 0 | U38: $0.00
A39: Accumulated Absences (N-6) | B39: =ROW() -> 39 | C39: 0001 | D39: 2024 | E39: ufb | F39: aal | H39: 00:00:00
K42: N-6 Accumulated Absence Liability

Sheet Accumulated Absences (N-6) (2)
A1: =MID(CELL("filename",A2),FIND("]",CELL("filename",A2))+1,256) -> Accumulated Absences (N-6) (2) | B1: =ROW() -> 1 | C1: 0001 | D1: 2024 | E1: ufb | F1: aal | H1: 00:00:00 | J1: ='KEY INPUTS'!B5 -> Weymouth Municipal Utilities Authority
A2: =MID(CELL("filename",A2),FIND("]",CELL("filename",A2))+1,256) -> Accumulated Absences (N-6) (2) | B2: =ROW() -> 2 | C2: 0001 | D2: 2024 | E2: ufb | F2: aal | H2: 00:00:00 | J2: ACCUMULATED ABSENCE LIABILITY
A3: =MID(CELL("filename",A3),FIND("]",CELL("filename",A3))+1,256) -> Accumulated Absences (N-6) (2) | B3: =ROW() -> 3 | C3: 0001 | D3: 2024 | E3: ufb | F3: aal | H3: 00:00:00 | V3: Legal basis for benefit
A4: Accumulated Absences (N-6) (2) | B4: =ROW() -> 4 | C4: 0001 | D4: 2024 | E4: ufb | F4: aal | H4: 00:00:00 | L4: Sick Time | N4: Vacation Time | P4: Compensatory Time | R4: Personal Time | T4: Other | V4: ("X" applicable items)
A5: Accumulated Absences (N-6) (2) | B5: =ROW() -> 5 | C5: 0001 | D5: 2024 | E5: ufb | F5: aal | H5: 00:00:00 | K5: Bargaining Unit or Non-Union Position Eligible for Benefit (List Non-Union Employees by Individual Position Rather Than Each Named Individual) | L5: Gross Days of Accumulated Absence | M5: Dollar Value of Compensated Absences | N5: Gross Days of Accumulated Absence | O5: Dollar Value of Compensated Absences | P5: Gross Days of Accumulated Absence | Q5: Dollar Value of Compensated Absences | R5: Gross Days of Accumulated Absence | S5: Dollar Value of Compensated Absences | T5: Gross Days of Accumulated Absence | U5: Dollar Value of Compensated Absences | V5: Approved Labor Agreement | W5: Resolution | X5: Individual Employment Agreement
A6: Accumulated Absences (N-6) (2) | B6: =ROW() -> 6 | C6: 0001 | D6: 2024 | E6: ufb | F6: aal | G6: ciaal | H6: 00:00:00
A7: Accumulated Absences (N-6) (2) | B7: =ROW() -> 7 | C7: 0001 | D7: 2024 | E7: ufb | F7: aal | G7: ciaal | H7: 00:00:00
A8: =MID(CELL("filename",A8),FIND("]",CELL("filename",A8))+1,256) -> Accumulated Absences (N-6) (2) | B8: =ROW() -> 8 | C8: 0001 | D8: 2024 | E8: ufb | F8: aal | G8: ciaal | H8: 00:00:00
A9: =MID(CELL("filename",A9),FIND("]",CELL("filename",A9))+1,256) -> Accumulated Absences (N-6) (2) | B9: =ROW() -> 9 | C9: 0001 | D9: 2024 | E9: ufb | F9: aal | G9: ciaal | H9: 00:00:00
A10: =MID(CELL("filename",A10),FIND("]",CELL("filename",A10))+1,256) -> Accumulated Absences (N-6) (2) | B10: =ROW() -> 10 | C10: 0001 | D10: 2024 | E10: ufb | F10: aal | G10: ciaal | H10: 00:00:00
A11: =MID(CELL("filename",A11),FIND("]",CELL("filename",A11))+1,256) -> Accumulated Absences (N-6) (2) | B11: =ROW() -> 11 | C11: 0001 | D11: 2024 | E11: ufb | F11: aal | G11: ciaal | H11: 00:00:00
A12: Accumulated Absences (N-6) (2) | B12: =ROW() -> 12 | C12: 0001 | D12: 2024 | E12: ufb | F12: aal | G12: ciaal | H12: 00:00:00
A13: Accumulated Absences (N-6) (2) | B13: =ROW() -> 13 | C13: 0001 | D13: 2024 | E13: ufb | F13: aal | G13: ciaal | H13: 00:00:00
A14: Accumulated Absences (N-6) (2) | B14: =ROW() -> 14 | C14: 0001 | D14: 2024 | E14: ufb | F14: aal | G14: ciaal | H14: 00:00:00
A15: Accumulated Absences (N-6) (2) | B15: =ROW() -> 15 | C15: 0001 | D15: 2024 | E15: ufb | F15: aal | G15: ciaal | H15: 00:00:00
A16: Accumulated Absences (N-6) (2) | B16: =ROW() -> 16 | C16: 0001 | D16: 2024 | E16: ufb | F16: aal | G16: ciaal | H16: 00:00:00
A17: Accumulated Absences (N-6) (2) | B17: =ROW() -> 17 | C17: 0001 | D17: 2024 | E17: ufb | F17: aal | G17: ciaal | H17: 00:00:00
A18: Accumulated Absences (N-6) (2) | B18: =ROW() -> 18 | C18: 0001 | D18: 2024 | E18: ufb | F18: aal | G18: ciaal | H18: 00:00:00
A19: Accumulated Absences (N-6) (2) | B19: =ROW() -> 19 | C19: 0001 | D19: 2024 | E19: ufb | F19: aal | G19: ciaal | H19: 00:00:00
A32: Accumulated Absences (N-6) (2) | B32: =ROW() -> 32 | C32: 0001 | D32: 2024 | E32: ufb | F32: aal | G32: ciaal | H32: 00:00:00
A33: Accumulated Absences (N-6) (2) | B33: =ROW() -> 33 | C33: 0001 | D33: 2024 | E33: ufb | F33: aal | G33: ciaal | H33: 00:00:00
A34: Accumulated Absences (N-6) (2) | B34: =ROW() -> 34 | C34: 0001 | D34: 2024 | E34: ufb | F34: aal | G34: ciaal | H34: 00:00:00
A35: Accumulated Absences (N-6) (2) | B35: =ROW() -> 35 | C35: 0001 | D35: 2024 | E35: ufb | F35: aal | G35: ciaal | H35: 00:00:00
A36: Accumulated Absences (N-6) (2) | B36: =ROW() -> 36 | C36: 0001 | D36: 2024 | E36: ufb | F36: aal | G36: ciaal | H36: 00:00:00
A37: Accumulated Absences (N-6) (2) | B37: =ROW() -> 37 | C37: 0001 | D37: 2024 | E37: ufb | F37: aal | G37: ciaal | H37: 00:00:00
A38: Accumulated Absences (N-6) (2) | B38: =ROW() -> 38 | C38: 0001 | D38: 2024 | E38: ufb | F38: aal | G38: totaal | H38: 00:00:00 | K38: TOTALS (THIS PAGE ONLY) | L38: =SUM(L6:L37) -> 0 | M38: $0.00 | N38: 0 | O38: $0.00 | P38: 0 | Q38: $0.00 | R38: 0 | S38: $0.00 | T38: 0 | U38: $0.00
A39: Accumulated Absences (N-6) (2) | B39: =ROW() -> 39 | C39: 0001 | D39: 2024 | E39: ufb | F39: aal | H39: 00:00:00
K42: N-6 (2) Accumulated Absence Liability

Sheet Accumulated Absences (N-6) (3)
A1: =MID(CELL("filename",A2),FIND("]",CELL("filename",A2))+1,256) -> Accumulated Absences (N-6) (3) | B1: =ROW() -> 1 | C1: 0001 | D1: 2024 | E1: ufb | F1: aal | H1: 00:00:00 | J1: ='KEY INPUTS'!B5 -> Weymouth Municipal Utilities Authority
A2: =MID(CELL("filename",A2),FIND("]",CELL("filename",A2))+1,256) -> Accumulated Absences (N-6) (3) | B2: =ROW() -> 2 | C2: 0001 | D2: 2024 | E2: ufb | F2: aal | H2: 00:00:00 | J2: ACCUMULATED ABSENCE LIABILITY
A3: =MID(CELL("filename",A3),FIND("]",CELL("filename",A3))+1,256) -> Accumulated Absences (N-6) (3) | B3: =ROW() -> 3 | C3: 0001 | D3: 2024 | E3: ufb | F3: aal | H3: 00:00:00 | V3: Legal basis for benefit
A4: Accumulated Absences (N-6) (3) | B4: =ROW() -> 4 | C4: 0001 | D4: 2024 | E4: ufb | F4: aal | H4: 00:00:00 | L4: Sick Time | N4: Vacation Time | P4: Compensatory Time | R4: Personal Time | T4: Other | V4: ("X" applicable items)
A5: Accumulated Absences (N-6) (3) | B5: =ROW() -> 5 | C5: 0001 | D5: 2024 | E5: ufb | F5: aal | H5: 00:00:00 | K5: Bargaining Unit or Non-Union Position Eligible for Benefit (List Non-Union Employees by Individual Position Rather Than Each Named Individual) | L5: Gross Days of Accumulated Absence | M5: Dollar Value of Compensated Absences | N5: Gross Days of Accumulated Absence | O5: Dollar Value of Compensated Absences | P5: Gross Days of Accumulated Absence | Q5: Dollar Value of Compensated Absences | R5: Gross Days of Accumulated Absence | S5: Dollar Value of Compensated Absences | T5: Gross Days of Accumulated Absence | U5: Dollar Value of Compensated Absences | V5: Approved Labor Agreement | W5: Resolution | X5: Individual Employment Agreement
A6: Accumulated Absences (N-6) (3) | B6: =ROW() -> 6 | C6: 0001 | D6: 2024 | E6: ufb | F6: aal | G6: ciaal | H6: 00:00:00
A7: Accumulated Absences (N-6) (3) | B7: =ROW() -> 7 | C7: 0001 | D7: 2024 | E7: ufb | F7: aal | G7: ciaal | H7: 00:00:00
A8: =MID(CELL("filename",A8),FIND("]",CELL("filename",A8))+1,256) -> Accumulated Absences (N-6) (3) | B8: =ROW() -> 8 | C8: 0001 | D8: 2024 | E8: ufb | F8: aal | G8: ciaal | H8: 00:00:00
A9: =MID(CELL("filename",A9),FIND("]",CELL("filename",A9))+1,256) -> Accumulated Absences (N-6) (3) | B9: =ROW() -> 9 | C9: 0001 | D9: 2024 | E9: ufb | F9: aal | G9: ciaal | H9: 00:00:00
A10: =MID(CELL("filename",A10),FIND("]",CELL("filename",A10))+1,256) -> Accumulated Absences (N-6) (3) | B10: =ROW() -> 10 | C10: 0001 | D10: 2024 | E10: ufb | F10: aal | G10: ciaal | H10: 00:00:00
A11: =MID(CELL("filename",A11),FIND("]",CELL("filename",A11))+1,256) -> Accumulated Absences (N-6) (3) | B11: =ROW() -> 11 | C11: 0001 | D11: 2024 | E11: ufb | F11: aal | G11: ciaal | H11: 00:00:00
A12: Accumulated Absences (N-6) (3) | B12: =ROW() -> 12 | C12: 0001 | D12: 2024 | E12: ufb | F12: aal | G12: ciaal | H12: 00:00:00
A13: Accumulated Absences (N-6) (3) | B13: =ROW() -> 13 | C13: 0001 | D13: 2024 | E13: ufb | F13: aal | G13: ciaal | H13: 00:00:00
A14: Accumulated Absences (N-6) (3) | B14: =ROW() -> 14 | C14: 0001 | D14: 2024 | E14: ufb | F14: aal | G14: ciaal | H14: 00:00:00
A15: Accumulated Absences (N-6) (3) | B15: =ROW() -> 15 | C15: 0001 | D15: 2024 | E15: ufb | F15: aal | G15: ciaal | H15: 00:00:00
A16: Accumulated Absences (N-6) (3) | B16: =ROW() -> 16 | C16: 0001 | D16: 2024 | E16: ufb | F16: aal | G16: ciaal | H16: 00:00:00
A17: Accumulated Absences (N-6) (3) | B17: =ROW() -> 17 | C17: 0001 | D17: 2024 | E17: ufb | F17: aal | G17: ciaal | H17: 00:00:00
A18: Accumulated Absences (N-6) (3) | B18: =ROW() -> 18 | C18: 0001 | D18: 2024 | E18: ufb | F18: aal | G18: ciaal | H18: 00:00:00
A19: Accumulated Absences (N-6) (3) | B19: =ROW() -> 19 | C19: 0001 | D19: 2024 | E19: ufb | F19: aal | G19: ciaal | H19: 00:00:00
A32: Accumulated Absences (N-6) (3) | B32: =ROW() -> 32 | C32: 0001 | D32: 2024 | E32: ufb | F32: aal | G32: ciaal | H32: 00:00:00
A33: Accumulated Absences (N-6) (3) | B33: =ROW() -> 33 | C33: 0001 | D33: 2024 | E33: ufb | F33: aal | G33: ciaal | H33: 00:00:00
A34: Accumulated Absences (N-6) (3) | B34: =ROW() -> 34 | C34: 0001 | D34: 2024 | E34: ufb | F34: aal | G34: ciaal | H34: 00:00:00
A35: Accumulated Absences (N-6) (3) | B35: =ROW() -> 35 | C35: 0001 | D35: 2024 | E35: ufb | F35: aal | G35: ciaal | H35: 00:00:00
A36: Accumulated Absences (N-6) (3) | B36: =ROW() -> 36 | C36: 0001 | D36: 2024 | E36: ufb | F36: aal | G36: ciaal | H36: 00:00:00
A37: Accumulated Absences (N-6) (3) | B37: =ROW() -> 37 | C37: 0001 | D37: 2024 | E37: ufb | F37: aal | G37: ciaal | H37: 00:00:00
A38: Accumulated Absences (N-6) (3) | B38: =ROW() -> 38 | C38: 0001 | D38: 2024 | E38: ufb | F38: aal | G38: totaal | H38: 00:00:00 | K38: TOTALS (THIS PAGE ONLY) | L38: =SUM(L6:L37) -> 0 | M38: $0.00 | N38: 0 | O38: $0.00 | P38: 0 | Q38: $0.00 | R38: 0 | S38: $0.00 | T38: 0 | U38: $0.00
A39: Accumulated Absences (N-6) (3) | B39: =ROW() -> 39 | C39: 0001 | D39: 2024 | E39: ufb | F39: aal | H39: 00:00:00
K42: N-6 (3) Accumulated Absence Liability

Sheet Accumulated Absences (N-6)Total
A1: =MID(CELL("filename",A2),FIND("]",CELL("filename",A2))+1,256) -> Accumulated Absences (N-6)Total | B1: =ROW() -> 1 | C1: 0001 | D1: 2024 | E1: ufb | F1: aal | H1: 00:00:00 | J1: ='KEY INPUTS'!B5 -> Weymouth Municipal Utilities Authority
A2: =MID(CELL("filename",A2),FIND("]",CELL("filename",A2))+1,256) -> Accumulated Absences (N-6)Total | B2: =ROW() -> 2 | C2: 0001 | D2: 2024 | E2: ufb | F2: aal | H2: 00:00:00 | J2: ACCUMULATED ABSENCE LIABILITY
A3: =MID(CELL("filename",A3),FIND("]",CELL("filename",A3))+1,256) -> Accumulated Absences (N-6)Total | B3: =ROW() -> 3 | C3: 0001 | D3: 2024 | E3: ufb | F3: aal | H3: 00:00:00 | V3: Legal basis for benefit
A4: Accumulated Absences (N-6)Total | B4: =ROW() -> 4 | C4: 0001 | D4: 2024 | E4: ufb | F4: aal | H4: 00:00:00 | L4: Sick Time | N4: Vacation Time | P4: Compensatory Time | R4: Personal Time | T4: Other | V4: ("X" applicable items)
A5: Accumulated Absences (N-6)Total | B5: =ROW() -> 5 | C5: 0001 | D5: 2024 | E5: ufb | F5: aal | H5: 00:00:00 | K5: Bargaining Unit or Non-Union Position Eligible for Benefit (List Non-Union Employees by Individual Position Rather Than Each Named Individual) | L5: Gross Days of Accumulated Absence | M5: Dollar Value of Compensated Absences | N5: Gross Days of Accumulated Absence | O5: Dollar Value of Compensated Absences | P5: Gross Days of Accumulated Absence | Q5: Dollar Value of Compensated Absences | R5: Gross Days of Accumulated Absence | S5: Dollar Value of Compensated Absences | T5: Gross Days of Accumulated Absence | U5: Dollar Value of Compensated Absences | V5: Approved Labor Agreement | W5: Resolution | X5: Individual Employment Agreement
A6: Accumulated Absences (N-6)Total | B6: =ROW() -> 6 | C6: 0001 | D6: 2024 | E6: ufb | F6: aal | G6: ciaal | H6: 00:00:00
A7: Accumulated Absences (N-6)Total | B7: =ROW() -> 7 | C7: 0001 | D7: 2024 | E7: ufb | F7: aal | G7: ciaal | H7: 00:00:00
A8: =MID(CELL("filename",A8),FIND("]",CELL("filename",A8))+1,256) -> Accumulated Absences (N-6)Total | B8: =ROW() -> 8 | C8: 0001 | D8: 2024 | E8: ufb | F8: aal | G8: ciaal | H8: 00:00:00
A9: =MID(CELL("filename",A9),FIND("]",CELL("filename",A9))+1,256) -> Accumulated Absences (N-6)Total | B9: =ROW() -> 9 | C9: 0001 | D9: 2024 | E9: ufb | F9: aal | G9: ciaal | H9: 00:00:00
A10: =MID(CELL("filename",A10),FIND("]",CELL("filename",A10))+1,256) -> Accumulated Absences (N-6)Total | B10: =ROW() -> 10 | C10: 0001 | D10: 2024 | E10: ufb | F10: aal | G10: ciaal | H10: 00:00:00
A11: =MID(CELL("filename",A11),FIND("]",CELL("filename",A11))+1,256) -> Accumulated Absences (N-6)Total | B11: =ROW() -> 11 | C11: 0001 | D11: 2024 | E11: ufb | F11: aal | G11: ciaal | H11: 00:00:00
A12: Accumulated Absences (N-6)Total | B12: =ROW() -> 12 | C12: 0001 | D12: 2024 | E12: ufb | F12: aal | G12: ciaal | H12: 00:00:00
A13: Accumulated Absences (N-6)Total | B13: =ROW() -> 13 | C13: 0001 | D13: 2024 | E13: ufb | F13: aal | G13: ciaal | H13: 00:00:00
A14: Accumulated Absences (N-6)Total | B14: =ROW() -> 14 | C14: 0001 | D14: 2024 | E14: ufb | F14: aal | G14: ciaal | H14: 00:00:00
A15: Accumulated Absences (N-6)Total | B15: =ROW() -> 15 | C15: 0001 | D15: 2024 | E15: ufb | F15: aal | G15: ciaal | H15: 00:00:00
A16: Accumulated Absences (N-6)Total | B16: =ROW() -> 16 | C16: 0001 | D16: 2024 | E16: ufb | F16: aal | G16: ciaal | H16: 00:00:00
A17: Accumulated Absences (N-6)Total | B17: =ROW() -> 17 | C17: 0001 | D17: 2024 | E17: ufb | F17: aal | G17: ciaal | H17: 00:00:00
A18: Accumulated Absences (N-6)Total | B18: =ROW() -> 18 | C18: 0001 | D18: 2024 | E18: ufb | F18: aal | G18: ciaal | H18: 00:00:00
A19: Accumulated Absences (N-6)Total | B19: =ROW() -> 19 | C19: 0001 | D19: 2024 | E19: ufb | F19: aal | G19: ciaal | H19: 00:00:00
A32: Accumulated Absences (N-6)Total | B32: =ROW() -> 32 | C32: 0001 | D32: 2024 | E32: ufb | F32: aal | G32: ciaal | H32: 00:00:00
A33: Accumulated Absences (N-6)Total | B33: =ROW() -> 33 | C33: 0001 | D33: 2024 | E33: ufb | F33: aal | G33: ciaal | H33: 00:00:00
A34: Accumulated Absences (N-6)Total | B34: =ROW() -> 34 | C34: 0001 | D34: 2024 | E34: ufb | F34: aal | G34: ciaal | H34: 00:00:00
A35: Accumulated Absences (N-6)Total | B35: =ROW() -> 35 | C35: 0001 | D35: 2024 | E35: ufb | F35: aal | G35: ciaal | H35: 00:00:00
A36: Accumulated Absences (N-6)Total | B36: =ROW() -> 36 | C36: 0001 | D36: 2024 | E36: ufb | F36: aal | G36: ciaal | H36: 00:00:00
A37: Accumulated Absences (N-6)Total | B37: =ROW() -> 37 | C37: 0001 | D37: 2024 | E37: ufb | F37: aal | G37: ciaal | H37: 00:00:00
A38: Accumulated Absences (N-6)Total | B38: =ROW() -> 38 | C38: 0001 | D38: 2024 | E38: ufb | F38: aal | G38: totaal | H38: 00:00:00 | K38: TOTALS (ALL PAGES) | L38: =SUM(L6:L37)+'Accumulated Absences (N-6)'!L38+'Accumulated Absences (N-6) (2)'!L38+'Accumulated Absences (N-6) (3)'!L38 -> 0 | M38: =SUM(M6:M37)+'Accumulated Absences (N-6)'!M38+'Accumulated Absences (N-6) (2)'!M38+'Accumulated Absences (N-6) (3)'!M38 -> $0.00 | N38: =SUM(N6:N37)+'Accumulated Absences (N-6)'!N38+'Accumulated Absences (N-6) (2)'!N38+'Accumulated Absences (N-6) (3)'!N38 -> 0 | O38: =SUM(O6:O37)+'Accumulated Absences (N-6)'!O38+'Accumulated Absences (N-6) (2)'!O38+'Accumulated Absences (N-6) (3)'!O38 -> $0.00 | P38: =SUM(P6:P37)+'Accumulated Absences (N-6)'!P38+'Accumulated Absences (N-6) (2)'!P38+'Accumulated Absences (N-6) (3)'!P38 -> 0 | Q38: =SUM(Q6:Q37)+'Accumulated Absences (N-6)'!Q38+'Accumulated Absences (N-6) (2)'!Q38+'Accumulated Absences (N-6) (3)'!Q38 -> $0.00 | R38: =SUM(R6:R37)+'Accumulated Absences (N-6)'!R38+'Accumulated Absences (N-6) (2)'!R38+'Accumulated Absences (N-6) (3)'!R38 -> 0 | S38: =SUM(S6:S37)+'Accumulated Absences (N-6)'!S38+'Accumulated Absences (N-6) (2)'!S38+'Accumulated Absences (N-6) (3)'!S38 -> $0.00 | T38: =SUM(T6:T37)+'Accumulated Absences (N-6)'!T38+'Accumulated Absences (N-6) (2)'!T38+'Accumulated Absences (N-6) (3)'!T38 -> 0 | U38: =SUM(U6:U37)+'Accumulated Absences (N-6)'!U38+'Accumulated Absences (N-6) (2)'!U38+'Accumulated Absences (N-6) (3)'!U38 -> $0.00
A39: Accumulated Absences (N-6)Total | B39: =ROW() -> 39 | C39: 0001 | D39: 2024 | E39: ufb | F39: aal | H39: 00:00:00
L40: Total Funds Reserved per Most Recently Completed Audit: | O40: Total Employees subject to accumulated absence restrictions of P.L. 2007, c. 92:
L41: Total Funds Appropriated in Current Budget: | O41: Total Employees subject to accumulated absence restrictions of P.L. 2010, c. 3:
K43: N-6 (TOTAL) Accumulated Absence Liability

Sheet Shared Services (N-7)
A1: Schedule of Shared Service Agreements
A2: ='KEY INPUTS'!B5 -> Weymouth Municipal Utilities Authority
A3: ="For the Period: "&TEXT('KEY INPUTS'!B3, "mmmm dd, yyyy")&" to "&TEXT('KEY INPUTS'!B4,"mmmm dd, yyyy")&"" -> For the Period: January 01, 2025 to December 31, 2025
A4: If no shared services, check this box: | AD4: TRUE
A5: Enter the shared service agreements that the Authority currently engages in and identify the amount that is received/paid for those services.
A6: Name of Entity Providing Service | B6: Name of Entity Receiving Service | C6: Type of Shared Service Provided | D6: Comments (Enter more specifics if needed) | E6: Agreement Effective Date | F6: Agreement End Date | G6: Amount to be Received by/ Paid from Authority
A39: Page N-7

Sheet Shared Services (N-7) (2)
A1: Schedule of Shared Service Agreements (Cont.)
A2: ='KEY INPUTS'!B5 -> Weymouth Municipal Utilities Authority
A3: ="For the Period: "&TEXT('KEY INPUTS'!B3, "mmmm dd, yyyy")&" to "&TEXT('KEY INPUTS'!B4,"mmmm dd, yyyy")&"" -> For the Period: January 01, 2025 to December 31, 2025
A5: Enter the shared service agreements that the Authority currently engages in and identify the amount that is received/paid for those services.
A6: Name of Entity Providing Service | B6: Name of Entity Receiving Service | C6: Type of Shared Service Provided | D6: Comments (Enter more specifics if needed) | E6: Agreement Effective Date | F6: Agreement End Date | G6: Amount to be Received by/ Paid from Authority
A39: Page N-7(2)

Sheet Financial Schedule
A13: =""&'KEY INPUTS'!B2&" AUTHORITY BUDGET" -> 2025 AUTHORITY BUDGET
A14: FINANCIAL SCHEDULES SECTION

Sheet F-1 Summary
A1: ='KEY INPUTS'!B5 -> Weymouth Municipal Utilities Authority
A2: ="For the Period: "&TEXT('KEY INPUTS'!B3, "mmmm dd, yyyy")&" to "&TEXT('KEY INPUTS'!B4, "mmmm dd, yyyy")&"" -> For the Period: January 01, 2025 to December 31, 2025
D4: ="FY "&'KEY INPUTS'!B2&" Proposed Budget" -> FY 2025 Proposed Budget | L4: ="FY "&'KEY INPUTS'!B2-1&" Adopted Budget" -> FY 2024 Adopted Budget | N4: $ Increase (Decrease) Proposed vs. Adopted | O4: % Increase (Decrease) Proposed vs. Adopted
D5: ='KEY INPUTS'!D21 -> Water | E5: ='KEY INPUTS'!D22 -> Sewer | F5: ='KEY INPUTS'!D23 -> Operation #3 | G5: ='KEY INPUTS'!D24 -> Operation #4 | H5: ='KEY INPUTS'!D25 -> Operation #5 | I5: ='KEY INPUTS'!D26 -> Operation #6 | J5: Total All Operations | L5: Total All Operations | N5: All Operations | O5: All Operations
A6: REVENUES
B8: Total Operating Revenues | D8: =+'F-2 Revenues (Proposed)'!D40 -> $122,425 | E8: =+'F-2 Revenues (Proposed)'!E40 -> $234,309 | F8: =+'F-2 Revenues (Proposed)'!F40 -> 0 | G8: =+'F-2 Revenues (Proposed)'!G40 -> 0 | H8: =+'F-2 Revenues (Proposed)'!H40 -> 0 | I8: =+'F-2 Revenues (Proposed)'!I40 -> 0 | J8: =SUM(D8:I8) -> $356,734 | L8: =+'F-2 Revenues (Proposed)'!L40 -> $242,080 | N8: =J8-L8 -> $114,654 | O8: =N8/L8 -> 47.4%
B10: Total Non-Operating Revenues | D10: =+'F-2 Revenues (Proposed)'!D55 -> 0 | E10: =+'F-2 Revenues (Proposed)'!E55 -> 0 | F10: =+'F-2 Revenues (Proposed)'!F55 -> 0 | G10: =+'F-2 Revenues (Proposed)'!G55 -> 0 | H10: =+'F-2 Revenues (Proposed)'!H55 -> 0 | I10: =+'F-2 Revenues (Proposed)'!I55 -> 0 | J10: =SUM(D10:I10) -> 0 | L10: =+'F-2 Revenues (Proposed)'!L55 -> 0 | N10: =J10-L10 -> 0 | O10: =N10/L10 -> 
C12: Total Anticipated Revenues | D12: =D8+D10 -> 122,425 | E12: =E8+E10 -> 234,309 | F12: 0 | G12: 0 | H12: 0 | I12: =I8+I10 -> 0 | J12: 356,734 | L12: =L8+L10 -> 242,080 | N12: =J12-L12 -> 114,654 | O12: =N12/L12 -> 47.4%
A14: APPROPRIATIONS
B16: Total Administration | D16: ='F-4 Appropriations (Proposed)'!D18 -> 62,050 | E16: ='F-4 Appropriations (Proposed)'!E18 -> 62,050 | F16: ='F-4 Appropriations (Proposed)'!F18 -> 0 | G16: ='F-4 Appropriations (Proposed)'!G18 -> 0 | H16: ='F-4 Appropriations (Proposed)'!H18 -> 0 | I16: ='F-4 Appropriations (Proposed)'!I18 -> 0 | J16: =SUM(D16:I16) -> 124,100 | L16: ='F-4 Appropriations (Proposed)'!L18 -> 84,523 | N16: =J16-L16 -> 39,577 | O16: =N16/L16 -> 46.8%
B18: Total Cost of Providing Services | D18: ='F-4 Appropriations (Proposed)'!D30 -> 60,375 | E18: ='F-4 Appropriations (Proposed)'!E30 -> 161,375 | F18: ='F-4 Appropriations (Proposed)'!F30 -> 0 | G18: ='F-4 Appropriations (Proposed)'!G30 -> 0 | H18: ='F-4 Appropriations (Proposed)'!H30 -> 0 | I18: ='F-4 Appropriations (Proposed)'!I30 -> 0 | J18: =SUM(D18:I18) -> 221,750 | L18: ='F-4 Appropriations (Proposed)'!L30 -> 163,000 | N18: =J18-L18 -> 58,750 | O18: =N18/L18 -> 36.0%
B20: Total Principal Payments on Debt Service in Lieu of Depreciation | D20: ='F-4 Appropriations (Proposed)'!D31 -> 0 | E20: =+'F-4 Appropriations (Proposed)'!E31 -> 5,033 | F20: =+'F-4 Appropriations (Proposed)'!F31 -> 0 | G20: =+'F-4 Appropriations (Proposed)'!G31 -> 0 | H20: =+'F-4 Appropriations (Proposed)'!H31 -> 0 | I20: =+'F-4 Appropriations (Proposed)'!I31 -> 0 | J20: =SUM(D20:I20) -> 5,033 | L20: =+'F-4 Appropriations (Proposed)'!L31 -> 4,898 | N20: =J20-L20 -> 135 | O20: =N20/L20 -> 2.8%
C22: Total Operating Appropriations | D22: =+D16+D18+D20 -> 122,425 | E22: =+E16+E18+E20 -> 228,458 | F22: 0 | G22: 0 | H22: 0 | I22: 0 | J22: 350,883 | L22: =L16+L18+L20 -> 252,421 | N22: =J22-L22 -> 98,462 | O22: =N22/L22 -> 39.0%
B24: Total Interest Payments on Debt | D24: ='F-4 Appropriations (Proposed)'!D34 -> 0 | E24: ='F-4 Appropriations (Proposed)'!E34 -> 5,851 | F24: ='F-4 Appropriations (Proposed)'!F34 -> 0 | G24: ='F-4 Appropriations (Proposed)'!G34 -> 0 | H24: ='F-4 Appropriations (Proposed)'!H34 -> 0 | I24: ='F-4 Appropriations (Proposed)'!I34 -> 0 | J24: ='F-4 Appropriations (Proposed)'!J34 -> 5,851 | L24: ='F-4 Appropriations (Proposed)'!L34 -> 5,986 | N24: =J24-L24 -> (135) | O24: =N24/L24 -> -2.3%
B25: Total Other Non-Operating Appropriations | D25: =D26-D24 -> 0 | E25: =E26-E24 -> 0 | F25: 0 | G25: 0 | H25: 0 | I25: 0 | J25: 0 | L25: =L26-L24 -> 0 | N25: =J25-L25 -> 0 | O25: =N25/L25 -> 
C26: Total Non-Operating Appropriations | D26: ='F-4 Appropriations (Proposed)'!D39 -> 0 | E26: =+'F-4 Appropriations (Proposed)'!E39 -> 5,851 | F26: =+'F-4 Appropriations (Proposed)'!F39 -> 0 | G26: =+'F-4 Appropriations (Proposed)'!G39 -> 0 | H26: =+'F-4 Appropriations (Proposed)'!H39 -> 0 | I26: =+'F-4 Appropriations (Proposed)'!I39 -> 0 | J26: =SUM(D26:I26) -> 5,851 | L26: =+'F-4 Appropriations (Proposed)'!L39 -> 5,986 | N26: =J26-L26 -> (135) | O26: =N26/L26 -> -2.3%
B28: Accumulated Deficit | D28: =+'F-4 Appropriations (Proposed)'!D41 -> 0 | E28: ='F-4 Appropriations (Proposed)'!E41 -> 0 | F28: =+'F-4 Appropriations (Proposed)'!F41 -> 0 | G28: =+'F-4 Appropriations (Proposed)'!G41 -> 0 | H28: =+'F-4 Appropriations (Proposed)'!H41 -> 0 | I28: =+'F-4 Appropriations (Proposed)'!I41 -> 0 | J28: =SUM(D28:I28) -> 0 | L28: =+'F-4 Appropriations (Proposed)'!L41 -> 0 | N28: =J28-L28 -> 0 | O28: =N28/L28 -> 
C30: Total Appropriations and Accumulated Deficit | D30: =+D22+D26+D28 -> 122,425 | E30: =+E22+E26+E28 -> 234,309 | F30: 0 | G30: 0 | H30: 0 | I30: 0 | J30: 356,734 | L30: =+L22+L26+L28 -> 258,407 | N30: =J30-L30 -> 98,327 | O30: =N30/L30 -> 38.1%
B32: Less: Total Unrestricted Net Position Utilized | D32: ='F-4 Appropriations (Proposed)'!D46 -> 0 | E32: ='F-4 Appropriations (Proposed)'!E46 -> 0 | F32: ='F-4 Appropriations (Proposed)'!F46 -> 0 | G32: ='F-4 Appropriations (Proposed)'!G46 -> 0 | H32: ='F-4 Appropriations (Proposed)'!H46 -> 0 | I32: ='F-4 Appropriations (Proposed)'!I46 -> 0 | J32: =SUM(D32:I32) -> 0 | L32: ='F-4 Appropriations (Proposed)'!L46 -> 16,327 | N32: =J32-L32 -> (16,327) | O32: =N32/L32 -> -100.0%
C34: Net Total Appropriations | D34: =+D30-D32 -> 122,425 | E34: =+E30-E32 -> 234,309 | F34: 0 | G34: 0 | H34: 0 | I34: 0 | J34: 356,734 | L34: =L30-L32 -> 242,080 | N34: =J34-L34 -> 114,654 | O34: =N34/L34 -> 47.4%
A36: ANTICIPATED SURPLUS (DEFICIT) | D36: =+D12-D34 -> 0 | E36: =+E12-E34 -> 0 | F36: 0 | G36: 0 | H36: 0 | I36: 0 | J36: 0 | L36: =L12-L34 -> 0 | N36: =J36-L36 -> 0 | O36: =N36/L36 -> 
A38: Page F-1

Sheet F-2 Revenues (Proposed)
A1: ='KEY INPUTS'!B5 -> Weymouth Municipal Utilities Authority
A2: ="For the Period: "&TEXT('KEY INPUTS'!B3, "mmmm dd, yyyy")&" to "&TEXT('KEY INPUTS'!B4, "mmmm dd, yyyy")&"" -> For the Period: January 01, 2025 to December 31, 2025
D4: ="FY "&'KEY INPUTS'!B2&" Proposed Budget" -> FY 2025 Proposed Budget | L4: ="FY "&'KEY INPUTS'!B2-1&" Adopted Budget" -> FY 2024 Adopted Budget | N4: $ Increase (Decrease) Proposed vs. Adopted | O4: % Increase (Decrease) Proposed vs. Adopted
D5: ='KEY INPUTS'!D21 -> Water | E5: ='KEY INPUTS'!D22 -> Sewer | F5: ='KEY INPUTS'!D23 -> Operation #3 | G5: ='KEY INPUTS'!D24 -> Operation #4 | H5: ='KEY INPUTS'!D25 -> Operation #5 | I5: ='KEY INPUTS'!D26 -> Operation #6 | J5: Total All Operations | L5: Total All Operations | N5: All Operations | O5: All Operations
A6: OPERATING REVENUES
A7: Service Charges
B8: Residential | D8: =87000+33925+1500 -> 122,425 | E8: =161000+66525+6784 -> 234,309 | J8: =SUM(D8:I8) -> $356,734 | L8: =+'F-3 Revenues (PY Adopted)'!J8 -> $242,080 | N8: =J8-L8 -> $114,654 | O8: =N8/L8 -> 47.4%
B9: Business/Commercial | J9: =SUM(D9:I9) -> 0 | L9: ='F-3 Revenues (PY Adopted)'!J9 -> 0 | N9: =J9-L9 -> 0 | O9: =N9/L9 -> 
B10: Industrial | J10: 0 | L10: ='F-3 Revenues (PY Adopted)'!J10 -> 0 | N10: 0
B11: Intergovernmental | J11: 0 | L11: ='F-3 Revenues (PY Adopted)'!J11 -> 0 | N11: 0
B12: Other | J12: 0 | L12: ='F-3 Revenues (PY Adopted)'!J12 -> 0 | N12: 0
C13: Total Service Charges | D13: =SUM(D8:D12) -> 122,425 | E13: =SUM(E8:E12) -> 234,309 | F13: 0 | G13: 0 | H13: 0 | I13: 0 | J13: 356,734 | L13: =SUM(L8:L12) -> 242,080 | N13: =J13-L13 -> 114,654 | O13: 47.4%
A14: Connection Fees
B15: Residential | J15: =SUM(D15:I15) -> 0 | L15: ='F-3 Revenues (PY Adopted)'!J15 -> 0 | N15: =J15-L15 -> 0 | O15: =N15/L15 -> 
B16: Business/Commercial | J16: =SUM(D16:I16) -> 0 | L16: ='F-3 Revenues (PY Adopted)'!J16 -> 0 | N16: =J16-L16 -> 0 | O16: =N16/L16 -> 
B17: Industrial | J17: =SUM(D17:I17) -> 0 | L17: ='F-3 Revenues (PY Adopted)'!J17 -> 0 | N17: 0
B18: Intergovernmental | J18: =SUM(D18:I18) -> 0 | L18: ='F-3 Revenues (PY Adopted)'!J18 -> 0 | N18: 0
B19: Other | J19: =SUM(D19:I19) -> 0 | L19: ='F-3 Revenues (PY Adopted)'!J19 -> 0 | N19: 0
C20: Total Connection Fees | D20: =SUM(D15:D19) -> 0 | E20: 0 | F20: 0 | G20: 0 | H20: 0 | I20: 0 | J20: 0 | L20: =SUM(L15:L19) -> 0 | N20: 0
A21: Parking Fees
B22: Meters | J22: =SUM(D22:I22) -> 0 | L22: ='F-3 Revenues (PY Adopted)'!J22 -> 0 | N22: =J22-L22 -> 0 | O22: =N22/L22 -> 
B23: Permits | J23: =SUM(D23:I23) -> 0 | L23: ='F-3 Revenues (PY Adopted)'!J23 -> 0 | N23: =J23-L23 -> 0 | O23: =N23/L23 -> 
B24: Fines/Penalties | J24: 0 | L24: ='F-3 Revenues (PY Adopted)'!J24 -> 0 | N24: 0
B25: Other | J25: 0 | L25: ='F-3 Revenues (PY Adopted)'!J25 -> 0 | N25: 0
C26: Total Parking Fees | D26: =SUM(D22:D25) -> 0 | E26: =SUM(E22:E25) -> 0 | F26: 0 | G26: 0 | H26: 0 | I26: 0 | J26: 0 | L26: =SUM(L22:L25) -> 0 | N26: 0
A27: Other Operating Revenues (List)
J28: =SUM(D28:I28) -> 0 | L28: =+'F-3 Revenues (PY Adopted)'!J28 -> 0 | N28: =J28-L28 -> 0 | O28: =N28/L28 -> 
J29: =SUM(D29:I29) -> 0 | L29: =+'F-3 Revenues (PY Adopted)'!J29 -> 0 | N29: =J29-L29 -> 0 | O29: =N29/L29 -> 
J30: 0 | L30: =+'F-3 Revenues (PY Adopted)'!J30 -> 0 | N30: 0
J31: 0 | L31: =+'F-3 Revenues (PY Adopted)'!J31 -> 0 | N31: 0
J32: 0 | L32: =+'F-3 Revenues (PY Adopted)'!J32 -> 0 | N32: 0
J33: 0 | L33: =+'F-3 Revenues (PY Adopted)'!J33 -> 0 | N33: 0
J34: 0 | L34: =+'F-3 Revenues (PY Adopted)'!J34 -> 0 | N34: 0
J35: 0 | L35: =+'F-3 Revenues (PY Adopted)'!J35 -> 0 | N35: 0
J36: 0 | L36: =+'F-3 Revenues (PY Adopted)'!J36 -> 0 | N36: 0
J37: 0 | L37: =+'F-3 Revenues (PY Adopted)'!J37 -> 0 | N37: 0
J38: 0 | L38: =+'F-3 Revenues (PY Adopted)'!J38 -> 0 | N38: 0
C39: Total Other Revenue | D39: =SUM(D28:D38) -> 0 | E39: =SUM(E28:E38) -> 0 | F39: 0 | G39: 0 | H39: 0 | I39: 0 | J39: 0 | L39: =SUM(L28:L38) -> 0 | N39: 0
C40: Total Operating Revenues | D40: =+D13+D20+D26+D39 -> 122,425 | E40: =+E13+E20+E26+E39 -> 234,309 | F40: 0 | G40: 0 | H40: 0 | I40: 0 | J40: 356,734 | L40: 242,080 | N40: 114,654 | O40: 47.4%
A41: NON-OPERATING REVENUES
A42: Other Non-Operating Revenues (List)
J43: =SUM(D43:I43) -> 0 | L43: =+'F-3 Revenues (PY Adopted)'!J43 -> 0 | N43: =J43-L43 -> 0 | O43: =N43/L43 -> 
J44: =SUM(D44:I44) -> 0 | L44: =+'F-3 Revenues (PY Adopted)'!J44 -> 0 | N44: =J44-L44 -> 0 | O44: =N44/L44 -> 
J45: 0 | L45: =+'F-3 Revenues (PY Adopted)'!J45 -> 0 | N45: 0
J46: 0 | L46: =+'F-3 Revenues (PY Adopted)'!J46 -> 0 | N46: 0
J47: 0 | L47: =+'F-3 Revenues (PY Adopted)'!J47 -> 0 | N47: 0
J48: 0 | L48: =+'F-3 Revenues (PY Adopted)'!J48 -> 0 | N48: 0
C49: Total Other Non-Operating Revenue | D49: =SUM(D43:D48) -> 0 | E49: 0 | F49: 0 | G49: 0 | H49: 0 | I49: 0 | J49: 0 | L49: =SUM(L43:L48) -> 0 | N49: 0
A50: Interest on Investments & Deposits (List)
B51: Interest Earned | J51: =SUM(D51:I51) -> 0 | L51: =+'F-3 Revenues (PY Adopted)'!J51 -> 0 | N51: =J51-L51 -> 0 | O51: =N51/L51 -> 
B52: Penalties | J52: =SUM(D52:I52) -> 0 | L52: =+'F-3 Revenues (PY Adopted)'!J52 -> 0 | N52: =J52-L52 -> 0 | O52: =N52/L52 -> 
B53: Other | J53: 0 | L53: =+'F-3 Revenues (PY Adopted)'!J53 -> 0 | N53: 0
C54: Total Interest | D54: =SUM(D51:D53) -> 0 | E54: 0 | F54: 0 | G54: 0 | H54: 0 | I54: 0 | J54: 0 | L54: =SUM(L51:L53) -> 0 | N54: 0
C55: Total Non-Operating Revenues | D55: =+D49+D54 -> 0 | E55: =+E49+E54 -> 0 | F55: 0 | G55: 0 | H55: 0 | I55: 0 | J55: 0 | L55: 0 | N55: 0
A56: TOTAL ANTICIPATED REVENUES | D56: =+D40+D55 -> $122,425 | E56: $234,309 | F56: 0 | G56: 0 | H56: 0 | I56: 0 | J56: $356,734 | L56: =+L40+L55 -> $242,080 | N56: =J56-L56 -> $114,654 | O56: 47.4%
A58: Page F-2

Sheet F-3 Revenues (PY Adopted)
A1: ='KEY INPUTS'!B5 -> Weymouth Municipal Utilities Authority
D4: ="FY "&'KEY INPUTS'!B2-1&" Adopted Budget" -> FY 2024 Adopted Budget
D5: ='KEY INPUTS'!D21 -> Water | E5: ='KEY INPUTS'!D22 -> Sewer | F5: ='KEY INPUTS'!D23 -> Operation #3 | G5: ='KEY INPUTS'!D24 -> Operation #4 | H5: ='KEY INPUTS'!D25 -> Operation #5 | I5: ='KEY INPUTS'!D26 -> Operation #6 | J5: Total All Operations
A6: OPERATING REVENUES
A7: Service Charges
B8: Residential | D8: 80,200 | E8: 161,880 | J8: =SUM(D8:I8) -> $242,080
B9: Business/Commercial | J9: =SUM(D9:I9) -> 0
B10: Industrial | J10: 0
B11: Intergovernmental | J11: 0
B12: Other | J12: 0
C13: Total Service Charges | D13: =SUM(D8:D12) -> 80,200 | E13: =SUM(E8:E12) -> 161,880 | F13: 0 | G13: 0 | H13: 0 | I13: 0 | J13: 242,080
A14: Connection Fees
B15: Residential | J15: =SUM(D15:I15) -> 0
B16: Business/Commercial | J16: =SUM(D16:I16) -> 0
B17: Industrial | J17: 0
B18: Intergovernmental | J18: 0
B19: Other | J19: 0
C20: Total Connection Fees | D20: =SUM(D15:D19) -> 0 | E20: =SUM(E15:E19) -> 0 | F20: 0 | G20: 0 | H20: 0 | I20: 0 | J20: 0
A21: Parking Fees
B22: Meters | J22: =SUM(D22:I22) -> 0
B23: Permits | J23: =SUM(D23:I23) -> 0
B24: Fines/Penalties | J24: 0
B25: Other | J25: 0
C26: Total Parking Fees | D26: =SUM(D22:D25) -> 0 | E26: =SUM(E22:E25) -> 0 | F26: 0 | G26: 0 | H26: 0 | I26: 0 | J26: 0
A27: Other Operating Revenues (List)
B28: ='F-2 Revenues (Proposed)'!B28 -> 0 | J28: =SUM(D28:I28) -> 0
B29: ='F-2 Revenues (Proposed)'!B29 -> 0 | J29: =SUM(D29:I29) -> 0
B30: ='F-2 Revenues (Proposed)'!B30 -> 0 | J30: 0
B31: ='F-2 Revenues (Proposed)'!B31 -> 0 | J31: 0
B32: ='F-2 Revenues (Proposed)'!B32 -> 0 | J32: 0
B33: ='F-2 Revenues (Proposed)'!B33 -> 0 | J33: 0
B34: ='F-2 Revenues (Proposed)'!B34 -> 0 | J34: 0
B35: ='F-2 Revenues (Proposed)'!B35 -> 0 | J35: 0
B36: ='F-2 Revenues (Proposed)'!B36 -> 0 | J36: 0
B37: ='F-2 Revenues (Proposed)'!B37 -> 0 | J37: 0
B38: ='F-2 Revenues (Proposed)'!B38 -> 0 | J38: 0
C39: Total Other Revenue | D39: =SUM(D28:D38) -> 0 | E39: =SUM(E28:E38) -> 0 | F39: 0 | G39: 0 | H39: 0 | I39: 0 | J39: 0
C40: Total Operating Revenues | D40: =+D13+D20+D26+D39 -> 80,200 | E40: =+E13+E20+E26+E39 -> 161,880 | F40: 0 | G40: 0 | H40: 0 | I40: 0 | J40: 242,080
A41: NON-OPERATING REVENUES
A42: Other Non-Operating Revenues (List)
B43: ='F-2 Revenues (Proposed)'!B43 -> 0 | J43: =SUM(D43:I43) -> 0
B44: ='F-2 Revenues (Proposed)'!B44 -> 0 | J44: =SUM(D44:I44) -> 0
B45: ='F-2 Revenues (Proposed)'!B45 -> 0 | J45: 0
B46: ='F-2 Revenues (Proposed)'!B46 -> 0 | J46: 0
B47: ='F-2 Revenues (Proposed)'!B47 -> 0 | J47: 0
B48: ='F-2 Revenues (Proposed)'!B48 -> 0 | J48: 0
C49: Other Non-Operating Revenues | D49: =SUM(D43:D48) -> 0 | E49: =SUM(E43:E48) -> 0 | F49: 0 | G49: 0 | H49: 0 | I49: 0 | J49: 0
A50: Interest on Investments & Deposits
B51: Interest Earned | J51: =SUM(D51:I51) -> 0
B52: Penalties | J52: =SUM(D52:I52) -> 0
B53: Other | J53: 0
C54: Total Interest | D54: =SUM(D51:D53) -> 0 | E54: 0 | F54: 0 | G54: 0 | H54: 0 | I54: 0 | J54: 0
C55: Total Non-Operating Revenues | D55: =+D49+D54 -> 0 | E55: =+E49+E54 -> 0 | F55: 0 | G55: 0 | H55: 0 | I55: 0 | J55: 0
A56: TOTAL ANTICIPATED REVENUES | D56: =+D40+D55 -> $80,200 | E56: $161,880 | F56: 0 | G56: 0 | H56: 0 | I56: 0 | J56: $242,080
A58: Page F-3

Sheet F-4 Appropriations (Proposed)
A1: ='KEY INPUTS'!B5 -> Weymouth Municipal Utilities Authority
A2: ="For the Period: "&TEXT('KEY INPUTS'!B3, "mmmm dd, yyyy")&" to "&TEXT('KEY INPUTS'!B4, "mmmm dd, yyyy")&"" -> For the Period: January 01, 2025 to December 31, 2025
D4: ="FY "&'KEY INPUTS'!B2&" Proposed Budget" -> FY 2025 Proposed Budget | L4: ="FY "&'KEY INPUTS'!B2-1&" Adopted Budget" -> FY 2024 Adopted Budget | N4: $ Increase (Decrease) Proposed vs. Adopted | O4: % Increase (Decrease) Proposed vs. Adopted
D5: ='KEY INPUTS'!D21 -> Water | E5: ='KEY INPUTS'!D22 -> Sewer | F5: ='KEY INPUTS'!D23 -> Operation #3 | G5: ='KEY INPUTS'!D24 -> Operation #4 | H5: ='KEY INPUTS'!D25 -> Operation #5 | I5: ='KEY INPUTS'!D26 -> Operation #6 | J5: Total All Operations | L5: Total All Operations | N5: All Operations | O5: All Operations
A6: OPERATING APPROPRIATIONS
A7: Administration - Personnel
B8: Salary & Wages | D8: $15,000 | E8: $15,000 | J8: =SUM(D8:I8) -> $30,000 | L8: ='F-5 Appropriations (PY Adopted)'!J8 -> $36,000 | N8: =J8-L8 -> $(6,000) | O8: =N8/L8 -> -16.7%
B9: Fringe Benefits | D9: 7,500 | E9: 7,500 | J9: =SUM(D9:I9) -> 15,000 | L9: ='F-5 Appropriations (PY Adopted)'!J9 -> 15,000 | N9: =J9-L9 -> 0 | O9: =N9/L9 -> 0.0%
C10: Total Administration - Personnel | D10: =SUM(D8:D9) -> 22,500 | E10: 22,500 | F10: 0 | G10: 0 | H10: 0 | I10: 0 | J10: 45,000 | L10: =SUM(L8:L9) -> 51,000 | N10: (6,000) | O10: -11.8%
A11: Administration - Other (List)
B12: Advertising | D12: 500 | E12: 500 | J12: =SUM(D12:I12) -> 1,000 | L12: ='F-5 Appropriations (PY Adopted)'!J12 -> 400 | N12: =J12-L12 -> 600 | O12: 150.0%
B13: Audit | D13: 5,000 | E13: 5,000 | J13: =SUM(D13:I13) -> 10,000 | L13: ='F-5 Appropriations (PY Adopted)'!J13 -> 6,800 | N13: =J13-L13 -> 3,200 | O13: 47.1%
B14: Insurance | D14: 4,750 | E14: 4,750 | J14: =SUM(D14:I14) -> 9,500 | L14: ='F-5 Appropriations (PY Adopted)'!J14 -> 5,500 | N14: 4,000 | O14: 72.7%
B15: See Detail | D15: =26300+3000 -> 29,300 | E15: =26300+3000 -> 29,300 | J15: =SUM(D15:I15) -> 58,600 | L15: ='F-5 Appropriations (PY Adopted)'!J15 -> 20,823 | N15: 37,777 | O15: 181.4%
B16: Miscellaneous Administration* | J16: =SUM(D16:I16) -> 0 | L16: ='F-5 Appropriations (PY Adopted)'!J16 -> 0 | N16: 0
C17: Total Administration - Other | D17: =SUM(D12:D16) -> 39,550 | E17: =SUM(E12:E16) -> 39,550 | F17: 0 | G17: 0 | H17: 0 | I17: 0 | J17: =SUM(J12:J16) -> 79,100 | L17: =SUM(L12:L16) -> 33,523 | N17: 45,577 | O17: 136.0%
C18: Total Administration | D18: =D17+D10 -> 62,050 | E18: =E17+E10 -> 62,050 | F18: 0 | G18: 0 | H18: 0 | I18: 0 | J18: 124,100 | L18: =+L17+L10 -> 84,523 | N18: 39,577 | O18: 46.8%
A19: Cost of Providing Services - Personnel
B20: Salary & Wages | J20: =SUM(D20:I20) -> 0 | L20: ='F-5 Appropriations (PY Adopted)'!J20 -> 0 | N20: =J20-L20 -> 0
B21: Fringe Benefits | J21: =SUM(D21:I21) -> 0 | L21: ='F-5 Appropriations (PY Adopted)'!J21 -> 0 | N21: =J21-L21 -> 0
C22: Total COPS - Personnel | D22: =SUM(D20:D21) -> 0 | E22: 0 | F22: 0 | G22: 0 | H22: 0 | I22: 0 | J22: 0 | L22: =SUM(L20:L21) -> 0 | N22: 0
A23: Cost of Providing Services - Other (List)
B24: Water Charges | D24: =36000+22500 -> 58,500 | J24: =SUM(D24:I24) -> 58,500 | L24: ='F-5 Appropriations (PY Adopted)'!J24 -> 35,875 | N24: =J24-L24 -> 22,625 | O24: 63.1%
B25: Water Tax | J25: =SUM(D25:I25) -> 0 | L25: ='F-5 Appropriations (PY Adopted)'!J25 -> 125 | N25: =J25-L25 -> (125) | O25: -100.0%
B26: Capital Expenses | D26: 1,875 | E26: 1,875 | J26: 3,750 | L26: ='F-5 Appropriations (PY Adopted)'!J26 -> 4,000 | N26: (250) | O26: -6.3%
B27: See Detail | E27: =137000+22500 -> 159,500 | J27: 159,500 | L27: ='F-5 Appropriations (PY Adopted)'!J27 -> 123,000 | N27: 36,500 | O27: 29.7%
B28: Miscellaneous COPS* | J28: 0 | L28: ='F-5 Appropriations (PY Adopted)'!J28 -> 0 | N28: 0
C29: Total COPS - Other | D29: =SUM(D24:D28) -> 60,375 | E29: =SUM(E24:E28) -> 161,375 | F29: 0 | G29: 0 | H29: 0 | I29: 0 | J29: 221,750 | L29: =SUM(L24:L28) -> 163,000 | N29: 58,750 | O29: 36.0%
C30: Total Cost of Providing Services | D30: =D29+D22 -> 60,375 | E30: =E29+E22 -> 161,375 | F30: 0 | G30: 0 | H30: 0 | I30: 0 | J30: 221,750 | L30: =L29+L22 -> 163,000 | N30: 58,750 | O30: 36.0%
A31: Total Principal Payments on Debt Service in Lieu of Depreciation | D31: =+'F-6 Debt Service-Principal'!H10 -> 0 | E31: =+'F-6 Debt Service-Principal'!H16 -> 5,033 | F31: =+'F-6 Debt Service-Principal'!H22 -> 0 | G31: =+'F-6 Debt Service-Principal'!H28 -> 0 | H31: =+'F-6 Debt Service-Principal'!H34 -> 0 | I31: =+'F-6 Debt Service-Principal'!H40 -> 0 | J31: =SUM(D31:I31) -> 5,033 | L31: ='F-5 Appropriations (PY Adopted)'!J31 -> 4,898 | N31: 135 | O31: 2.8%
C32: Total Operating Appropriations | D32: =+D30+D18+D31 -> 122,425 | E32: =+E30+E18+E31 -> 228,458 | F32: 0 | G32: 0 | H32: 0 | I32: 0 | J32: 350,883 | L32: =+L30+L18+L31 -> 252,421 | N32: 98,462 | O32: 39.0%
A33: NON-OPERATING APPROPRIATIONS
A34: Total Interest Payments on Debt | D34: ='F-7 Debt Service-Interest'!F10 -> 0 | E34: ='F-7 Debt Service-Interest'!F16 -> 5,851 | F34: ='F-7 Debt Service-Interest'!F22 -> 0 | G34: ='F-7 Debt Service-Interest'!F28 -> 0 | H34: ='F-7 Debt Service-Interest'!F34 -> 0 | I34: ='F-7 Debt Service-Interest'!F40 -> 0 | J34: =SUM(D34:I34) -> 5,851 | L34: ='F-5 Appropriations (PY Adopted)'!J34 -> 5,986 | N34: =J34-L34 -> (135) | O34: -2.3%
A35: Operations & Maintenance Reserve | J35: =SUM(D35:I35) -> 0 | L35: ='F-5 Appropriations (PY Adopted)'!J35 -> 0 | N35: =J35-L35 -> 0
A36: Renewal & Replacement Reserve | J36: 0 | L36: ='F-5 Appropriations (PY Adopted)'!J36 -> 0 | N36: 0
A37: Municipality/County Appropriation | J37: 0 | L37: ='F-5 Appropriations (PY Adopted)'!J37 -> 0 | N37: 0
A38: Other Reserves | J38: 0 | L38: ='F-5 Appropriations (PY Adopted)'!J38 -> 0 | N38: 0
B39: Total Non-Operating Appropriations | D39: =SUM(D34:D38) -> 0 | E39: =SUM(E34:E38) -> 5,851 | F39: 0 | G39: 0 | H39: 0 | I39: 0 | J39: 5,851 | L39: =SUM(L34:L38) -> 5,986 | N39: (135) | O39: -2.3%
A40: TOTAL APPROPRIATIONS | D40: =+D39+D32 -> 122,425 | E40: =+E39+E32 -> 234,309 | F40: 0 | G40: 0 | H40: 0 | I40: 0 | J40: 356,734 | L40: =+L39+L32 -> 258,407 | N40: 98,327 | O40: 38.1%
A41: ACCUMULATED DEFICIT | J41: =SUM(D41:I41) -> 0 | L41: ='F-5 Appropriations (PY Adopted)'!J41 -> 0 | N41: 0
A42: TOTAL APPROPRIATIONS & ACCUMULATED DEFICIT | D42: =+D40+D41 -> 122,425 | E42: =+E40+E41 -> 234,309 | F42: 0 | G42: 0 | H42: 0 | I42: 0 | J42: 356,734 | L42: =+L40+L41 -> 258,407 | N42: 98,327 | O42: 38.1%
A43: UNRESTRICTED NET POSITION UTILIZED
A44: Municipality/County Appropriation | D44: =D37 -> 0 | E44: =E37 -> 0 | F44: 0 | G44: 0 | H44: 0 | I44: 0 | J44: =SUM(D44:I44) -> 0 | L44: ='F-5 Appropriations (PY Adopted)'!J44 -> 0 | N44: =J44-L44 -> 0
A45: Other | J45: =SUM(D45:I45) -> 0 | L45: ='F-5 Appropriations (PY Adopted)'!J45 -> 16,327 | N45: =J45-L45 -> (16,327) | O45: -100.0%
B46: Total Unrestricted Net Position Utilized | D46: =+D44+D45 -> 0 | E46: =+E44+E45 -> 0 | F46: 0 | G46: 0 | H46: 0 | I46: 0 | J46: 0 | L46: =+L44+L45 -> 16,327 | N46: (16,327) | O46: -100.0%
A47: TOTAL NET APPROPRIATIONS | D47: =+D42-D46 -> $122,425 | E47: =+E42-E46 -> $234,309 | F47: 0 | G47: 0 | H47: 0 | I47: 0 | J47: $356,734 | L47: =+L42-L46 -> $242,080 | N47: $114,654 | O47: 47.4%
A49: * Miscellaneous line items may not exceed 5% of total operating appropriations shown below. If amount in miscellaneous is greater than the amount shown below, then the line item must be itemized above.
C50: 5% of Total Operating Appropriations | D50: =D32*0.05 -> $6,121.25 | E50: =E32*0.05 -> $11,422.90 | F50: 0 | G50: 0 | H50: 0 | I50: 0 | J50: $17,544.15
A52: Page F-4

Sheet F-4 Appropriation Detail
A1: AUTHORITY PROPOSED APPROPRIATIONS
A2: APPROPRIATION DETAIL PAGE
A4: ='KEY INPUTS'!B5 -> Weymouth Municipal Utilities Authority
A6: ="For the Period: "&TEXT('KEY INPUTS'!B3, "mmmm dd, yyyy")&" to "&TEXT('KEY INPUTS'!B4, "mmmm dd, yyyy")&"" -> For the Period: January 01, 2025 to December 31, 2025
A8: Use the space below to provide further detail of any Appropriations listed on "F-4 Appropriations (Proposed)"
A10: Line Item: | B10: ='KEY INPUTS'!D21 -> Water | C10: ='KEY INPUTS'!D22 -> Sewer | D10: ='KEY INPUTS'!D23 -> Operation #3 | E10: ='KEY INPUTS'!D24 -> Operation #4 | F10: ='KEY INPUTS'!D25 -> Operation #5 | G10: ='KEY INPUTS'!D26 -> Operation #6
A11: Adminsitration - Other
A12: Office expense | B12: 3,750.00 | C12: 3,750.00
A13: Professional Fees | B13: 20,000.00 | C13: 20,000.00
A14: Utilities | B14: 2,550.00 | C14: 2,550.00
A15: Members | B15: 3,000.00 | C15: 3,000.00
A17: Cost of Operations & Maintenance - Other
A18: Sewer Charges | C18: 137,000.00
A19: Sewer Meter | C19: 22,500.00
A20: Maintenance and Inspections
A57: Page F-4 (Detail)

Sheet F-4 Appropriation Detail (2)
A1: AUTHORITY PROPOSED APPROPRIATIONS
A2: APPROPRIATION DETAIL PAGE
A4: ='KEY INPUTS'!B5 -> Weymouth Municipal Utilities Authority
A6: ="For the Period: "&TEXT('KEY INPUTS'!B3, "mmmm dd, yyyy")&" to "&TEXT('KEY INPUTS'!B4, "mmmm dd, yyyy")&"" -> For the Period: January 01, 2025 to December 31, 2025
A8: Use the space below to provide further detail of any Appropriations listed on "F-4 Appropriations (Proposed)"
A10: Line Item: | B10: ='KEY INPUTS'!D21 -> Water | C10: ='KEY INPUTS'!D22 -> Sewer | D10: ='KEY INPUTS'!D23 -> Operation #3 | E10: ='KEY INPUTS'!D24 -> Operation #4 | F10: ='KEY INPUTS'!D25 -> Operation #5 | G10: ='KEY INPUTS'!D26 -> Operation #6
A57: Page F-4 (Detail) (2)

Sheet F-4 Appropriation Detail (3)
A1: AUTHORITY PROPOSED APPROPRIATIONS
A2: APPROPRIATION DETAIL PAGE
A4: ='KEY INPUTS'!B5 -> Weymouth Municipal Utilities Authority
A6: ="For the Period: "&TEXT('KEY INPUTS'!B3, "mmmm dd, yyyy")&" to "&TEXT('KEY INPUTS'!B4, "mmmm dd, yyyy")&"" -> For the Period: January 01, 2025 to December 31, 2025
A8: Use the space below to provide further detail of any Appropriations listed on "F-4 Appropriations (Proposed)"
A10: Line Item: | B10: ='KEY INPUTS'!D21 -> Water | C10: ='KEY INPUTS'!D22 -> Sewer | D10: ='KEY INPUTS'!D23 -> Operation #3 | E10: ='KEY INPUTS'!D24 -> Operation #4 | F10: ='KEY INPUTS'!D25 -> Operation #5 | G10: ='KEY INPUTS'!D26 -> Operation #6
A57: Page F-4 (Detail) (3)

Sheet F-5 Appropriations (PY Adopted)
A1: ='KEY INPUTS'!B5 -> Weymouth Municipal Utilities Authority
D4: ="FY "&'KEY INPUTS'!B2-1&" Adopted Budget" -> FY 2024 Adopted Budget
D5: ='KEY INPUTS'!D21 -> Water | E5: ='KEY INPUTS'!D22 -> Sewer | F5: ='KEY INPUTS'!D23 -> Operation #3 | G5: ='KEY INPUTS'!D24 -> Operation #4 | H5: ='KEY INPUTS'!D25 -> Operation #5 | I5: ='KEY INPUTS'!D26 -> Operation #6 | J5: Total All Operations
A6: OPERATING APPROPRIATIONS
A7: Administration - Personnel
B8: Salary & Wages | D8: $18,000 | E8: $18,000 | J8: =SUM(D8:I8) -> $36,000
B9: Fringe Benefits | D9: 7,500 | E9: 7,500 | J9: =SUM(D9:I9) -> 15,000
C10: Total Administration - Personnel | D10: =SUM(D8:D9) -> 25,500 | E10: 25,500 | F10: 0 | G10: 0 | H10: 0 | I10: 0 | J10: 51,000
A11: Administration - Other (List)
B12: Advertising | D12: 200 | E12: 200 | J12: =SUM(D12:I12) -> 400
B13: Audit | D13: 3,400 | E13: 3,400 | J13: =SUM(D13:I13) -> 6,800
B14: Insurance | D14: 2,750 | E14: 2,750 | J14: =SUM(D14:I14) -> 5,500
B15: See Detail | D15: 10,350 | E15: 10,473 | J15: =SUM(D15:I15) -> 20,823
B16: Miscellaneous Administration* | J16: =SUM(D16:I16) -> 0
C17: Total Administration - Other | D17: =SUM(D12:D16) -> 16,700 | E17: =SUM(E12:E16) -> 16,823 | F17: 0 | G17: 0 | H17: 0 | I17: 0 | J17: =SUM(J12:J16) -> 33,523
C18: Total Administration | D18: =D17+D10 -> 42,200 | E18: =E17+E10 -> 42,323 | F18: 0 | G18: 0 | H18: 0 | I18: 0 | J18: 84,523
A19: Cost of Providing Services - Personnel
B20: Salary & Wages | J20: =SUM(D20:I20) -> 0
B21: Fringe Benefits | J21: =SUM(D21:I21) -> 0
C22: Total COPS - Personnel | D22: =SUM(D20:D21) -> 0 | E22: 0 | F22: 0 | G22: 0 | H22: 0 | I22: 0 | J22: 0
A23: Cost of Providing Services - Other (List)
B24: Water Charges | D24: 35,875 | J24: =SUM(D24:I24) -> 35,875
B25: Water Tax | D25: 125 | J25: =SUM(D25:I25) -> 125
B26: Capital Expenses | D26: 2,000 | E26: 2,000 | J26: 4,000
B27: See Detail | E27: 123,000 | J27: 123,000
B28: Miscellaneous COPS* | J28: 0
C29: Total COPS - Other | D29: =SUM(D24:D28) -> 38,000 | E29: =SUM(E24:E28) -> 125,000 | F29: 0 | G29: 0 | H29: 0 | I29: 0 | J29: 163,000
C30: Total Cost of Providing Services | D30: =D29+D22 -> 38,000 | E30: =E29+E22 -> 125,000 | F30: 0 | G30: 0 | H30: 0 | I30: 0 | J30: 163,000
A31: Total Principal Payments on Debt Service in Lieu of Depreciation | D31: ='F-6 Debt Service-Principal'!F10 -> 0 | E31: ='F-6 Debt Service-Principal'!F16 -> 4,898 | F31: ='F-6 Debt Service-Principal'!F22 -> 0 | G31: ='F-6 Debt Service-Principal'!F28 -> 0 | H31: ='F-6 Debt Service-Principal'!F34 -> 0 | I31: ='F-6 Debt Service-Principal'!F40 -> 0 | J31: =SUM(D31:I31) -> 4,898
C32: Total Operating Appropriations | D32: =+D30+D18+D31 -> 80,200 | E32: =+E30+E18+E31 -> 172,221 | F32: 0 | G32: 0 | H32: 0 | I32: 0 | J32: 252,421
A33: NON-OPERATING APPROPRIATIONS
A34: Total Interest Payments on Debt | D34: ='F-7 Debt Service-Interest'!D10 -> 0 | E34: ='F-7 Debt Service-Interest'!D16 -> 5,986 | F34: ='F-7 Debt Service-Interest'!D22 -> 0 | G34: ='F-7 Debt Service-Interest'!D28 -> 0 | H34: ='F-7 Debt Service-Interest'!D34 -> 0 | I34: ='F-7 Debt Service-Interest'!D40 -> 0 | J34: =SUM(D34:I34) -> 5,986
A35: Operations & Maintenance Reserve | J35: =SUM(D35:I35) -> 0
A36: Renewal & Replacement Reserve | J36: 0
A37: Municipality/County Appropriation | J37: 0
A38: Other Reserves | J38: 0
B39: Total Non-Operating Appropriations | D39: =SUM(D34:D38) -> 0 | E39: =SUM(E34:E38) -> 5,986 | F39: 0 | G39: 0 | H39: 0 | I39: 0 | J39: 5,986
A40: TOTAL APPROPRIATIONS | D40: =+D39+D32 -> 80,200 | E40: =+E39+E32 -> 178,207 | F40: 0 | G40: 0 | H40: 0 | I40: 0 | J40: 258,407
A41: ACCUMULATED DEFICIT | J41: =SUM(D41:I41) -> 0
A42: TOTAL APPROPRIATIONS & ACCUMULATED DEFICIT | D42: =+D40+D41 -> 80,200 | E42: =+E40+E41 -> 178,207 | F42: 0 | G42: 0 | H42: 0 | I42: 0 | J42: 258,407
A43: UNRESTRICTED NET POSITION UTILIZED
A44: Municipality/County Appropriation | D44: =D37 -> 0 | E44: =E37 -> 0 | F44: 0 | G44: 0 | H44: 0 | I44: 0 | J44: =SUM(D44:I44) -> 0
A45: Other | E45: 16,327 | J45: =SUM(D45:I45) -> 16,327
B46: Total Unrestricted Net Position Utilized | D46: =+D44+D45 -> 0 | E46: =+E44+E45 -> 16,327 | F46: 0 | G46: 0 | H46: 0 | I46: 0 | J46: 16,327
A47: TOTAL NET APPROPRIATIONS | D47: =+D42-D46 -> $80,200 | E47: =+E42-E46 -> $161,880 | F47: 0 | G47: 0 | H47: 0 | I47: 0 | J47: $242,080
A49: * Miscellaneous line items may not exceed 5% of total operating appropriations shown below. If amount in miscellaneous is greater than the amount shown below, then the line item must be itemized above.
C50: 5% of Total Operating Appropriations | D50: =D32*0.05 -> $4,010.00 | E50: =E32*0.05 -> $8,611.05 | F50: 0 | G50: 0 | H50: 0 | I50: 0 | J50: $12,621.05
A52: Page F-5

Sheet F-5 Appropriation Detail
A1: AUTHORITY PRIOR YEAR ADOPTED APPROPRIATIONS
A2: APPROPRIATION DETAIL PAGE
A4: ='KEY INPUTS'!B5 -> Weymouth Municipal Utilities Authority
A6: ="FY "&'KEY INPUTS'!B2-1&" Adopted Budget" -> FY 2024 Adopted Budget
A8: Use the space below to provide further detail of any Appropriations listed on "F-5 Appropriations (PY Adopted)"
A10: Line Item: | B10: ='KEY INPUTS'!D21 -> Water | C10: ='KEY INPUTS'!D22 -> Sewer | D10: ='KEY INPUTS'!D23 -> Operation #3 | E10: ='KEY INPUTS'!D24 -> Operation #4 | F10: ='KEY INPUTS'!D25 -> Operation #5 | G10: ='KEY INPUTS'!D26 -> Operation #6
A11: Adminsitration - Other
A12: Office expense | B12: 2,800.00 | C12: 2,923.00
A13: Professional Fees | B13: 5,000.00 | C13: 5,000.00
A14: Utilities | B14: 2,550.00 | C14: 22,550.00
A16: Cost of Operations & Maintenance - Other
A17: Sewer Charges | C17: 92,000.00
A18: Sewer Meter | C18: 31,000.00
A19: Maintenance and Inspections
A57: Page F-5 (Detail)

Sheet F-5 Appropriation Detail (2)
A1: AUTHORITY PRIOR YEAR ADOPTED APPROPRIATIONS
A2: APPROPRIATION DETAIL PAGE
A4: ='KEY INPUTS'!B5 -> Weymouth Municipal Utilities Authority
A6: ="FY "&'KEY INPUTS'!B2-1&" Adopted Budget" -> FY 2024 Adopted Budget
A8: Use the space below to provide further detail of any Appropriations listed on "F-5 Appropriations (PY Adopted)"
A10: Line Item: | B10: ='KEY INPUTS'!D21 -> Water | C10: ='KEY INPUTS'!D22 -> Sewer | D10: ='KEY INPUTS'!D23 -> Operation #3 | E10: ='KEY INPUTS'!D24 -> Operation #4 | F10: ='KEY INPUTS'!D25 -> Operation #5 | G10: ='KEY INPUTS'!D26 -> Operation #6
A57: Page F-5 (Detail) (2)

Sheet F-5 Appropriation Detail (3)
A1: AUTHORITY PRIOR YEAR ADOPTED APPROPRIATIONS
A2: APPROPRIATION DETAIL PAGE
A4: ='KEY INPUTS'!B5 -> Weymouth Municipal Utilities Authority
A6: ="FY "&'KEY INPUTS'!B2-1&" Adopted Budget" -> FY 2024 Adopted Budget
A8: Use the space below to provide further detail of any Appropriations listed on "F-5 Appropriations (PY Adopted)"
A10: Line Item: | B10: ='KEY INPUTS'!D21 -> Water | C10: ='KEY INPUTS'!D22 -> Sewer | D10: ='KEY INPUTS'!D23 -> Operation #3 | E10: ='KEY INPUTS'!D24 -> Operation #4 | F10: ='KEY INPUTS'!D25 -> Operation #5 | G10: ='KEY INPUTS'!D26 -> Operation #6
A57: Page F-5 (Detail) (3)

Sheet F-6 Debt Service-Principal
A1: ='KEY INPUTS'!B5 -> Weymouth Municipal Utilities Authority
B2: If Authority has no debt, check this box:
F3: Fiscal Year Ending in
D4: Date of Local Finance Board Approval | F4: =IF('KEY INPUTS'!B1 <> 'KEY INPUTS'!B2, 'KEY INPUTS'!B1,'KEY INPUTS'!B1-1)&" (Adopted Budget)" -> 2024 (Adopted Budget) | H4: =IF('KEY INPUTS'!B1 <> 'KEY INPUTS'!B2, 'KEY INPUTS'!B2, 'KEY INPUTS'!B1)&" (Proposed Budget)" -> 2025 (Proposed Budget) | J4: =IF('KEY INPUTS'!B1 <> 'KEY INPUTS'!B2, 'KEY INPUTS'!B2+1, 'KEY INPUTS'!B1+1) -> 2026 | K4: =+J4+1 -> 2027 | L4: =+K4+1 -> 2028 | M4: =+L4+1 -> 2029 | N4: =+M4+1 -> 2030 | O4: Thereafter | P4: Total Principal Outstanding
A5: ='KEY INPUTS'!D21 -> Water
P6: =SUM(J6:O6)+H6 -> 0
P7: =SUM(J7:O7)+H7 -> 0
P8: 0
P9: 0
B10: Total Principal | F10: =SUM(F6:F9) -> 0 | H10: =SUM(H6:H9) -> 0 | J10: 0 | K10: 0 | L10: 0 | M10: 0 | N10: 0 | O10: 0 | P10: =SUM(P6:P9) -> 0
A11: ='KEY INPUTS'!D22 -> Sewer
B12: 2013 Promissory Note | D12: N/A | F12: 4,898 | H12: 5,033 | J12: 5,173 | K12: 5,316 | L12: 5,463 | M12: 5,614 | N12: 5,770 | O12: 181,634 | P12: =SUM(J12:O12)+H12 -> 214,003
P13: =SUM(J13:O13)+H13 -> 0
P14: 0
P15: 0
B16: Total Principal | F16: =SUM(F12:F15) -> 4,898 | H16: =SUM(H12:H15) -> 5,033 | J16: =SUM(J12:J15) -> 5,173 | K16: 5,316 | L16: 5,463 | M16: 5,614 | N16: 5,770 | O16: 181,634 | P16: 214,003
A17: ='KEY INPUTS'!D23 -> Operation #3
P18: =SUM(J18:O18)+H18 -> 0
P19: =SUM(J19:O19)+H19 -> 0
P20: 0
P21: 0
B22: Total Principal | F22: =SUM(F18:F21) -> 0 | H22: =SUM(H18:H21) -> 0 | J22: =SUM(J18:J21) -> 0 | K22: 0 | L22: 0 | M22: 0 | N22: 0 | O22: 0 | P22: 0
A23: ='KEY INPUTS'!D24 -> Operation #4
P24: =SUM(J24:O24)+H24 -> 0
P25: =SUM(J25:O25)+H25 -> 0
P26: 0
P27: 0
B28: Total Principal | F28: =SUM(F24:F27) -> 0 | H28: =SUM(H24:H27) -> 0 | J28: =SUM(J24:J27) -> 0 | K28: 0 | L28: 0 | M28: 0 | N28: 0 | O28: 0 | P28: 0
A29: ='KEY INPUTS'!D25 -> Operation #5
P30: =SUM(J30:O30)+H30 -> 0
P31: =SUM(J31:O31)+H31 -> 0
P32: 0
P33: 0
B34: Total Principal | F34: =SUM(F30:F33) -> 0 | H34: =SUM(H30:H33) -> 0 | J34: =SUM(J30:J33) -> 0 | K34: 0 | L34: 0 | M34: 0 | N34: 0 | O34: 0 | P34: 0
A35: ='KEY INPUTS'!D26 -> Operation #6
P36: =SUM(J36:O36)+H36 -> 0
P37: =SUM(J37:O37)+H37 -> 0
P38: 0
P39: 0
B40: Total Principal | F40: =SUM(F36:F39) -> 0 | H40: =SUM(H36:H39) -> 0 | J40: =SUM(J36:J39) -> 0 | K40: 0 | L40: 0 | M40: 0 | N40: 0 | O40: 0 | P40: 0
A41: TOTAL PRINCIPAL ALL OPERATIONS | F41: =F40+F34+F28+F22+F16+F10 -> $4,898 | H41: =+H40+H34+H28+H22+H16+H10 -> $5,033 | J41: =+J40+J34+J28+J22+J16+J10 -> $5,173 | K41: $5,316 | L41: $5,463 | M41: $5,614 | N41: $5,770 | O41: $181,634 | P41: $214,003
B43: Indicate the Authority's most recent bond rating and the year of the rating by ratings service.
F44: Moody's | H44: Fitch | J44: Standard & Poors
D45: Bond Rating
D46: Year of Last Rating
A48: Page F-6

Sheet F-6 Detail
A1: ='KEY INPUTS'!B5 -> Weymouth Municipal Utilities Authority
F3: Fiscal Year Ending in
D4: Date of Local Finance Board Approval | F4: =IF('KEY INPUTS'!B1 <> 'KEY INPUTS'!B2, 'KEY INPUTS'!B1,'KEY INPUTS'!B1-1)&" (Adopted Budget)" -> 2024 (Adopted Budget) | H4: =IF('KEY INPUTS'!B1 <> 'KEY INPUTS'!B2, 'KEY INPUTS'!B2, 'KEY INPUTS'!B1)&" (Proposed Budget)" -> 2025 (Proposed Budget) | J4: =IF('KEY INPUTS'!B1 <> 'KEY INPUTS'!B2, 'KEY INPUTS'!B2+1, 'KEY INPUTS'!B1+1) -> 2026 | K4: =+J4+1 -> 2027 | L4: =+K4+1 -> 2028 | M4: =+L4+1 -> 2029 | N4: =+M4+1 -> 2030 | O4: Thereafter | P4: Total Principal Outstanding
P6: =SUM(J6:O6)+H6 -> 0
P7: =SUM(J7:O7)+H7 -> 0
P8: 0
P9: 0
P10: 0
P11: 0
P12: 0
P13: 0
P14: 0
P15: 0
P16: 0
P17: 0
P18: 0
P19: 0
P20: 0
P21: 0
P22: 0
P23: 0
P24: 0
P25: 0
P26: 0
P27: 0
P28: 0
P29: 0
P30: 0
P31: 0
P32: 0
P33: 0
P34: 0
P35: 0
P36: 0
P37: 0
P38: 0
P39: 0
A41: TOTAL PRINCIPAL ALL OPERATIONS | F41: =SUM(F6:F39) -> 0 | H41: =SUM(H6:H39) -> 0 | J41: =SUM(J6:J39) -> 0 | K41: =SUM(K6:K39) -> 0 | L41: 0 | M41: 0 | N41: 0 | O41: =SUM(O6:O39) -> 0 | P41: =SUM(P6:P39) -> 0
A48: Page F-6 (Detail)

Sheet F-7 Debt Service-Interest
A1: ='KEY INPUTS'!B5 -> Weymouth Municipal Utilities Authority
B2: If Authority has no debt, check this box:
D3: Fiscal Year Ending in
D4: =IF('KEY INPUTS'!B1 <> 'KEY INPUTS'!B2, 'KEY INPUTS'!B1,'KEY INPUTS'!B1-1)&" (Adopted Budget)" -> 2024 (Adopted Budget) | F4: =IF('KEY INPUTS'!B1 <> 'KEY INPUTS'!B2, 'KEY INPUTS'!B2, 'KEY INPUTS'!B1)&" (Proposed Budget)" -> 2025 (Proposed Budget) | H4: =IF('KEY INPUTS'!B1 <> 'KEY INPUTS'!B2, 'KEY INPUTS'!B2+1, 'KEY INPUTS'!B1+1) -> 2026 | I4: =+H4+1 -> 2027 | J4: =+I4+1 -> 2028 | K4: =+J4+1 -> 2029 | L4: =+K4+1 -> 2030 | M4: Thereafter | N4: Total Interest Payments Outstanding
A5: ='F-6 Debt Service-Principal'!A5 -> Water
B6: ='F-6 Debt Service-Principal'!B6 -> 0 | N6: =SUM(H6:M6)+F6 -> 0
B7: ='F-6 Debt Service-Principal'!B7 -> 0 | N7: =SUM(H7:M7)+F7 -> 0
B8: ='F-6 Debt Service-Principal'!B8 -> 0 | N8: 0
B9: ='F-6 Debt Service-Principal'!B9 -> 0 | N9: 0
B10: Total Interest Payments | D10: =SUM(D6:D9) -> 0 | F10: =SUM(F6:F9) -> 0 | H10: =SUM(H6:H9) -> 0 | I10: 0 | J10: 0 | K10: 0 | L10: 0 | M10: 0 | N10: 0
A11: ='F-6 Debt Service-Principal'!A11 -> Sewer
B12: ='F-6 Debt Service-Principal'!B12 -> 2013 Promissory Note | D12: 5,986 | F12: 5,851 | H12: 5,711 | I12: 5,568 | J12: 5,421 | K12: 5,270 | L12: 5,114 | M12: 63,119 | N12: =SUM(H12:M12)+F12 -> 96,054
B13: ='F-6 Debt Service-Principal'!B13 -> 0 | N13: =SUM(H13:M13)+F13 -> 0
B14: ='F-6 Debt Service-Principal'!B14 -> 0 | N14: 0
B15: ='F-6 Debt Service-Principal'!B15 -> 0 | N15: 0
B16: Total Interest Payments | D16: =SUM(D12:D15) -> 5,986 | F16: =SUM(F12:F15) -> 5,851 | H16: =SUM(H12:H15) -> 5,711 | I16: 5,568 | J16: 5,421 | K16: 5,270 | L16: 5,114 | M16: 63,119 | N16: 96,054
A17: ='F-6 Debt Service-Principal'!A17 -> Operation #3
B18: ='F-6 Debt Service-Principal'!B18 -> 0 | N18: =SUM(H18:M18)+F18 -> 0
B19: ='F-6 Debt Service-Principal'!B19 -> 0 | N19: =SUM(H19:M19)+F19 -> 0
B20: ='F-6 Debt Service-Principal'!B20 -> 0 | N20: 0
B21: ='F-6 Debt Service-Principal'!B21 -> 0 | N21: 0
B22: Total Interest Payments | D22: =SUM(D18:D21) -> 0 | F22: =SUM(F18:F21) -> 0 | H22: =SUM(H18:H21) -> 0 | I22: 0 | J22: 0 | K22: 0 | L22: 0 | M22: 0 | N22: 0
A23: ='F-6 Debt Service-Principal'!A23 -> Operation #4
B24: ='F-6 Debt Service-Principal'!B24 -> 0 | N24: =SUM(H24:M24)+F24 -> 0
B25: ='F-6 Debt Service-Principal'!B25 -> 0 | N25: =SUM(H25:M25)+F25 -> 0
B26: ='F-6 Debt Service-Principal'!B26 -> 0 | N26: 0
B27: ='F-6 Debt Service-Principal'!B27 -> 0 | N27: 0
B28: Total Interest Payments | D28: =SUM(D24:D27) -> 0 | F28: =SUM(F24:F27) -> 0 | H28: =SUM(H24:H27) -> 0 | I28: 0 | J28: 0 | K28: 0 | L28: 0 | M28: 0 | N28: 0
A29: ='F-6 Debt Service-Principal'!A29 -> Operation #5
B30: ='F-6 Debt Service-Principal'!B30 -> 0 | N30: =SUM(H30:M30)+F30 -> 0
B31: ='F-6 Debt Service-Principal'!B31 -> 0 | N31: =SUM(H31:M31)+F31 -> 0
B32: ='F-6 Debt Service-Principal'!B32 -> 0 | N32: 0
B33: ='F-6 Debt Service-Principal'!B33 -> 0 | N33: 0
B34: Total Interest Payments | D34: =SUM(D30:D33) -> 0 | F34: =SUM(F30:F33) -> 0 | H34: =SUM(H30:H33) -> 0 | I34: 0 | J34: 0 | K34: 0 | L34: 0 | M34: 0 | N34: 0
A35: ='F-6 Debt Service-Principal'!A35 -> Operation #6
B36: ='F-6 Debt Service-Principal'!B36 -> 0 | N36: =SUM(H36:M36)+F36 -> 0
B37: ='F-6 Debt Service-Principal'!B37 -> 0 | N37: =SUM(H37:M37)+F37 -> 0
B38: ='F-6 Debt Service-Principal'!B38 -> 0 | N38: 0
B39: ='F-6 Debt Service-Principal'!B39 -> 0 | N39: 0
B40: Total Interest Payments | D40: =SUM(D36:D39) -> 0 | F40: =SUM(F36:F39) -> 0 | H40: =SUM(H36:H39) -> 0 | I40: 0 | J40: 0 | K40: 0 | L40: 0 | M40: 0 | N40: 0
A41: TOTAL INTEREST ALL OPERATIONS | D41: =D40+D34+D28+D22+D16+D10 -> $5,986 | F41: =+F40+F34+F28+F22+F16+F10 -> $5,851 | H41: =+H40+H34+H28+H22+H16+H10 -> $5,711 | I41: $5,568 | J41: $5,421 | K41: $5,270 | L41: $5,114 | M41: $63,119 | N41: =+N40+N34+N28+N22+N16+N10 -> $96,054
A43: Page F-7

Sheet F-7 Detail
A1: ='KEY INPUTS'!B5 -> Weymouth Municipal Utilities Authority
D3: Fiscal Year Ending in
D4: =IF('KEY INPUTS'!B1 <> 'KEY INPUTS'!B2, 'KEY INPUTS'!B1,'KEY INPUTS'!B1-1)&" (Adopted Budget)" -> 2024 (Adopted Budget) | F4: =IF('KEY INPUTS'!B1 <> 'KEY INPUTS'!B2, 'KEY INPUTS'!B2, 'KEY INPUTS'!B1)&" (Proposed Budget)" -> 2025 (Proposed Budget) | H4: =IF('KEY INPUTS'!B1 <> 'KEY INPUTS'!B2, 'KEY INPUTS'!B2+1, 'KEY INPUTS'!B1+1) -> 2026 | I4: =+H4+1 -> 2027 | J4: =+I4+1 -> 2028 | K4: =+J4+1 -> 2029 | L4: =+K4+1 -> 2030 | M4: Thereafter | N4: Total Interest Payments Outstanding
N6: =SUM(H6:M6)+F6 -> 0
N7: =SUM(H7:M7)+F7 -> 0
N8: 0
N9: 0
N10: 0
N11: 0
N12: 0
N13: 0
N14: 0
N15: 0
N16: 0
N17: 0
N18: 0
N19: 0
N20: 0
N21: 0
N22: 0
N23: 0
N24: 0
N25: 0
N26: 0
N27: 0
N28: 0
N29: 0
N30: 0
N31: 0
N32: 0
N33: 0
N34: 0
N35: 0
N36: 0
N37: 0
N38: 0
N39: 0
A41: TOTAL INTEREST ALL OPERATIONS | D41: =SUM(D6:D39) -> 0 | F41: =SUM(F6:F39) -> 0 | H41: =SUM(H6:H39) -> 0 | I41: =SUM(I6:I39) -> 0 | J41: 0 | K41: 0 | L41: 0 | M41: =SUM(M6:M39) -> 0 | N41: =SUM(N6:N39) -> 0
A48: Page F-7 (Detail)

Sheet F-8 Net Position
A1: ='KEY INPUTS'!B5 -> Weymouth Municipal Utilities Authority
A2: ="For the Period: "&TEXT('KEY INPUTS'!B3, "mmmm dd, yyyy")&" to "&TEXT('KEY INPUTS'!B4, "mmmm dd, yyyy")&"" -> For the Period: January 01, 2025 to December 31, 2025
D4: ="FY "&'KEY INPUTS'!B2&" Proposed Budget" -> FY 2025 Proposed Budget
D5: ='KEY INPUTS'!D21 -> Water | E5: ='KEY INPUTS'!D22 -> Sewer | F5: ='KEY INPUTS'!D23 -> Operation #3 | G5: ='KEY INPUTS'!D24 -> Operation #4 | H5: ='KEY INPUTS'!D25 -> Operation #5 | I5: ='KEY INPUTS'!D26 -> Operation #6 | J5: Total All Operations
A6: TOTAL NET POSITION BEGINNING OF LATEST AUDIT REPORT YEAR(1) | D6: =81283-8127 -> $73,156 | E6: =484420-8127 -> $476,293 | J6: =SUM(D6:I6) -> $549,449
B7: Less: Invested in Capital Assets, Net of Related Debt (1) | E7: 423,688 | J7: =SUM(D7:I7) -> 423,688
B8: Less: Restricted for Debt Service Reserve (1) | J8: 0
B9: Less: Other Restricted Net Position (1) | D9: =40176+22075 -> 62,251 | J9: 62,251
C10: Total Unrestricted Net Position (1) | D10: =+D6-D7-D8-D9 -> 10,905 | E10: =+E6-E7-E8-E9 -> 52,605 | F10: 0 | G10: 0 | H10: 0 | I10: 0 | J10: =SUM(D10:I10) -> 63,510
B11: Less: Designated for Non-Operating Improvements & Repairs | J11: =SUM(D11:I11) -> 0
B12: Less: Designated for Rate Stabilization | J12: =SUM(D12:I12) -> 0
B13: Less: Other Designated by Resolution | J13: 0
B14: Plus: Accrued Unfunded Pension Liability (1) | D14: =16253*0.5 -> 8,127 | E14: =16253*0.5 -> 8,127 | J14: 16,253
B15: Plus: Accrued Unfunded Other Post-Employment Benefit Liability (1) | J15: 0
B16: Plus: Estimated Income (Loss) on Current Year Operations (2) | J16: 0
B17: Plus: Other Adjustments (attach schedule) | J17: 0
A18: UNRESTRICTED NET POSITION AVAILABLE FOR USE IN PROPOSED BUDGET | D18: =D10-D11-D12-D13+D17+D14+D15+D16 -> 19,032 | E18: =E10-E11-E12-E13+E17+E14+E15+E16 -> 60,732 | F18: 0 | G18: 0 | H18: 0 | I18: 0 | J18: 79,763
B19: Unrestricted Net Position Utilized to Balance Proposed Budget | D19: =+'F-4 Appropriations (Proposed)'!D45 -> 0 | E19: ='F-4 Appropriations (Proposed)'!E45 -> 0 | F19: ='F-4 Appropriations (Proposed)'!F45 -> 0 | G19: ='F-4 Appropriations (Proposed)'!G45 -> 0 | H19: ='F-4 Appropriations (Proposed)'!H45 -> 0 | I19: ='F-4 Appropriations (Proposed)'!I45 -> 0 | J19: =SUM(D19:I19) -> 0
B20: Unrestricted Net Position Utilized in Proposed Capital Budget | D20: ='CB-3 Capital Budget Proposed'!E11 -> 0 | E20: ='CB-3 Capital Budget Proposed'!E17 -> 0 | F20: ='CB-3 Capital Budget Proposed'!E23 -> 0 | G20: ='CB-3 Capital Budget Proposed'!E29 -> 0 | H20: ='CB-3 Capital Budget Proposed'!E35 -> 0 | I20: ='CB-3 Capital Budget Proposed'!E41 -> 0 | J20: =SUM(D20:I20) -> 0
B21: Appropriation to Municipality/County (3) | D21: =+'F-4 Appropriations (Proposed)'!D37 -> 0 | E21: ='F-4 Appropriations (Proposed)'!E37 -> 0 | F21: ='F-4 Appropriations (Proposed)'!F37 -> 0 | G21: ='F-4 Appropriations (Proposed)'!G37 -> 0 | H21: ='F-4 Appropriations (Proposed)'!H37 -> 0 | I21: ='F-4 Appropriations (Proposed)'!I37 -> 0 | J21: =SUM(D21:I21) -> 0
C22: Total Unrestricted Net Position Utilized in Proposed Budget | D22: =SUM(D19:D21) -> 0 | E22: =SUM(E19:E21) -> 0 | F22: 0 | G22: 0 | H22: 0 | I22: 0 | J22: 0
A23: PROJECTED UNRESTRICTED UNDESIGNATED NET POSITION AT END OF YEAR Last issued Audit Report (4) | D23: =+D18-D22 -> $19,032 | E23: =+E18-E22 -> $60,732 | F23: 0 | G23: 0 | H23: 0 | I23: 0 | J23: $79,763
A25: (1) Total of all operations for this line item must agree to audited financial statements.
A26: (2) Include budgeted and unbudgeted use of unrestricted net position in the current year's operations.
A27: (3) Amount may not exceed 5% of total operating appropriations. See calculation below.
C28: Maximum Allowable Appropriation to Municipality/County | D28: ='F-1 Summary'!D22*0.05 -> $6,121 | E28: ='F-1 Summary'!E22*0.05 -> $11,423 | F28: ='F-1 Summary'!F22*0.05 -> 0 | G28: ='F-1 Summary'!G22*0.05 -> 0 | H28: ='F-1 Summary'!H22*0.05 -> 0 | I28: ='F-1 Summary'!I22*0.05 -> 0 | J28: ='F-1 Summary'!J22*0.05 -> $17,544
A29: (4) If Authority is projecting a deficit for any operation at the end of the budget period, the Authority must attach a statement explaining its plan to reduce the deficit, including the timeline for elimination of the deficit, if not already detailed in the budget narrative section.
A31: Page F-8

Sheet Capital Budget
A2: ="FISCAL YEAR "&'KEY INPUTS'!B2&"" -> FISCAL YEAR 2025
A7: ='KEY INPUTS'!B5 -> Weymouth Municipal Utilities Authority
A8: (Authority Name)
A13: =""&'KEY INPUTS'!B2&" AUTHORITY CAPITAL BUDGET/PROGRAM" -> 2025 AUTHORITY CAPITAL BUDGET/PROGRAM

Sheet CB-1 Capital Budget Cert.
A1: =""&'KEY INPUTS'!B2&" CERTIFICATION OF" -> 2025 CERTIFICATION OF
A2: AUTHORITY CAPITAL BUDGET / PROGRAM
A4: ='KEY INPUTS'!B5 -> Weymouth Municipal Utilities Authority
A5: (Authority Name)
A8: ="Fiscal Year: "&TEXT('KEY INPUTS'!B3, "mmmm dd, yyyy")&" to "&TEXT('KEY INPUTS'!B4, "mmmm dd, yyyy")&"" -> Fiscal Year: January 01, 2025 to December 31, 2025
A10: Check the box for the applicable statement below:
A11: It is hereby certified that the Authority Capital Budget/Program annexed hereto is a true copy of | AD11: FALSE
A12: the Capital Budget/Program approved, pursuant to N.J.A.C. 5:31-2.2, along with the Annual Budget, of the
A13: ="governing body of the "&'KEY INPUTS'!B5&", on "&TEXT(L13,"mmmm dd, yyyy")&"." -> governing body of the Weymouth Municipal Utilities Authority, on January 00, 1900. | J13: Approval Date:
A15: =" It is hereby certified that the governing body of the "&'KEY INPUTS'!B5&" have" -> It is hereby certified that the governing body of the Weymouth Municipal Utilities Authority have | AD15: TRUE
A16: elected NOT to adopt and Capital Budget/Program for the aforesaid fiscal year, pursuant to N.J.A.C.
A17: ="5:31-2.2, along with the Annual Budget by the governing body of the "&'KEY INPUTS'!B5&"," -> 5:31-2.2, along with the Annual Budget by the governing body of the Weymouth Municipal Utilities Authority,
A18: for the following reason(s):
B22: Officer's Signature: | D22: Alisa Owen Owenalisa@aol.com
B23: Name: | D23: ='KEY INPUTS'!B41 -> Alisa Owens
B24: Title: | D24: ='KEY INPUTS'!B42 -> Secretary
B25: Address: | D25: ='KEY INPUTS'!B43 -> 112 Steelman Landing Road
D26: ='KEY INPUTS'!B44 -> Mays Landing, NJ 08330
B27: Phone Number: | D27: ='KEY INPUTS'!B45 -> 609-909-0487
B28: Fax Number: | D28: ='KEY INPUTS'!B46 -> 609-909-0487
B29: E-mail Address: | D29: ='KEY INPUTS'!B47 -> owenalisa@aol.com
A42: Page CB-1

Sheet CB-2 Capital Budget Message
A1: =""&'KEY INPUTS'!B2&" CAPITAL BUDGET/PROGRAM MESSAGE" -> 2025 CAPITAL BUDGET/PROGRAM MESSAGE
A3: ='KEY INPUTS'!B5 -> Weymouth Municipal Utilities Authority
A5: ="Fiscal Year: "&TEXT('KEY INPUTS'!B3, "mmmm dd, yyyy")&" to "&TEXT('KEY INPUTS'!B4, "mmmm dd, yyyy")&"" -> Fiscal Year: January 01, 2025 to December 31, 2025
A7: Answer all questions below using the space provided.
A10: 1. Has each municipality or county affected by the actions of the authority participated in the development of the capital plan and
A11: reviewed or approved the plans or projects included within the Capital Budget/Program (this may include the governing body or
A12: certain officials, such as planning boards, Construction Code Officials) as to these projects?
A14: 2. Has each capital project/project financing been developed from a specific capital improvement plan or report;
A15: does it include lifecycle costs; and is it consistent with the appropriate elements of Master Plans or other
A16: plans in the jurisdiction(s) served by the authority?
A19: 3. Has a long-term (5 years or more) infrastructure needs and other capital items (Vehicles, Equipment)
A20: needs assessment been prepared?
A22: 4. If amounts are on Page CB-3 in the column Debt Authorizations, indicate the primary source of funding the debt service for the
A23: Debt Authorizations (example - rate increase).
A30: 5. Please indicate which capital projects/project financings are being undertaken in the Metropolitan or Suburban Planning Areas
A31: as defined in the State Development and Redevelopment Plan.
A38: 6. Please indicate which capital projects/project financings are being undertaken within the boundary of a State Planning Commission-
A39: designated Center and/or Endorsed Plan and if the project was included in the Plan Implementation Agenda for that Center/Endorsed
A40: Plan.
A49: Page CB-2

Sheet CB-3 Capital Budget Proposed
A1: ='KEY INPUTS'!B5 -> Weymouth Municipal Utilities Authority
A2: ="For the Period: "&TEXT('KEY INPUTS'!B3, "mmmm dd, yyyy")&" to "&TEXT('KEY INPUTS'!B4, "mmmm dd, yyyy")&"" -> For the Period: January 01, 2025 to December 31, 2025
E4: Funding Sources
C5: Estimated Total Cost | E5: Unrestricted Net Position Utilized | F5: Renewal & Replacement Reserve | G5: Debt Authorization | H5: Capital Grants | I5: Other Sources
A6: ='KEY INPUTS'!D21 -> Water
C7: =SUM(E7:I7) -> 0
C8: =SUM(E8:I8) -> 0
C9: 0
C10: 0
B11: Total | C11: =SUM(C7:C10) -> 0 | E11: =SUM(E7:E10) -> 0 | F11: =SUM(F7:F10) -> 0 | G11: =SUM(G7:G10) -> 0 | H11: =SUM(H7:H10) -> 0 | I11: =SUM(I7:I10) -> 0
A12: ='KEY INPUTS'!D22 -> Sewer
C13: =SUM(E13:I13) -> 0
C14: =SUM(E14:I14) -> 0
C15: 0
C16: 0
B17: Total | C17: =SUM(C13:C16) -> 0 | E17: =SUM(E13:E16) -> 0 | F17: =SUM(F13:F16) -> 0 | G17: =SUM(G13:G16) -> 0 | H17: =SUM(H13:H16) -> 0 | I17: =SUM(I13:I16) -> 0
A18: ='KEY INPUTS'!D23 -> Operation #3
C19: =SUM(E19:I19) -> 0
C20: =SUM(E20:I20) -> 0
C21: 0
C22: 0
B23: Total | C23: =SUM(C19:C22) -> 0 | E23: =SUM(E19:E22) -> 0 | F23: =SUM(F19:F22) -> 0 | G23: =SUM(G19:G22) -> 0 | H23: =SUM(H19:H22) -> 0 | I23: =SUM(I19:I22) -> 0
A24: ='KEY INPUTS'!D24 -> Operation #4
C25: =SUM(E25:I25) -> 0
C26: =SUM(E26:I26) -> 0
C27: 0
C28: 0
B29: Total | C29: =SUM(C25:C28) -> 0 | E29: =SUM(E25:E28) -> 0 | F29: =SUM(F25:F28) -> 0 | G29: =SUM(G25:G28) -> 0 | H29: =SUM(H25:H28) -> 0 | I29: =SUM(I25:I28) -> 0
A30: ='KEY INPUTS'!D25 -> Operation #5
C31: =SUM(E31:I31) -> 0
C32: =SUM(E32:I32) -> 0
C33: 0
C34: 0
B35: Total | C35: =SUM(C31:C34) -> 0 | E35: =SUM(E31:E34) -> 0 | F35: =SUM(F31:F34) -> 0 | G35: =SUM(G31:G34) -> 0 | H35: =SUM(H31:H34) -> 0 | I35: =SUM(I31:I34) -> 0
A36: ='KEY INPUTS'!D26 -> Operation #6
C37: =SUM(E37:I37) -> 0
C38: =SUM(E38:I38) -> 0
C39: 0
C40: 0
B41: Total | C41: =SUM(C37:C40) -> 0 | E41: =SUM(E37:E40) -> 0 | F41: =SUM(F37:F40) -> 0 | G41: =SUM(G37:G40) -> 0 | H41: =SUM(H37:H40) -> 0 | I41: =SUM(I37:I40) -> 0
A42: TOTAL PROPOSED CAPITAL BUDGET | C42: =+C41+C35+C29+C23+C17+C11 -> 0 | E42: =+E41+E35+E29+E23+E17+E11 -> 0 | F42: =+F41+F35+F29+F23+F17+F11 -> 0 | G42: =+G41+G35+G29+G23+G17+G11 -> 0 | H42: =+H41+H35+H29+H23+H17+H11 -> 0 | I42: =+I41+I35+I29+I23+I17+I11 -> 0
A44: Enter brief description of up to four projects for each operation above. For operations with more than four budgeted projects, please utilize the additional pages. Input total amount of all projects for the operation on single line and enter "See Additional Pages" instead of project description.
A47: Page CB-3

Sheet CB-3 Detail
A1: ='KEY INPUTS'!B5 -> Weymouth Municipal Utilities Authority
A2: ="For the Period: "&TEXT('KEY INPUTS'!B3, "mmmm dd, yyyy")&" to "&TEXT('KEY INPUTS'!B4, "mmmm dd, yyyy")&"" -> For the Period: January 01, 2025 to December 31, 2025
E4: Funding Sources
C5: Estimated Total Cost | E5: Unrestricted Net Position Utilized | F5: Renewal & Replacement Reserve | G5: Debt Authorization | H5: Capital Grants | I5: Other Sources
C6: =SUM(E6:I6) -> $0
C7: =SUM(E7:I7) -> 0
C8: 0
C9: 0
C10: 0
C11: 0
C12: 0
C13: 0
C14: 0
C15: 0
C16: 0
C17: 0
C18: 0
C19: 0
C20: 0
C21: 0
C22: 0
C23: 0
C24: 0
C25: 0
C26: 0
C27: 0
C28: 0
C29: 0
C30: 0
C31: 0
C32: 0
C33: 0
C34: 0
C35: 0
C36: 0
C37: 0
C38: 0
C39: =SUM(E39:I39) -> 0
C40: 0
C41: 0
A42: TOTAL THIS PAGE ONLY | C42: =SUM(C6:C41) -> $0 | E42: =SUM(E6:E41) -> $0 | F42: =SUM(F6:F41) -> 0 | G42: 0 | H42: 0 | I42: 0
A47: Page CB-3 Detail

Sheet CB-3 Detail (2)
A1: ='KEY INPUTS'!B5 -> Weymouth Municipal Utilities Authority
A2: ="For the Period: "&TEXT('KEY INPUTS'!B3, "mmmm dd, yyyy")&" to "&TEXT('KEY INPUTS'!B4, "mmmm dd, yyyy")&"" -> For the Period: January 01, 2025 to December 31, 2025
E4: Funding Sources
C5: Estimated Total Cost | E5: Unrestricted Net Position Utilized | F5: Renewal & Replacement Reserve | G5: Debt Authorization | H5: Capital Grants | I5: Other Sources
C6: =SUM(E6:I6) -> $0
C7: =SUM(E7:I7) -> 0
C8: 0
C9: 0
C10: 0
C11: 0
C12: 0
C13: 0
C14: 0
C15: 0
C16: 0
C17: 0
C18: 0
C19: 0
C20: 0
C21: 0
C22: 0
C23: 0
C24: 0
C25: 0
C26: 0
C27: 0
C28: 0
C29: 0
C30: 0
C31: 0
C32: 0
C33: 0
C34: 0
C35: 0
C36: 0
C37: 0
C38: 0
C39: =SUM(E39:I39) -> 0
C40: 0
C41: 0
A42: TOTAL THIS PAGE ONLY | C42: =SUM(C6:C41) -> $0 | E42: =SUM(E6:E41) -> 0 | F42: 0 | G42: 0 | H42: 0 | I42: 0
A47: Page CB-3 Detail (2)

Sheet CB-3 Detail Totals
A1: ='KEY INPUTS'!B5 -> Weymouth Municipal Utilities Authority
A2: ="For the Period: "&TEXT('KEY INPUTS'!B3, "mmmm dd, yyyy")&" to "&TEXT('KEY INPUTS'!B4, "mmmm dd, yyyy")&"" -> For the Period: January 01, 2025 to December 31, 2025
E4: Funding Sources
C5: Estimated Total Cost | E5: Unrestricted Net Position Utilized | F5: Renewal & Replacement Reserve | G5: Debt Authorization | H5: Capital Grants | I5: Other Sources
C6: =SUM(E6:I6) -> $0
C7: =SUM(E7:I7) -> 0
C8: 0
C9: 0
C10: 0
C11: 0
C12: 0
C13: 0
C14: 0
C15: 0
C16: 0
C17: 0
C18: 0
C19: 0
C20: 0
C21: 0
C22: 0
C23: 0
C24: 0
C25: 0
C26: 0
C27: 0
C28: 0
C29: 0
C30: 0
C31: 0
C32: 0
C33: 0
C34: 0
C35: 0
C36: 0
C37: 0
C38: 0
C39: =SUM(E39:I39) -> 0
C40: 0
C41: 0
A42: TOTAL ALL DETAIL PAGES | C42: =SUM(C6:C41)+'CB-3 Detail (2)'!C42+'CB-3 Detail'!C42 -> $0 | E42: =SUM(E6:E41)+'CB-3 Detail (2)'!E42+'CB-3 Detail'!E42 -> 0 | F42: =SUM(F6:F41)+'CB-3 Detail (2)'!F42+'CB-3 Detail'!F42 -> 0 | G42: =SUM(G6:G41)+'CB-3 Detail (2)'!G42+'CB-3 Detail'!G42 -> 0 | H42: =SUM(H6:H41)+'CB-3 Detail (2)'!H42+'CB-3 Detail'!H42 -> 0 | I42: =SUM(I6:I41)+'CB-3 Detail (2)'!I42+'CB-3 Detail'!I42 -> 0
A47: Page CB-3 (Totals)

Sheet CB-4 5 Year Capital Budget Cost
A1: ='KEY INPUTS'!B5 -> Weymouth Municipal Utilities Authority
A2: ="For the Period: "&TEXT('KEY INPUTS'!B3, "mmmm dd, yyyy")&" to "&TEXT('KEY INPUTS'!B4, "mmmm dd, yyyy")&"" -> For the Period: January 01, 2025 to December 31, 2025
E4: Fiscal Year Ending in
C5: Estimated Total Cost | E5: =""&'KEY INPUTS'!B2&" (Proposed Budget)" -> 2025 (Proposed Budget) | F5: ='KEY INPUTS'!B2+1 -> 2026 | G5: =+F5+1 -> 2027 | H5: =G5+1 -> 2028 | I5: =H5+1 -> 2029 | J5: =I5+1 -> 2030
A6: ='KEY INPUTS'!D21 -> Water
C7: =SUM(E7:J7) -> 0 | E7: ='CB-3 Capital Budget Proposed'!C7 -> 0
C8: =SUM(E8:J8) -> 0 | E8: ='CB-3 Capital Budget Proposed'!C8 -> 0
C9: 0 | E9: ='CB-3 Capital Budget Proposed'!C9 -> 0
C10: 0 | E10: ='CB-3 Capital Budget Proposed'!C10 -> 0
B11: Total | C11: =SUM(C7:C10) -> 0 | E11: =SUM(E7:E10) -> 0 | F11: 0 | G11: 0 | H11: 0 | I11: 0 | J11: 0
A12: ='KEY INPUTS'!D22 -> Sewer
C13: =SUM(E13:J13) -> 0 | E13: ='CB-3 Capital Budget Proposed'!C13 -> 0
C14: =SUM(E14:J14) -> 0 | E14: ='CB-3 Capital Budget Proposed'!C14 -> 0
C15: 0 | E15: ='CB-3 Capital Budget Proposed'!C15 -> 0
C16: 0 | E16: ='CB-3 Capital Budget Proposed'!C16 -> 0
B17: Total | C17: =SUM(C13:C16) -> 0 | E17: =SUM(E13:E16) -> 0 | F17: 0 | G17: 0 | H17: 0 | I17: 0 | J17: 0
A18: ='KEY INPUTS'!D23 -> Operation #3
C19: =SUM(E19:J19) -> 0 | E19: ='CB-3 Capital Budget Proposed'!C19 -> 0
C20: =SUM(E20:J20) -> 0 | E20: ='CB-3 Capital Budget Proposed'!C20 -> 0
C21: 0 | E21: ='CB-3 Capital Budget Proposed'!C21 -> 0
C22: 0 | E22: ='CB-3 Capital Budget Proposed'!C22 -> 0
B23: Total | C23: =SUM(C19:C22) -> 0 | E23: =SUM(E19:E22) -> 0 | F23: 0 | G23: 0 | H23: 0 | I23: 0 | J23: 0
A24: ='KEY INPUTS'!D24 -> Operation #4
C25: =SUM(E25:J25) -> 0 | E25: ='CB-3 Capital Budget Proposed'!C25 -> 0
C26: =SUM(E26:J26) -> 0 | E26: ='CB-3 Capital Budget Proposed'!C26 -> 0
C27: 0 | E27: ='CB-3 Capital Budget Proposed'!C27 -> 0
C28: 0 | E28: ='CB-3 Capital Budget Proposed'!C28 -> 0
B29: Total | C29: =SUM(C25:C28) -> 0 | E29: =SUM(E25:E28) -> 0 | F29: 0 | G29: 0 | H29: 0 | I29: 0 | J29: 0
A30: ='KEY INPUTS'!D25 -> Operation #5
C31: =SUM(E31:J31) -> 0 | E31: ='CB-3 Capital Budget Proposed'!C31 -> 0
C32: =SUM(E32:J32) -> 0 | E32: ='CB-3 Capital Budget Proposed'!C32 -> 0
C33: 0 | E33: ='CB-3 Capital Budget Proposed'!C33 -> 0
C34: 0 | E34: ='CB-3 Capital Budget Proposed'!C34 -> 0
B35: Total | C35: =SUM(C31:C34) -> 0 | E35: =SUM(E31:E34) -> 0 | F35: 0 | G35: 0 | H35: 0 | I35: 0 | J35: 0
A36: ='KEY INPUTS'!D26 -> Operation #6
C37: =SUM(E37:J37) -> 0 | E37: ='CB-3 Capital Budget Proposed'!C37 -> 0
C38: =SUM(E38:J38) -> 0 | E38: ='CB-3 Capital Budget Proposed'!C38 -> 0
C39: 0 | E39: ='CB-3 Capital Budget Proposed'!C39 -> 0
C40: 0 | E40: ='CB-3 Capital Budget Proposed'!C40 -> 0
B41: Total | C41: =SUM(C37:C40) -> 0 | E41: =SUM(E37:E40) -> 0 | F41: 0 | G41: 0 | H41: 0 | I41: 0 | J41: 0
A42: TOTAL | C42: =+C41+C35+C29+C23+C17+C11 -> 0 | E42: =+E41+E35+E29+E23+E17+E11 -> 0 | F42: 0 | G42: 0 | H42: 0 | I42: 0 | J42: 0
A46: Page CB-4

Sheet CB-4 Detail
A1: ='KEY INPUTS'!B5 -> Weymouth Municipal Utilities Authority
A2: ="For the Period: "&TEXT('KEY INPUTS'!B3, "mmmm dd, yyyy")&" to "&TEXT('KEY INPUTS'!B4, "mmmm dd, yyyy")&"" -> For the Period: January 01, 2025 to December 31, 2025
E4: Fiscal Year Ending in
C5: Estimated Total Cost | E5: =""&'KEY INPUTS'!B2&" (Proposed Budget)" -> 2025 (Proposed Budget) | F5: ='KEY INPUTS'!B2+1 -> 2026 | G5: =+F5+1 -> 2027 | H5: =G5+1 -> 2028 | I5: =H5+1 -> 2029 | J5: =I5+1 -> 2030
C6: =SUM(E6:J6) -> 0
C7: =SUM(E7:J7) -> 0
C8: =SUM(E8:J8) -> 0
C9: 0
C10: 0
C11: 0
C12: 0
C13: 0
C14: 0
C15: 0
C16: 0
C17: 0
C18: 0
C19: 0
C20: 0
C21: 0
C22: 0
C23: 0
C24: 0
C25: 0
C26: 0
C27: 0
C28: 0
C29: 0
C30: 0
C31: 0
C32: 0
C33: 0
C34: 0
C35: 0
C36: 0
C37: 0
C38: =SUM(E38:J38) -> 0
C39: 0
C40: 0
C41: 0
A42: TOTAL THIS PAGE ONLY | C42: =SUM(C6:C41) -> 0 | E42: =SUM(E6:E41) -> 0 | F42: =SUM(F6:F41) -> 0 | G42: 0 | H42: 0 | I42: 0 | J42: 0
A46: Page CB-4 Detail

Sheet CB-4 Detail (2)
A1: ='KEY INPUTS'!B5 -> Weymouth Municipal Utilities Authority
A2: ="For the Period: "&TEXT('KEY INPUTS'!B3, "mmmm dd, yyyy")&" to "&TEXT('KEY INPUTS'!B4, "mmmm dd, yyyy")&"" -> For the Period: January 01, 2025 to December 31, 2025
E4: Fiscal Year Ending in
C5: Estimated Total Cost | E5: =""&'KEY INPUTS'!B2&" (Proposed Budget)" -> 2025 (Proposed Budget) | F5: ='KEY INPUTS'!B2+1 -> 2026 | G5: =+F5+1 -> 2027 | H5: =G5+1 -> 2028 | I5: =H5+1 -> 2029 | J5: =I5+1 -> 2030
C6: =SUM(E6:J6) -> 0
C7: =SUM(E7:J7) -> 0
C8: =SUM(E8:J8) -> 0
C9: 0
C10: 0
C11: 0
C12: 0
C13: 0
C14: 0
C15: 0
C16: 0
C17: 0
C18: 0
C19: 0
C20: 0
C21: 0
C22: 0
C23: 0
C24: 0
C25: 0
C26: 0
C27: 0
C28: 0
C29: 0
C30: 0
C31: 0
C32: 0
C33: 0
C34: 0
C35: 0
C36: 0
C37: 0
C38: 0
C39: 0
C40: 0
C41: 0
A42: TOTAL THIS PAGE ONLY | C42: =SUM(C6:C41) -> 0 | E42: =SUM(E6:E41) -> 0 | F42: =SUM(F6:F41) -> 0 | G42: 0 | H42: 0 | I42: 0 | J42: 0
A46: Page CB-4 Detail (2)

Sheet CB-4 Detail Totals
A1: ='KEY INPUTS'!B5 -> Weymouth Municipal Utilities Authority
A2: ="For the Period: "&TEXT('KEY INPUTS'!B3, "mmmm dd, yyyy")&" to "&TEXT('KEY INPUTS'!B4, "mmmm dd, yyyy")&"" -> For the Period: January 01, 2025 to December 31, 2025
E4: Fiscal Year Ending in
C5: Estimated Total Cost | E5: =""&'KEY INPUTS'!B2&" (Proposed Budget)" -> 2025 (Proposed Budget) | F5: ='KEY INPUTS'!B2+1 -> 2026 | G5: =+F5+1 -> 2027 | H5: =G5+1 -> 2028 | I5: =H5+1 -> 2029 | J5: =I5+1 -> 2030
C6: =SUM(E6:J6) -> 0
C7: =SUM(E7:J7) -> 0
C8: =SUM(E8:J8) -> 0
C9: 0
C10: 0
C11: 0
C12: 0
C13: 0
C14: 0
C15: 0
C16: 0
C17: 0
C18: 0
C19: 0
C20: 0
C21: 0
C22: 0
C23: 0
C24: 0
C25: 0
C26: 0
C27: 0
C28: 0
C29: 0
C30: 0
C31: 0
C32: 0
C33: 0
C34: 0
C35: 0
C36: 0
C37: 0
C38: 0
C39: 0
C40: 0
C41: 0
A42: TOTAL ALL DETAIL PAGES | C42: =SUM(C6:C41)+'CB-4 Detail'!C42+'CB-4 Detail (2)'!C42 -> 0 | E42: =SUM(E6:E41)+'CB-4 Detail'!E42+'CB-4 Detail (2)'!E42 -> 0 | F42: =SUM(F6:F41)+'CB-4 Detail'!F42+'CB-4 Detail (2)'!F42 -> $0 | G42: =SUM(G6:G41)+'CB-4 Detail'!G42+'CB-4 Detail (2)'!G42 -> 0 | H42: =SUM(H6:H41)+'CB-4 Detail'!H42+'CB-4 Detail (2)'!H42 -> 0 | I42: =SUM(I6:I41)+'CB-4 Detail'!I42+'CB-4 Detail (2)'!I42 -> 0 | J42: =SUM(J6:J41)+'CB-4 Detail'!J42+'CB-4 Detail (2)'!J42 -> 0
A46: Page CB-4 Detail (Totals)

Sheet CB-5 5 Year Capital Budget Fund
A1: ='KEY INPUTS'!B5 -> Weymouth Municipal Utilities Authority
A2: ="For the Period: "&TEXT('KEY INPUTS'!B3, "mmmm dd, yyyy")&" to "&TEXT('KEY INPUTS'!B4, "mmmm dd, yyyy")&"" -> For the Period: January 01, 2025 to December 31, 2025
E4: Funding Sources
C5: Estimated Total Cost | E5: Unrestricted Net Position Utilized | F5: Renewal & Replacement Reserve | G5: Debt Authorization | H5: Capital Grants | I5: Other Sources
A6: ='KEY INPUTS'!D21 -> Water
C7: =SUM(E7:I7) -> 0
C8: =SUM(E8:I8) -> 0
C9: 0
C10: 0
B11: Total | C11: =SUM(C7:C10) -> 0 | E11: =SUM(E7:E10) -> 0 | F11: =SUM(F7:F10) -> 0 | G11: =SUM(G7:G10) -> 0 | H11: =SUM(H7:H10) -> 0 | I11: =SUM(I7:I10) -> 0
A12: ='KEY INPUTS'!D22 -> Sewer
C13: =SUM(E13:I13) -> 0
C14: =SUM(E14:I14) -> 0
C15: =SUM(E15:I15) -> 0
C16: =SUM(E16:I16) -> 0
B17: Total | C17: =SUM(C13:C16) -> 0 | E17: =SUM(E13:E16) -> 0 | F17: =SUM(F13:F16) -> 0 | G17: =SUM(G13:G16) -> 0 | H17: =SUM(H13:H16) -> 0 | I17: =SUM(I13:I16) -> 0
A18: ='KEY INPUTS'!D23 -> Operation #3
C19: =SUM(E19:I19) -> 0
C20: =SUM(E20:I20) -> 0
C21: =SUM(E21:I21) -> 0
C22: =SUM(E22:I22) -> 0
B23: Total | C23: =SUM(C19:C22) -> 0 | E23: =SUM(E19:E22) -> 0 | F23: =SUM(F19:F22) -> 0 | G23: =SUM(G19:G22) -> 0 | H23: =SUM(H19:H22) -> 0 | I23: =SUM(I19:I22) -> 0
A24: ='KEY INPUTS'!D24 -> Operation #4
C25: =SUM(E25:I25) -> 0
C26: =SUM(E26:I26) -> 0
C27: =SUM(E27:I27) -> 0
C28: =SUM(E28:I28) -> 0
B29: Total | C29: =SUM(C25:C28) -> 0 | E29: =SUM(E25:E28) -> 0 | F29: =SUM(F25:F28) -> 0 | G29: =SUM(G25:G28) -> 0 | H29: =SUM(H25:H28) -> 0 | I29: =SUM(I25:I28) -> 0
A30: ='KEY INPUTS'!D25 -> Operation #5
C31: =SUM(E31:I31) -> 0
C32: =SUM(E32:I32) -> 0
C33: =SUM(E33:I33) -> 0
C34: =SUM(E34:I34) -> 0
B35: Total | C35: =SUM(C31:C34) -> 0 | E35: =SUM(E31:E34) -> 0 | F35: =SUM(F31:F34) -> 0 | G35: =SUM(G31:G34) -> 0 | H35: =SUM(H31:H34) -> 0 | I35: =SUM(I31:I34) -> 0
A36: ='KEY INPUTS'!D26 -> Operation #6
C37: =SUM(E37:I37) -> 0
C38: =SUM(E38:I38) -> 0
C39: =SUM(E39:I39) -> 0
C40: =SUM(E40:I40) -> 0
B41: Total | C41: =SUM(C37:C40) -> 0 | E41: =SUM(E37:E40) -> 0 | F41: =SUM(F37:F40) -> 0 | G41: =SUM(G37:G40) -> 0 | H41: =SUM(H37:H40) -> 0 | I41: =SUM(I37:I40) -> 0
A42: TOTAL | C42: =+C41+C35+C29+C23+C17+C11 -> 0 | E42: =+E41+E35+E29+E23+E17+E11 -> 0 | F42: =+F41+F35+F29+F23+F17+F11 -> 0 | G42: =+G41+G35+G29+G23+G17+G11 -> 0 | H42: =+H41+H35+H29+H23+H17+H11 -> 0 | I42: =+I41+I35+I29+I23+I17+I11 -> 0
B43: Total 5 Year Plan per CB-4 | C43: ='CB-4 5 Year Capital Budget Cost'!C42 -> 0
B44: Balance check | C44: =C42-C43 -> 0 | D44: If amount is other than zero, verify that projects listed above match projects listed on CB-4.
A48: Page CB-5

Sheet CB-5 Detail
A1: ='KEY INPUTS'!B5 -> Weymouth Municipal Utilities Authority
A2: ="For the Period: "&TEXT('KEY INPUTS'!B3, "mmmm dd, yyyy")&" to "&TEXT('KEY INPUTS'!B4, "mmmm dd, yyyy")&"" -> For the Period: January 01, 2025 to December 31, 2025
E4: Funding Sources
C5: Estimated Total Cost | E5: Unrestricted Net Position Utilized | F5: Renewal & Replacement Reserve | G5: Debt Authorization | H5: Capital Grants | I5: Other Sources
C6: =SUM(E6:I6) -> $0
C7: =SUM(E7:I7) -> 0
C8: =SUM(E8:I8) -> 0
C9: 0
C10: 0
C11: 0
C12: 0
C13: 0
C14: 0
C15: 0
C16: 0
C17: 0
C18: 0
C19: 0
C20: 0
C21: 0
C22: 0
C23: 0
C24: 0
C25: 0
C26: 0
C27: 0
C28: 0
C29: 0
C30: 0
C31: 0
C32: 0
C33: 0
C34: 0
C35: 0
C36: 0
C37: 0
C38: 0
C39: 0
C40: 0
C41: 0
A42: TOTAL THIS PAGE ONLY | C42: =SUM(C6:C41) -> 0 | E42: =SUM(E6:E41) -> 0 | F42: 0 | G42: 0 | H42: 0 | I42: 0
A48: Page CB-5 Detail

Sheet CB-5 Detail (2)
A1: ='KEY INPUTS'!B5 -> Weymouth Municipal Utilities Authority
A2: ="For the Period: "&TEXT('KEY INPUTS'!B3, "mmmm dd, yyyy")&" to "&TEXT('KEY INPUTS'!B4, "mmmm dd, yyyy")&"" -> For the Period: January 01, 2025 to December 31, 2025
E4: Funding Sources
C5: Estimated Total Cost | E5: Unrestricted Net Position Utilized | F5: Renewal & Replacement Reserve | G5: Debt Authorization | H5: Capital Grants | I5: Other Sources
C6: =SUM(E6:I6) -> $0
C7: =SUM(E7:I7) -> 0
C8: =SUM(E8:I8) -> 0
C9: 0
C10: 0
C11: 0
C12: 0
C13: 0
C14: 0
C15: 0
C16: 0
C17: 0
C18: 0
C19: 0
C20: 0
C21: 0
C22: 0
C23: 0
C24: 0
C25: 0
C26: 0
C27: 0
C28: 0
C29: 0
C30: 0
C31: 0
C32: 0
C33: 0
C34: 0
C35: 0
C36: 0
C37: 0
C38: 0
C39: 0
C40: 0
C41: 0
A42: TOTAL THIS PAGE ONLY | C42: =SUM(C6:C41) -> 0 | E42: =SUM(E6:E41) -> 0 | F42: 0 | G42: 0 | H42: 0 | I42: 0
A48: Page CB-5 Detail (2)

Sheet CB-5 Detail Totals
A1: ='KEY INPUTS'!B5 -> Weymouth Municipal Utilities Authority
A2: ="For the Period: "&TEXT('KEY INPUTS'!B3, "mmmm dd, yyyy")&" to "&TEXT('KEY INPUTS'!B4, "mmmm dd, yyyy")&"" -> For the Period: January 01, 2025 to December 31, 2025
E4: Funding Sources
C5: Estimated Total Cost | E5: Unrestricted Net Position Utilized | F5: Renewal & Replacement Reserve | G5: Debt Authorization | H5: Capital Grants | I5: Other Sources
C6: =SUM(E6:I6) -> $0
C7: =SUM(E7:I7) -> 0
C8: =SUM(E8:I8) -> 0
C9: 0
C10: 0
C11: 0
C12: 0
C13: 0
C14: 0
C15: 0
C16: 0
C17: 0
C18: 0
C19: 0
C20: 0
C21: 0
C22: 0
C23: 0
C24: 0
C25: 0
C26: 0
C27: 0
C28: 0
C29: 0
C30: 0
C31: 0
C32: 0
C33: 0
C34: 0
C35: 0
C36: 0
C37: 0
C38: 0
C39: 0
C40: 0
C41: 0
A42: TOTAL ALL DETAIL PAGES | C42: =SUM(C6:C41)+'CB-5 Detail (2)'!C42+'CB-5 Detail'!C42 -> $0 | E42: =SUM(E6:E41)+'CB-5 Detail (2)'!E42+'CB-5 Detail'!E42 -> $0 | F42: =SUM(F6:F41)+'CB-5 Detail (2)'!F42+'CB-5 Detail'!F42 -> 0 | G42: =SUM(G6:G41)+'CB-5 Detail (2)'!G42+'CB-5 Detail'!G42 -> 0 | H42: =SUM(H6:H41)+'CB-5 Detail (2)'!H42+'CB-5 Detail'!H42 -> 0 | I42: =SUM(I6:I41)+'CB-5 Detail (2)'!I42+'CB-5 Detail'!I42 -> 0
A48: Page CB-5 Detail (Totals)

Sheet Appendix-Change Orders
B3: Annual List of Change Orders Approved
B4: Pursuant to N.J.A.C. 5:30-11
B7: Contracting Unit: | D7: ='KEY INPUTS'!B5 -> Weymouth Municipal Utilities Authority | L7: Year Ending: | N7: =DATE(YEAR('KEY INPUTS'!B4)-2,MONTH('KEY INPUTS'!B4),DAY('KEY INPUTS'!B4)) -> 2023-12-31
C9: The following is a complete list of all change orders which caused the originally awarded contract price to be exceeded by more than 20 percent. For regulatory details
B10: please consult N.J.A.C. 5:30-11.1 et seq. Please identify each change order by name of the project.
C33: For each change order listed above, submit with introduced budget a copy of the governing body resolution authorizing the change order and an Affidavit of Publication for
B34: the newspaper notice required by N.J.A.C. 5:30-11.9(d). (Affidavit must include a copy of the newspaper notice.)
C35: If you have not had a change order exceeding the 20 percent threshold for the year indicated above, please check here | N35: and certify below.
K37: owensalisa@aol.com
D38: Date | K38: Clerk/Secretary to the Governing Body
B40: Appendix to Budget Document
